Workbook

Sheet Gasanvändning
A1: HBK-El & Värme, ver 1.1 | B1: Företag: | D1: företagsnamn | H1: Rapportering för år: | K1: 2023 | M1: Transport av gas | P1: Fördelning av gas på enheter i anläggningen | AK1: Massbalans
A2: Datum när biobränsle började användas | B2: 20xx-xx-xx | D2: =IF(ISBLANK(B2),"Datum måste anges",IF(B2<=DATEVALUE("2020-12-31"),"Inget krav på växthusgasreduktion",IF(AND(B2>DATEVALUE("2020-12-31"),B2<=DATEVALUE("2025-12-31")),"Krav på 70% växthusgasreduktion",IF(B2>DATEVALUE("2025-12-31"),"Krav på 80% växthusgasreduktion",)))) -> Krav på 80% växthusgasreduktion | K2: =IF(B2<=DATEVALUE("2020-12-31"),0, IF(B2<=DATEVALUE("2025-12-31"),1, 2)) -> 2 | M2: Transport, typ | P2: Värme-kyla, enhet 1 | S2: Värme-kyla, enhet 2 | V2: Värme-kyla, enhet 3 | Y2: Värme-kyla enhet 4 | AB2: Elproduktion | AE2: Kraft-värme | AF2: Värme | AH2: El
M3: Bränsle | AE3: Producerad mängd, MWh
A4: Inkommande gas | M4: Avstånd, km | AE4: Verkningsgrad, %
M5: Antal trp | AE5: Temperatur för nyttiggjord värme, grader C
M6: Utsl, ton CO2eq | N6: =IF(N2<>"",IF(N2="Rörledning","0",VLOOKUP(N2,Data!$A$46:$B$60,2,FALSE)*VLOOKUP(N3,Data!$A$23:$C$44,3,FALSE)*N4*N5/1000/1000*2),"") ->  | P6: Verkningsgrad, % | S6: Verkningsgrad, % | V6: Verkningsgrad, % | Y6: Verkningsgrad, % | AB6: Verkningsgrad, % | AE6: Carnot effektivitet, ch | AG6: =AG5/(AG5+273.15) -> 0
A7: Råvara / Substrat | B7: Parti nr | C7: Ursprung | D7: Substrat, typ | E7: Bränslekategori, Gas / Flytande / annan | F7: Mängd, Nm3 / kg (tusental) | G7: Enhet, Nm3 / kg | H7: Värmevärde, MJ/enhet | I7: Växthusgasutsläpp, CO2eq/MJ | J7: Beräkning, F eller N, Esca om gödselbonus tillämpats | K7: Certifiering | L7: Parti nr | M7: Mängd, kg/Nm3 (tusental) | N7: Växthusgas-utsläpp, g CO2eq/MJ | P7: Mängd, kg/Nm3 (tusental) | Q7: Växthusgasutsläpp, g CO2eq/MJ | S7: Mängd, kg/Nm3 (tusental) | T7: Växthusgasutsläpp, g CO2eq/MJ | U7: Parti nr | V7: Mängd, kg/Nm3 (tusental) | W7: Växthusgasutsläpp, g CO2eq/MJ | Y7: Mängd, kg/Nm3 (tusental) | Z7: Växthusgasutsläpp, g CO2eq/MJ | AA7: Parti nr | AB7: Mängd, kg/Nm3 (tusental) | AC7: Växthusgasutsläpp, g CO2eq/MJ | AE7: Tillförd mängd gas, kg/Nm3 (tusental) | AF7: Gasmängd att rapportera, kg/Nm3 (tusental) | AG7: Växthusgasutsläpp, g CO2eq/MJ | AH7: Gasmängd att rapportera, kg/Nm3 (tusental) | AI7: Växthusgasutsläpp, g CO2eq/MJ | AL7: Elproduktion | AN7: Avvikelse In - ut, Nm3 / kg (tusental)
B9: 1 | L9: 1 | N9: =IF(AND(K$2>0,M9>0),Calc_Emissions(),"") ->  | Q9: =IF(P9>0, Calc_Conversion(Q$6),"") ->  | T9: =IF(S9>0, Calc_Conversion(T$6),"") ->  | U9: 1 | W9: =IF(V9>0, Calc_Conversion(W$6),"") ->  | Z9: =IF(Y9>0, Calc_Conversion(Z$6),"") ->  | AA9: 1 | AC9: =IF(AB9>0, Calc_Conversion(AC$6),"") ->  | AF9: =IF(AND($A9<>"",AE9>0), AE9/($AG$3+$AI$3)*$AG$3, "") ->  | AG9: =IF(AE9>0, Calc_Conversion_elandheat(AG$4, AG$6, AG$4, AG$6, AI$4, AG$4), "") ->  | AH9: =IF(AND($A9<>"",AE9>0), AE9/($AG$3+$AI$3)*$AI$3, "") ->  | AI9: =IF(AE9>0, Calc_Conversion_elandheat(AI$4, 1, AI$4, AG$6, AG$4, AI$4), "") ->  | AK9: =IF(A9<>"", (P9+S9+V9+Y9+AB9+AE9)-F9, "") ->  | AL9: =IF(A9<>"",#REF!,"") ->  | AN9: =IF(A9<>"", IF(G9="Gas", IF(H9="kg", ((#REF!*Denscalc(I9) +#REF!+#REF!*Denscalc(I9)+#REF!)-F9), ( (#REF!+#REF!/Denscalc(I9) +#REF!+#REF!/Denscalc(I9))-F9)), ( (#REF!* Denscalc(I9)+#REF!+AL9+#REF!*Denscalc(I9)+#REF!+#REF!)-F9) ), "") -> 
B10: 2 | L10: 2 | N10: =IF(AND(K$2>0,M10>0),Calc_Emissions(),"") ->  | Q10: =IF(P10>0, Calc_Conversion(Q$6),"") ->  | T10: =IF(S10>0, Calc_Conversion(T$6),"") ->  | U10: 2 | W10: =IF(V10>0, Calc_Conversion(W$6),"") ->  | Z10: =IF(Y10>0, Calc_Conversion(Z$6),"") ->  | AA10: 2 | AC10: =IF(AB10>0, Calc_Conversion(AC$6),"") ->  | AF10: =IF(AND($A10<>"",AE10>0), AE10/($AG$3+$AI$3)*$AG$3, "") ->  | AG10: =IF(AE10>0, Calc_Conversion_elandheat(AG$4, AG$6, AG$4, AG$6, AI$4, AG$4), "") ->  | AH10: =IF(AND($A10<>"",AE10>0), AE10/($AG$3+$AI$3)*$AI$3, "") ->  | AI10: =IF(AE10>0, Calc_Conversion_elandheat(AI$4, 1, AI$4, AG$6, AG$4, AI$4), "") ->  | AK10: =IF(A10<>"", (P10+S10+V10+Y10+AB10+AE10)-F10, "") ->  | AL10: =IF(A10<>"",#REF!,"") ->  | AN10: =IF(A10<>"", IF(G10="Gas", IF(H10="kg", ((#REF!*Denscalc(I10) +#REF!+#REF!*Denscalc(I10)+#REF!)-F10), ( (#REF!+#REF!/Denscalc(I10) +#REF!+#REF!/Denscalc(I10))-F10)), ( (#REF!* Denscalc(I10)+#REF!+AL10+#REF!*Denscalc(I10)+#REF!+#REF!)-F10) ), "") -> 
B11: 3 | L11: 3 | N11: =IF(AND(K$2>0,M11>0),Calc_Emissions(),"") ->  | Q11: =IF(P11>0, Calc_Conversion(Q$6),"") ->  | T11: =IF(S11>0, Calc_Conversion(T$6),"") ->  | U11: 3 | W11: =IF(V11>0, Calc_Conversion(W$6),"") ->  | Z11: =IF(Y11>0, Calc_Conversion(Z$6),"") ->  | AA11: 3 | AC11: =IF(AB11>0, Calc_Conversion(AC$6),"") ->  | AF11: =IF(AND($A11<>"",AE11>0), AE11/($AG$3+$AI$3)*$AG$3, "") ->  | AG11: =IF(AE11>0, Calc_Conversion_elandheat(AG$4, AG$6, AG$4, AG$6, AI$4, AG$4), "") ->  | AH11: =IF(AND($A11<>"",AE11>0), AE11/($AG$3+$AI$3)*$AI$3, "") ->  | AI11: =IF(AE11>0, Calc_Conversion_elandheat(AI$4, 1, AI$4, AG$6, AG$4, AI$4), "") ->  | AL11: =IF(A11<>"",#REF!,"") ->  | AN11: =IF(A11<>"", IF(G11="Gas", IF(H11="kg", ((#REF!*Denscalc(I11) +#REF!+#REF!*Denscalc(I11)+#REF!)-F11), ( (#REF!+#REF!/Denscalc(I11) +#REF!+#REF!/Denscalc(I11))-F11)), ( (#REF!* Denscalc(I11)+#REF!+AL11+#REF!*Denscalc(I11)+#REF!+#REF!)-F11) ), "") -> 
B12: 4 | L12: 4 | N12: =IF(AND(K$2>0,M12>0),Calc_Emissions(),"") ->  | Q12: =IF(P12>0, Calc_Conversion(Q$6),"") ->  | T12: =IF(S12>0, Calc_Conversion(T$6),"") ->  | U12: 4 | W12: =IF(V12>0, Calc_Conversion(W$6),"") ->  | Z12: =IF(Y12>0, Calc_Conversion(Z$6),"") ->  | AA12: 4 | AC12: =IF(AB12>0, Calc_Conversion(AC$6),"") ->  | AG12: =IF(AE12>0, Calc_Conversion_elandheat(AG$4, AG$6, AG$4, AG$6, AI$4, AG$4), "") ->  | AI12: =IF(AE12>0, Calc_Conversion_elandheat(AI$4, 1, AI$4, AG$6, AG$4, AI$4), "") ->  | AL12: =IF(A12<>"",#REF!,"") ->  | AN12: =IF(A12<>"", IF(G12="Gas", IF(H12="kg", ((#REF!*Denscalc(I12) +#REF!+#REF!*Denscalc(I12)+#REF!)-F12), ( (#REF!+#REF!/Denscalc(I12) +#REF!+#REF!/Denscalc(I12))-F12)), ( (#REF!* Denscalc(I12)+#REF!+AL12+#REF!*Denscalc(I12)+#REF!+#REF!)-F12) ), "") -> 
B13: 5 | L13: 5 | N13: =IF(AND(K$2>0,M13>0),Calc_Emissions(),"") ->  | Q13: =IF(P13>0, Calc_Conversion(Q$6),"") ->  | T13: =IF(S13>0, Calc_Conversion(T$6),"") ->  | U13: 5 | W13: =IF(V13>0, Calc_Conversion(W$6),"") ->  | Z13: =IF(Y13>0, Calc_Conversion(Z$6),"") ->  | AA13: 5 | AC13: =IF(AB13>0, Calc_Conversion(AC$6),"") ->  | AG13: =IF(AE13>0, Calc_Conversion_elandheat(AG$4, AG$6, AG$4, AG$6, AI$4, AG$4), "") ->  | AI13: =IF(AE13>0, Calc_Conversion_elandheat(AI$4, 1, AI$4, AG$6, AG$4, AI$4), "") ->  | AL13: =IF(A13<>"",#REF!,"") ->  | AN13: =IF(A13<>"", IF(G13="Gas", IF(H13="kg", ((#REF!*Denscalc(I13) +#REF!+#REF!*Denscalc(I13)+#REF!)-F13), ( (#REF!+#REF!/Denscalc(I13) +#REF!+#REF!/Denscalc(I13))-F13)), ( (#REF!* Denscalc(I13)+#REF!+AL13+#REF!*Denscalc(I13)+#REF!+#REF!)-F13) ), "") -> 
B14: 6 | L14: 6 | N14: =IF(AND(K$2>0,M14>0),Calc_Emissions(),"") ->  | Q14: =IF(P14>0, Calc_Conversion(Q$6),"") ->  | T14: =IF(S14>0, Calc_Conversion(T$6),"") ->  | U14: 6 | W14: =IF(V14>0, Calc_Conversion(W$6),"") ->  | Z14: =IF(Y14>0, Calc_Conversion(Z$6),"") ->  | AA14: 6 | AC14: =IF(AB14>0, Calc_Conversion(AC$6),"") ->  | AG14: =IF(AE14>0, Calc_Conversion_elandheat(AG$4, AG$6, AG$4, AG$6, AI$4, AG$4), "") ->  | AI14: =IF(AE14>0, Calc_Conversion_elandheat(AI$4, 1, AI$4, AG$6, AG$4, AI$4), "") ->  | AL14: =IF(A14<>"",#REF!,"") ->  | AN14: =IF(A14<>"", IF(G14="Gas", IF(H14="kg", ((#REF!*Denscalc(I14) +#REF!+#REF!*Denscalc(I14)+#REF!)-F14), ( (#REF!+#REF!/Denscalc(I14) +#REF!+#REF!/Denscalc(I14))-F14)), ( (#REF!* Denscalc(I14)+#REF!+AL14+#REF!*Denscalc(I14)+#REF!+#REF!)-F14) ), "") -> 
B15: 7 | L15: 7 | N15: =IF(AND(K$2>0,M15>0),Calc_Emissions(),"") ->  | Q15: =IF(P15>0, Calc_Conversion(Q$6),"") ->  | T15: =IF(S15>0, Calc_Conversion(T$6),"") ->  | U15: 7 | W15: =IF(V15>0, Calc_Conversion(W$6),"") ->  | Z15: =IF(Y15>0, Calc_Conversion(Z$6),"") ->  | AA15: 7 | AC15: =IF(AB15>0, Calc_Conversion(AC$6),"") ->  | AG15: =IF(AE15>0, Calc_Conversion_elandheat(AG$4, AG$6, AG$4, AG$6, AI$4, AG$4), "") ->  | AI15: =IF(AE15>0, Calc_Conversion_elandheat(AI$4, 1, AI$4, AG$6, AG$4, AI$4), "") ->  | AL15: =IF(A15<>"",#REF!,"") -> 
B16: 8 | L16: 8 | N16: =IF(AND(K$2>0,M16>0),Calc_Emissions(),"") ->  | Q16: =IF(P16>0, Calc_Conversion(Q$6),"") ->  | T16: =IF(S16>0, Calc_Conversion(T$6),"") ->  | U16: 8 | W16: =IF(V16>0, Calc_Conversion(W$6),"") ->  | Z16: =IF(Y16>0, Calc_Conversion(Z$6),"") ->  | AA16: 8 | AC16: =IF(AB16>0, Calc_Conversion(AC$6),"") ->  | AG16: =IF(AE16>0, Calc_Conversion_elandheat(AG$4, AG$6, AG$4, AG$6, AI$4, AG$4), "") ->  | AI16: =IF(AE16>0, Calc_Conversion_elandheat(AI$4, 1, AI$4, AG$6, AG$4, AI$4), "") ->  | AL16: =IF(A16<>"",#REF!,"") ->  | AN16: =IF(A16<>"", IF(G16="Gas", IF(H16="kg", ((#REF!*Denscalc(I16) +#REF!+#REF!*Denscalc(I16)+#REF!)-F16), ( (#REF!+#REF!/Denscalc(I16) +#REF!+#REF!/Denscalc(I16))-F16)), ( (#REF!* Denscalc(I16)+#REF!+AL16+#REF!*Denscalc(I16)+#REF!+#REF!)-F16) ), "") -> 
B17: 9 | L17: 9 | N17: =IF(AND(K$2>0,M17>0),Calc_Emissions(),"") ->  | Q17: =IF(P17>0, Calc_Conversion(Q$6),"") ->  | T17: =IF(S17>0, Calc_Conversion(T$6),"") ->  | U17: 9 | W17: =IF(V17>0, Calc_Conversion(W$6),"") ->  | Z17: =IF(Y17>0, Calc_Conversion(Z$6),"") ->  | AA17: 9 | AC17: =IF(AB17>0, Calc_Conversion(AC$6),"") ->  | AG17: =IF(AE17>0, Calc_Conversion_elandheat(AG$4, AG$6, AG$4, AG$6, AI$4, AG$4), "") ->  | AI17: =IF(AE17>0, Calc_Conversion_elandheat(AI$4, 1, AI$4, AG$6, AG$4, AI$4), "") ->  | AL17: =IF(A17<>"",#REF!,"") ->  | AN17: =IF(A17<>"", IF(G17="Gas", IF(H17="kg", ((#REF!*Denscalc(I17) +#REF!+#REF!*Denscalc(I17)+#REF!)-F17), ( (#REF!+#REF!/Denscalc(I17) +#REF!+#REF!/Denscalc(I17))-F17)), ( (#REF!* Denscalc(I17)+#REF!+AL17+#REF!*Denscalc(I17)+#REF!+#REF!)-F17) ), "") -> 
B18: 10 | L18: 10 | N18: =IF(AND(K$2>0,M18>0),Calc_Emissions(),"") ->  | Q18: =IF(P18>0, Calc_Conversion(Q$6),"") ->  | T18: =IF(S18>0, Calc_Conversion(T$6),"") ->  | U18: 10 | W18: =IF(V18>0, Calc_Conversion(W$6),"") ->  | Z18: =IF(Y18>0, Calc_Conversion(Z$6),"") ->  | AA18: 10 | AC18: =IF(AB18>0, Calc_Conversion(AC$6),"") ->  | AG18: =IF(AE18>0, Calc_Conversion_elandheat(AG$4, AG$6, AG$4, AG$6, AI$4, AG$4), "") ->  | AI18: =IF(AE18>0, Calc_Conversion_elandheat(AI$4, 1, AI$4, AG$6, AG$4, AI$4), "") ->  | AL18: =IF(A18<>"",#REF!,"") ->  | AN18: =IF(A18<>"", IF(G18="Gas", IF(H18="kg", ((#REF!*Denscalc(I18) +#REF!+#REF!*Denscalc(I18)+#REF!)-F18), ( (#REF!+#REF!/Denscalc(I18) +#REF!+#REF!/Denscalc(I18))-F18)), ( (#REF!* Denscalc(I18)+#REF!+AL18+#REF!*Denscalc(I18)+#REF!+#REF!)-F18) ), "") -> 
B19: 11 | L19: 11 | N19: =IF(AND(K$2>0,M19>0),Calc_Emissions(),"") ->  | Q19: =IF(P19>0, Calc_Conversion(Q$6),"") ->  | T19: =IF(S19>0, Calc_Conversion(T$6),"") ->  | U19: 11 | W19: =IF(V19>0, Calc_Conversion(W$6),"") ->  | Z19: =IF(Y19>0, Calc_Conversion(Z$6),"") ->  | AA19: 11 | AC19: =IF(AB19>0, Calc_Conversion(AC$6),"") ->  | AG19: =IF(AE19>0, Calc_Conversion_elandheat(AG$4, AG$6, AG$4, AG$6, AI$4, AG$4), "") ->  | AI19: =IF(AE19>0, Calc_Conversion_elandheat(AI$4, 1, AI$4, AG$6, AG$4, AI$4), "") ->  | AL19: =IF(A19<>"",#REF!,"") ->  | AN19: =IF(A19<>"", IF(G19="Gas", IF(H19="kg", ((#REF!*Denscalc(I19) +#REF!+#REF!*Denscalc(I19)+#REF!)-F19), ( (#REF!+#REF!/Denscalc(I19) +#REF!+#REF!/Denscalc(I19))-F19)), ( (#REF!* Denscalc(I19)+#REF!+AL19+#REF!*Denscalc(I19)+#REF!+#REF!)-F19) ), "") -> 
B20: 12 | L20: 12 | N20: =IF(AND(K$2>0,M20>0),Calc_Emissions(),"") ->  | Q20: =IF(P20>0, Calc_Conversion(Q$6),"") ->  | T20: =IF(S20>0, Calc_Conversion(T$6),"") ->  | U20: 12 | W20: =IF(V20>0, Calc_Conversion(W$6),"") ->  | Z20: =IF(Y20>0, Calc_Conversion(Z$6),"") ->  | AA20: 12 | AC20: =IF(AB20>0, Calc_Conversion(AC$6),"") ->  | AG20: =IF(AE20>0, Calc_Conversion_elandheat(AG$4, AG$6, AG$4, AG$6, AI$4, AG$4), "") ->  | AI20: =IF(AE20>0, Calc_Conversion_elandheat(AI$4, 1, AI$4, AG$6, AG$4, AI$4), "") ->  | AL20: =IF(A20<>"",#REF!,"") ->  | AN20: =IF(A20<>"", IF(G20="Gas", IF(H20="kg", ((#REF!*Denscalc(I20) +#REF!+#REF!*Denscalc(I20)+#REF!)-F20), ( (#REF!+#REF!/Denscalc(I20) +#REF!+#REF!/Denscalc(I20))-F20)), ( (#REF!* Denscalc(I20)+#REF!+AL20+#REF!*Denscalc(I20)+#REF!+#REF!)-F20) ), "") -> 
B21: 13 | L21: 13 | N21: =IF(AND(K$2>0,M21>0),Calc_Emissions(),"") ->  | Q21: =IF(P21>0, Calc_Conversion(Q$6),"") ->  | T21: =IF(S21>0, Calc_Conversion(T$6),"") ->  | U21: 13 | W21: =IF(V21>0, Calc_Conversion(W$6),"") ->  | Z21: =IF(Y21>0, Calc_Conversion(Z$6),"") ->  | AA21: 13 | AC21: =IF(AB21>0, Calc_Conversion(AC$6),"") ->  | AG21: =IF(AE21>0, Calc_Conversion_elandheat(AG$4, AG$6, AG$4, AG$6, AI$4, AG$4), "") ->  | AI21: =IF(AE21>0, Calc_Conversion_elandheat(AI$4, 1, AI$4, AG$6, AG$4, AI$4), "") ->  | AL21: =IF(A21<>"",#REF!,"") ->  | AN21: =IF(A21<>"", IF(G21="Gas", IF(H21="kg", ((#REF!*Denscalc(I21) +#REF!+#REF!*Denscalc(I21)+#REF!)-F21), ( (#REF!+#REF!/Denscalc(I21) +#REF!+#REF!/Denscalc(I21))-F21)), ( (#REF!* Denscalc(I21)+#REF!+AL21+#REF!*Denscalc(I21)+#REF!+#REF!)-F21) ), "") -> 
B22: 14 | L22: 14 | N22: =IF(AND(K$2>0,M22>0),Calc_Emissions(),"") ->  | Q22: =IF(P22>0, Calc_Conversion(Q$6),"") ->  | T22: =IF(S22>0, Calc_Conversion(T$6),"") ->  | U22: 14 | W22: =IF(V22>0, Calc_Conversion(W$6),"") ->  | Z22: =IF(Y22>0, Calc_Conversion(Z$6),"") ->  | AA22: 14 | AC22: =IF(AB22>0, Calc_Conversion(AC$6),"") ->  | AG22: =IF(AE22>0, Calc_Conversion_elandheat(AG$4, AG$6, AG$4, AG$6, AI$4, AG$4), "") ->  | AI22: =IF(AE22>0, Calc_Conversion_elandheat(AI$4, 1, AI$4, AG$6, AG$4, AI$4), "") ->  | AL22: =IF(A22<>"",#REF!,"") ->  | AN22: =IF(A22<>"", IF(G22="Gas", IF(H22="kg", ((#REF!*Denscalc(I22) +#REF!+#REF!*Denscalc(I22)+#REF!)-F22), ( (#REF!+#REF!/Denscalc(I22) +#REF!+#REF!/Denscalc(I22))-F22)), ( (#REF!* Denscalc(I22)+#REF!+AL22+#REF!*Denscalc(I22)+#REF!+#REF!)-F22) ), "") -> 
B23: 15 | L23: 15 | N23: =IF(AND(K$2>0,M23>0),Calc_Emissions(),"") ->  | Q23: =IF(P23>0, Calc_Conversion(Q$6),"") ->  | T23: =IF(S23>0, Calc_Conversion(T$6),"") ->  | U23: 15 | W23: =IF(V23>0, Calc_Conversion(W$6),"") ->  | Z23: =IF(Y23>0, Calc_Conversion(Z$6),"") ->  | AA23: 15 | AC23: =IF(AB23>0, Calc_Conversion(AC$6),"") ->  | AG23: =IF(AE23>0, Calc_Conversion_elandheat(AG$4, AG$6, AG$4, AG$6, AI$4, AG$4), "") ->  | AI23: =IF(AE23>0, Calc_Conversion_elandheat(AI$4, 1, AI$4, AG$6, AG$4, AI$4), "") ->  | AL23: =IF(A23<>"",#REF!,"") ->  | AN23: =IF(A23<>"", IF(G23="Gas", IF(H23="kg", ((#REF!*Denscalc(I23) +#REF!+#REF!*Denscalc(I23)+#REF!)-F23), ( (#REF!+#REF!/Denscalc(I23) +#REF!+#REF!/Denscalc(I23))-F23)), ( (#REF!* Denscalc(I23)+#REF!+AL23+#REF!*Denscalc(I23)+#REF!+#REF!)-F23) ), "") -> 
B24: 16 | L24: 16 | N24: =IF(AND(K$2>0,M24>0),Calc_Emissions(),"") ->  | Q24: =IF(P24>0, Calc_Conversion(Q$6),"") ->  | T24: =IF(S24>0, Calc_Conversion(T$6),"") ->  | U24: 16 | W24: =IF(V24>0, Calc_Conversion(W$6),"") ->  | Z24: =IF(Y24>0, Calc_Conversion(Z$6),"") ->  | AA24: 16 | AC24: =IF(AB24>0, Calc_Conversion(AC$6),"") ->  | AG24: =IF(AE24>0, Calc_Conversion_elandheat(AG$4, AG$6, AG$4, AG$6, AI$4, AG$4), "") ->  | AI24: =IF(AE24>0, Calc_Conversion_elandheat(AI$4, 1, AI$4, AG$6, AG$4, AI$4), "") ->  | AK24: =IF(A24<>"", (P24+S24+V24+Y24+AB24+AE24)-F24, "") ->  | AL24: =IF(A24<>"",#REF!,"") ->  | AN24: =IF(A24<>"", IF(G24="Gas", IF(H24="kg", ((#REF!*Denscalc(I24) +#REF!+#REF!*Denscalc(I24)+#REF!)-F24), ( (#REF!+#REF!/Denscalc(I24) +#REF!+#REF!/Denscalc(I24))-F24)), ( (#REF!* Denscalc(I24)+#REF!+AL24+#REF!*Denscalc(I24)+#REF!+#REF!)-F24) ), "") -> 
B25: 17 | L25: 17 | N25: =IF(AND(K$2>0,M25>0),Calc_Emissions(),"") ->  | Q25: =IF(P25>0, Calc_Conversion(Q$6),"") ->  | T25: =IF(S25>0, Calc_Conversion(T$6),"") ->  | U25: 17 | W25: =IF(V25>0, Calc_Conversion(W$6),"") ->  | Z25: =IF(Y25>0, Calc_Conversion(Z$6),"") ->  | AA25: 17 | AC25: =IF(AB25>0, Calc_Conversion(AC$6),"") ->  | AG25: =IF(AE25>0, Calc_Conversion_elandheat(AG$4, AG$6, AG$4, AG$6, AI$4, AG$4), "") ->  | AI25: =IF(AE25>0, Calc_Conversion_elandheat(AI$4, 1, AI$4, AG$6, AG$4, AI$4), "") ->  | AL25: =IF(A25<>"",#REF!,"") ->  | AN25: =IF(A25<>"", IF(G25="Gas", IF(H25="kg", ((#REF!*Denscalc(I25) +#REF!+#REF!*Denscalc(I25)+#REF!)-F25), ( (#REF!+#REF!/Denscalc(I25) +#REF!+#REF!/Denscalc(I25))-F25)), ( (#REF!* Denscalc(I25)+#REF!+AL25+#REF!*Denscalc(I25)+#REF!+#REF!)-F25) ), "") -> 
B26: 18 | L26: 18 | N26: =IF(AND(K$2>0,M26>0),Calc_Emissions(),"") ->  | Q26: =IF(P26>0, Calc_Conversion(Q$6),"") ->  | T26: =IF(S26>0, Calc_Conversion(T$6),"") ->  | U26: 18 | W26: =IF(V26>0, Calc_Conversion(W$6),"") ->  | Z26: =IF(Y26>0, Calc_Conversion(Z$6),"") ->  | AA26: 18 | AC26: =IF(AB26>0, Calc_Conversion(AC$6),"") ->  | AG26: =IF(AE26>0, Calc_Conversion_elandheat(AG$4, AG$6, AG$4, AG$6, AI$4, AG$4), "") ->  | AI26: =IF(AE26>0, Calc_Conversion_elandheat(AI$4, 1, AI$4, AG$6, AG$4, AI$4), "") ->  | AL26: =IF(A26<>"",#REF!,"") ->  | AN26: =IF(A26<>"", IF(G26="Gas", IF(H26="kg", ((#REF!*Denscalc(I26) +#REF!+#REF!*Denscalc(I26)+#REF!)-F26), ( (#REF!+#REF!/Denscalc(I26) +#REF!+#REF!/Denscalc(I26))-F26)), ( (#REF!* Denscalc(I26)+#REF!+AL26+#REF!*Denscalc(I26)+#REF!+#REF!)-F26) ), "") -> 
B27: 19 | L27: 19 | N27: =IF(AND(K$2>0,M27>0),Calc_Emissions(),"") ->  | Q27: =IF(P27>0, Calc_Conversion(Q$6),"") ->  | T27: =IF(S27>0, Calc_Conversion(T$6),"") ->  | U27: 19 | W27: =IF(V27>0, Calc_Conversion(W$6),"") ->  | Z27: =IF(Y27>0, Calc_Conversion(Z$6),"") ->  | AA27: 19 | AC27: =IF(AB27>0, Calc_Conversion(AC$6),"") ->  | AG27: =IF(AE27>0, Calc_Conversion_elandheat(AG$4, AG$6, AG$4, AG$6, AI$4, AG$4), "") ->  | AI27: =IF(AE27>0, Calc_Conversion_elandheat(AI$4, 1, AI$4, AG$6, AG$4, AI$4), "") ->  | AL27: =IF(A27<>"",#REF!,"") ->  | AN27: =IF(A27<>"", IF(G27="Gas", IF(H27="kg", ((#REF!*Denscalc(I27) +#REF!+#REF!*Denscalc(I27)+#REF!)-F27), ( (#REF!+#REF!/Denscalc(I27) +#REF!+#REF!/Denscalc(I27))-F27)), ( (#REF!* Denscalc(I27)+#REF!+AL27+#REF!*Denscalc(I27)+#REF!+#REF!)-F27) ), "") -> 
B28: 20 | L28: 20 | N28: =IF(AND(K$2>0,M28>0),Calc_Emissions(),"") ->  | Q28: =IF(P28>0, Calc_Conversion(Q$6),"") ->  | T28: =IF(S28>0, Calc_Conversion(T$6),"") ->  | U28: 20 | W28: =IF(V28>0, Calc_Conversion(W$6),"") ->  | Z28: =IF(Y28>0, Calc_Conversion(Z$6),"") ->  | AA28: 20 | AC28: =IF(AB28>0, Calc_Conversion(AC$6),"") ->  | AG28: =IF(AE28>0, Calc_Conversion_elandheat(AG$4, AG$6, AG$4, AG$6, AI$4, AG$4), "") ->  | AI28: =IF(AE28>0, Calc_Conversion_elandheat(AI$4, 1, AI$4, AG$6, AG$4, AI$4), "") ->  | AL28: =IF(A28<>"",#REF!,"") ->  | AN28: =IF(A28<>"", IF(G28="Gas", IF(H28="kg", ((#REF!*Denscalc(I28) +#REF!+#REF!*Denscalc(I28)+#REF!)-F28), ( (#REF!+#REF!/Denscalc(I28) +#REF!+#REF!/Denscalc(I28))-F28)), ( (#REF!* Denscalc(I28)+#REF!+AL28+#REF!*Denscalc(I28)+#REF!+#REF!)-F28) ), "") -> 
B29: 21 | L29: 21 | N29: =IF(AND(K$2>0,M29>0),Calc_Emissions(),"") ->  | Q29: =IF(P29>0, Calc_Conversion(Q$6),"") ->  | T29: =IF(S29>0, Calc_Conversion(T$6),"") ->  | U29: 21 | W29: =IF(V29>0, Calc_Conversion(W$6),"") ->  | Z29: =IF(Y29>0, Calc_Conversion(Z$6),"") ->  | AA29: 21 | AC29: =IF(AB29>0, Calc_Conversion(AC$6),"") ->  | AG29: =IF(AE29>0, Calc_Conversion_elandheat(AG$4, AG$6, AG$4, AG$6, AI$4, AG$4), "") ->  | AI29: =IF(AE29>0, Calc_Conversion_elandheat(AI$4, 1, AI$4, AG$6, AG$4, AI$4), "") ->  | AL29: =IF(A29<>"",#REF!,"") ->  | AN29: =IF(A29<>"", IF(G29="Gas", IF(H29="kg", ((#REF!*Denscalc(I29) +#REF!+#REF!*Denscalc(I29)+#REF!)-F29), ( (#REF!+#REF!/Denscalc(I29) +#REF!+#REF!/Denscalc(I29))-F29)), ( (#REF!* Denscalc(I29)+#REF!+AL29+#REF!*Denscalc(I29)+#REF!+#REF!)-F29) ), "") -> 
B30: 22 | L30: 22 | N30: =IF(AND(K$2>0,M30>0),Calc_Emissions(),"") ->  | Q30: =IF(P30>0, Calc_Conversion(Q$6),"") ->  | T30: =IF(S30>0, Calc_Conversion(T$6),"") ->  | U30: 22 | W30: =IF(V30>0, Calc_Conversion(W$6),"") ->  | Z30: =IF(Y30>0, Calc_Conversion(Z$6),"") ->  | AA30: 22 | AC30: =IF(AB30>0, Calc_Conversion(AC$6),"") ->  | AG30: =IF(AE30>0, Calc_Conversion_elandheat(AG$4, AG$6, AG$4, AG$6, AI$4, AG$4), "") ->  | AI30: =IF(AE30>0, Calc_Conversion_elandheat(AI$4, 1, AI$4, AG$6, AG$4, AI$4), "") ->  | AL30: =IF(A30<>"",#REF!,"") ->  | AN30: =IF(A30<>"", IF(G30="Gas", IF(H30="kg", ((#REF!*Denscalc(I30) +#REF!+#REF!*Denscalc(I30)+#REF!)-F30), ( (#REF!+#REF!/Denscalc(I30) +#REF!+#REF!/Denscalc(I30))-F30)), ( (#REF!* Denscalc(I30)+#REF!+AL30+#REF!*Denscalc(I30)+#REF!+#REF!)-F30) ), "") -> 
B31: 23 | L31: 23 | N31: =IF(AND(K$2>0,M31>0),Calc_Emissions(),"") ->  | Q31: =IF(P31>0, Calc_Conversion(Q$6),"") ->  | T31: =IF(S31>0, Calc_Conversion(T$6),"") ->  | U31: 23 | W31: =IF(V31>0, Calc_Conversion(W$6),"") ->  | Z31: =IF(Y31>0, Calc_Conversion(Z$6),"") ->  | AA31: 23 | AC31: =IF(AB31>0, Calc_Conversion(AC$6),"") ->  | AG31: =IF(AE31>0, Calc_Conversion_elandheat(AG$4, AG$6, AG$4, AG$6, AI$4, AG$4), "") ->  | AI31: =IF(AE31>0, Calc_Conversion_elandheat(AI$4, 1, AI$4, AG$6, AG$4, AI$4), "") ->  | AL31: =IF(A31<>"",#REF!,"") ->  | AN31: =IF(A31<>"", IF(G31="Gas", IF(H31="kg", ((#REF!*Denscalc(I31) +#REF!+#REF!*Denscalc(I31)+#REF!)-F31), ( (#REF!+#REF!/Denscalc(I31) +#REF!+#REF!/Denscalc(I31))-F31)), ( (#REF!* Denscalc(I31)+#REF!+AL31+#REF!*Denscalc(I31)+#REF!+#REF!)-F31) ), "") -> 
B32: 24 | L32: 24 | N32: =IF(AND(K$2>0,M32>0),Calc_Emissions(),"") ->  | Q32: =IF(P32>0, Calc_Conversion(Q$6),"") ->  | T32: =IF(S32>0, Calc_Conversion(T$6),"") ->  | U32: 24 | W32: =IF(V32>0, Calc_Conversion(W$6),"") ->  | Z32: =IF(Y32>0, Calc_Conversion(Z$6),"") ->  | AA32: 24 | AC32: =IF(AB32>0, Calc_Conversion(AC$6),"") ->  | AG32: =IF(AE32>0, Calc_Conversion_elandheat(AG$4, AG$6, AG$4, AG$6, AI$4, AG$4), "") ->  | AI32: =IF(AE32>0, Calc_Conversion_elandheat(AI$4, 1, AI$4, AG$6, AG$4, AI$4), "") ->  | AL32: =IF(A32<>"",#REF!,"") ->  | AN32: =IF(A32<>"", IF(G32="Gas", IF(H32="kg", ((#REF!*Denscalc(I32) +#REF!+#REF!*Denscalc(I32)+#REF!)-F32), ( (#REF!+#REF!/Denscalc(I32) +#REF!+#REF!/Denscalc(I32))-F32)), ( (#REF!* Denscalc(I32)+#REF!+AL32+#REF!*Denscalc(I32)+#REF!+#REF!)-F32) ), "") -> 
B33: 25 | L33: 25 | N33: =IF(AND(K$2>0,M33>0),Calc_Emissions(),"") ->  | Q33: =IF(P33>0, Calc_Conversion(Q$6),"") ->  | T33: =IF(S33>0, Calc_Conversion(T$6),"") ->  | U33: 25 | W33: =IF(V33>0, Calc_Conversion(W$6),"") ->  | Z33: =IF(Y33>0, Calc_Conversion(Z$6),"") ->  | AA33: 25 | AC33: =IF(AB33>0, Calc_Conversion(AC$6),"") ->  | AG33: =IF(AE33>0, Calc_Conversion_elandheat(AG$4, AG$6, AG$4, AG$6, AI$4, AG$4), "") ->  | AI33: =IF(AE33>0, Calc_Conversion_elandheat(AI$4, 1, AI$4, AG$6, AG$4, AI$4), "") ->  | AL33: =IF(A33<>"",#REF!,"") ->  | AN33: =IF(A33<>"", IF(G33="Gas", IF(H33="kg", ((#REF!*Denscalc(I33) +#REF!+#REF!*Denscalc(I33)+#REF!)-F33), ( (#REF!+#REF!/Denscalc(I33) +#REF!+#REF!/Denscalc(I33))-F33)), ( (#REF!* Denscalc(I33)+#REF!+AL33+#REF!*Denscalc(I33)+#REF!+#REF!)-F33) ), "") -> 
B34: 26 | L34: 26 | N34: =IF(AND(K$2>0,M34>0),Calc_Emissions(),"") ->  | Q34: =IF(P34>0, Calc_Conversion(Q$6),"") ->  | T34: =IF(S34>0, Calc_Conversion(T$6),"") ->  | U34: 26 | W34: =IF(V34>0, Calc_Conversion(W$6),"") ->  | Z34: =IF(Y34>0, Calc_Conversion(Z$6),"") ->  | AA34: 26 | AC34: =IF(AB34>0, Calc_Conversion(AC$6),"") ->  | AG34: =IF(AE34>0, Calc_Conversion_elandheat(AG$4, AG$6, AG$4, AG$6, AI$4, AG$4), "") ->  | AI34: =IF(AE34>0, Calc_Conversion_elandheat(AI$4, 1, AI$4, AG$6, AG$4, AI$4), "") ->  | AL34: =IF(A34<>"",#REF!,"") ->  | AN34: =IF(A34<>"", IF(G34="Gas", IF(H34="kg", ((#REF!*Denscalc(I34) +#REF!+#REF!*Denscalc(I34)+#REF!)-F34), ( (#REF!+#REF!/Denscalc(I34) +#REF!+#REF!/Denscalc(I34))-F34)), ( (#REF!* Denscalc(I34)+#REF!+AL34+#REF!*Denscalc(I34)+#REF!+#REF!)-F34) ), "") -> 
B35: 27 | L35: 27 | N35: =IF(AND(K$2>0,M35>0),Calc_Emissions(),"") ->  | Q35: =IF(P35>0, Calc_Conversion(Q$6),"") ->  | T35: =IF(S35>0, Calc_Conversion(T$6),"") ->  | U35: 27 | W35: =IF(V35>0, Calc_Conversion(W$6),"") ->  | Z35: =IF(Y35>0, Calc_Conversion(Z$6),"") ->  | AA35: 27 | AC35: =IF(AB35>0, Calc_Conversion(AC$6),"") ->  | AG35: =IF(AE35>0, Calc_Conversion_elandheat(AG$4, AG$6, AG$4, AG$6, AI$4, AG$4), "") ->  | AI35: =IF(AE35>0, Calc_Conversion_elandheat(AI$4, 1, AI$4, AG$6, AG$4, AI$4), "") ->  | AL35: =IF(A35<>"",#REF!,"") ->  | AN35: =IF(A35<>"", IF(G35="Gas", IF(H35="kg", ((#REF!*Denscalc(I35) +#REF!+#REF!*Denscalc(I35)+#REF!)-F35), ( (#REF!+#REF!/Denscalc(I35) +#REF!+#REF!/Denscalc(I35))-F35)), ( (#REF!* Denscalc(I35)+#REF!+AL35+#REF!*Denscalc(I35)+#REF!+#REF!)-F35) ), "") -> 
B36: 28 | L36: 28 | N36: =IF(AND(K$2>0,M36>0),Calc_Emissions(),"") ->  | Q36: =IF(P36>0, Calc_Conversion(Q$6),"") ->  | T36: =IF(S36>0, Calc_Conversion(T$6),"") ->  | U36: 28 | W36: =IF(V36>0, Calc_Conversion(W$6),"") ->  | Z36: =IF(Y36>0, Calc_Conversion(Z$6),"") ->  | AA36: 28 | AC36: =IF(AB36>0, Calc_Conversion(AC$6),"") ->  | AG36: =IF(AE36>0, Calc_Conversion_elandheat(AG$4, AG$6, AG$4, AG$6, AI$4, AG$4), "") ->  | AI36: =IF(AE36>0, Calc_Conversion_elandheat(AI$4, 1, AI$4, AG$6, AG$4, AI$4), "") ->  | AL36: =IF(A36<>"",#REF!,"") ->  | AN36: =IF(A36<>"", IF(G36="Gas", IF(H36="kg", ((#REF!*Denscalc(I36) +#REF!+#REF!*Denscalc(I36)+#REF!)-F36), ( (#REF!+#REF!/Denscalc(I36) +#REF!+#REF!/Denscalc(I36))-F36)), ( (#REF!* Denscalc(I36)+#REF!+AL36+#REF!*Denscalc(I36)+#REF!+#REF!)-F36) ), "") -> 
B37: 29 | L37: 29 | N37: =IF(AND(K$2>0,M37>0),Calc_Emissions(),"") ->  | Q37: =IF(P37>0, Calc_Conversion(Q$6),"") ->  | T37: =IF(S37>0, Calc_Conversion(T$6),"") ->  | U37: 29 | W37: =IF(V37>0, Calc_Conversion(W$6),"") ->  | Z37: =IF(Y37>0, Calc_Conversion(Z$6),"") ->  | AA37: 29 | AC37: =IF(AB37>0, Calc_Conversion(AC$6),"") ->  | AG37: =IF(AE37>0, Calc_Conversion_elandheat(AG$4, AG$6, AG$4, AG$6, AI$4, AG$4), "") ->  | AI37: =IF(AE37>0, Calc_Conversion_elandheat(AI$4, 1, AI$4, AG$6, AG$4, AI$4), "") ->  | AL37: =IF(A37<>"",#REF!,"") ->  | AN37: =IF(A37<>"", IF(G37="Gas", IF(H37="kg", ((#REF!*Denscalc(I37) +#REF!+#REF!*Denscalc(I37)+#REF!)-F37), ( (#REF!+#REF!/Denscalc(I37) +#REF!+#REF!/Denscalc(I37))-F37)), ( (#REF!* Denscalc(I37)+#REF!+AL37+#REF!*Denscalc(I37)+#REF!+#REF!)-F37) ), "") -> 
B38: 30 | L38: 30 | N38: =IF(AND(K$2>0,M38>0),Calc_Emissions(),"") ->  | Q38: =IF(P38>0, Calc_Conversion(Q$6),"") ->  | T38: =IF(S38>0, Calc_Conversion(T$6),"") ->  | U38: 30 | W38: =IF(V38>0, Calc_Conversion(W$6),"") ->  | Z38: =IF(Y38>0, Calc_Conversion(Z$6),"") ->  | AA38: 30 | AC38: =IF(AB38>0, Calc_Conversion(AC$6),"") ->  | AG38: =IF(AE38>0, Calc_Conversion_elandheat(AG$4, AG$6, AG$4, AG$6, AI$4, AG$4), "") ->  | AI38: =IF(AE38>0, Calc_Conversion_elandheat(AI$4, 1, AI$4, AG$6, AG$4, AI$4), "") ->  | AL38: =IF(A38<>"",#REF!,"") ->  | AN38: =IF(A38<>"", IF(G38="Gas", IF(H38="kg", ((#REF!*Denscalc(I38) +#REF!+#REF!*Denscalc(I38)+#REF!)-F38), ( (#REF!+#REF!/Denscalc(I38) +#REF!+#REF!/Denscalc(I38))-F38)), ( (#REF!* Denscalc(I38)+#REF!+AL38+#REF!*Denscalc(I38)+#REF!+#REF!)-F38) ), "") -> 
B39: 31 | L39: 31 | N39: =IF(AND(K$2>0,M39>0),Calc_Emissions(),"") ->  | Q39: =IF(P39>0, Calc_Conversion(Q$6),"") ->  | T39: =IF(S39>0, Calc_Conversion(T$6),"") ->  | U39: 31 | W39: =IF(V39>0, Calc_Conversion(W$6),"") ->  | Z39: =IF(Y39>0, Calc_Conversion(Z$6),"") ->  | AA39: 31 | AC39: =IF(AB39>0, Calc_Conversion(AC$6),"") ->  | AG39: =IF(AE39>0, Calc_Conversion_elandheat(AG$4, AG$6, AG$4, AG$6, AI$4, AG$4), "") ->  | AI39: =IF(AE39>0, Calc_Conversion_elandheat(AI$4, 1, AI$4, AG$6, AG$4, AI$4), "") ->  | AL39: =IF(A39<>"",#REF!,"") ->  | AN39: =IF(A39<>"", IF(G39="Gas", IF(H39="kg", ((#REF!*Denscalc(I39) +#REF!+#REF!*Denscalc(I39)+#REF!)-F39), ( (#REF!+#REF!/Denscalc(I39) +#REF!+#REF!/Denscalc(I39))-F39)), ( (#REF!* Denscalc(I39)+#REF!+AL39+#REF!*Denscalc(I39)+#REF!+#REF!)-F39) ), "") -> 
B40: 32 | L40: 32 | N40: =IF(AND(K$2>0,M40>0),Calc_Emissions(),"") ->  | Q40: =IF(P40>0, Calc_Conversion(Q$6),"") ->  | T40: =IF(S40>0, Calc_Conversion(T$6),"") ->  | U40: 32 | W40: =IF(V40>0, Calc_Conversion(W$6),"") ->  | Z40: =IF(Y40>0, Calc_Conversion(Z$6),"") ->  | AA40: 32 | AC40: =IF(AB40>0, Calc_Conversion(AC$6),"") ->  | AG40: =IF(AE40>0, Calc_Conversion_elandheat(AG$4, AG$6, AG$4, AG$6, AI$4, AG$4), "") ->  | AI40: =IF(AE40>0, Calc_Conversion_elandheat(AI$4, 1, AI$4, AG$6, AG$4, AI$4), "") ->  | AL40: =IF(A40<>"",#REF!,"") ->  | AN40: =IF(A40<>"", IF(G40="Gas", IF(H40="kg", ((#REF!*Denscalc(I40) +#REF!+#REF!*Denscalc(I40)+#REF!)-F40), ( (#REF!+#REF!/Denscalc(I40) +#REF!+#REF!/Denscalc(I40))-F40)), ( (#REF!* Denscalc(I40)+#REF!+AL40+#REF!*Denscalc(I40)+#REF!+#REF!)-F40) ), "") -> 
B41: 33 | L41: 33 | N41: =IF(AND(K$2>0,M41>0),Calc_Emissions(),"") ->  | Q41: =IF(P41>0, Calc_Conversion(Q$6),"") ->  | T41: =IF(S41>0, Calc_Conversion(T$6),"") ->  | U41: 33 | W41: =IF(V41>0, Calc_Conversion(W$6),"") ->  | Z41: =IF(Y41>0, Calc_Conversion(Z$6),"") ->  | AA41: 33 | AC41: =IF(AB41>0, Calc_Conversion(AC$6),"") ->  | AG41: =IF(AE41>0, Calc_Conversion_elandheat(AG$4, AG$6, AG$4, AG$6, AI$4, AG$4), "") ->  | AI41: =IF(AE41>0, Calc_Conversion_elandheat(AI$4, 1, AI$4, AG$6, AG$4, AI$4), "") ->  | AL41: =IF(A41<>"",#REF!,"") ->  | AN41: =IF(A41<>"", IF(G41="Gas", IF(H41="kg", ((#REF!*Denscalc(I41) +#REF!+#REF!*Denscalc(I41)+#REF!)-F41), ( (#REF!+#REF!/Denscalc(I41) +#REF!+#REF!/Denscalc(I41))-F41)), ( (#REF!* Denscalc(I41)+#REF!+AL41+#REF!*Denscalc(I41)+#REF!+#REF!)-F41) ), "") -> 
B42: 34 | L42: 34 | N42: =IF(AND(K$2>0,M42>0),Calc_Emissions(),"") ->  | Q42: =IF(P42>0, Calc_Conversion(Q$6),"") ->  | T42: =IF(S42>0, Calc_Conversion(T$6),"") ->  | U42: 34 | W42: =IF(V42>0, Calc_Conversion(W$6),"") ->  | Z42: =IF(Y42>0, Calc_Conversion(Z$6),"") ->  | AA42: 34 | AC42: =IF(AB42>0, Calc_Conversion(AC$6),"") ->  | AG42: =IF(AE42>0, Calc_Conversion_elandheat(AG$4, AG$6, AG$4, AG$6, AI$4, AG$4), "") ->  | AI42: =IF(AE42>0, Calc_Conversion_elandheat(AI$4, 1, AI$4, AG$6, AG$4, AI$4), "") ->  | AL42: =IF(A42<>"",#REF!,"") ->  | AN42: =IF(A42<>"", IF(G42="Gas", IF(H42="kg", ((#REF!*Denscalc(I42) +#REF!+#REF!*Denscalc(I42)+#REF!)-F42), ( (#REF!+#REF!/Denscalc(I42) +#REF!+#REF!/Denscalc(I42))-F42)), ( (#REF!* Denscalc(I42)+#REF!+AL42+#REF!*Denscalc(I42)+#REF!+#REF!)-F42) ), "") -> 
B43: 35 | L43: 35 | N43: =IF(AND(K$2>0,M43>0),Calc_Emissions(),"") ->  | Q43: =IF(P43>0, Calc_Conversion(Q$6),"") ->  | T43: =IF(S43>0, Calc_Conversion(T$6),"") ->  | U43: 35 | W43: =IF(V43>0, Calc_Conversion(W$6),"") ->  | Z43: =IF(Y43>0, Calc_Conversion(Z$6),"") ->  | AA43: 35 | AC43: =IF(AB43>0, Calc_Conversion(AC$6),"") ->  | AG43: =IF(AE43>0, Calc_Conversion_elandheat(AG$4, AG$6, AG$4, AG$6, AI$4, AG$4), "") ->  | AI43: =IF(AE43>0, Calc_Conversion_elandheat(AI$4, 1, AI$4, AG$6, AG$4, AI$4), "") ->  | AL43: =IF(A43<>"",#REF!,"") ->  | AN43: =IF(A43<>"", IF(G43="Gas", IF(H43="kg", ((#REF!*Denscalc(I43) +#REF!+#REF!*Denscalc(I43)+#REF!)-F43), ( (#REF!+#REF!/Denscalc(I43) +#REF!+#REF!/Denscalc(I43))-F43)), ( (#REF!* Denscalc(I43)+#REF!+AL43+#REF!*Denscalc(I43)+#REF!+#REF!)-F43) ), "") -> 
B44: 36 | L44: 36 | N44: =IF(AND(K$2>0,M44>0),Calc_Emissions(),"") ->  | Q44: =IF(P44>0, Calc_Conversion(Q$6),"") ->  | T44: =IF(S44>0, Calc_Conversion(T$6),"") ->  | U44: 36 | W44: =IF(V44>0, Calc_Conversion(W$6),"") ->  | Z44: =IF(Y44>0, Calc_Conversion(Z$6),"") ->  | AA44: 36 | AC44: =IF(AB44>0, Calc_Conversion(AC$6),"") ->  | AG44: =IF(AE44>0, Calc_Conversion_elandheat(AG$4, AG$6, AG$4, AG$6, AI$4, AG$4), "") ->  | AI44: =IF(AE44>0, Calc_Conversion_elandheat(AI$4, 1, AI$4, AG$6, AG$4, AI$4), "") ->  | AL44: =IF(A44<>"",#REF!,"") ->  | AN44: =IF(A44<>"", IF(G44="Gas", IF(H44="kg", ((#REF!*Denscalc(I44) +#REF!+#REF!*Denscalc(I44)+#REF!)-F44), ( (#REF!+#REF!/Denscalc(I44) +#REF!+#REF!/Denscalc(I44))-F44)), ( (#REF!* Denscalc(I44)+#REF!+AL44+#REF!*Denscalc(I44)+#REF!+#REF!)-F44) ), "") -> 
B45: 37 | L45: 37 | N45: =IF(AND(K$2>0,M45>0),Calc_Emissions(),"") ->  | Q45: =IF(P45>0, Calc_Conversion(Q$6),"") ->  | T45: =IF(S45>0, Calc_Conversion(T$6),"") ->  | U45: 37 | W45: =IF(V45>0, Calc_Conversion(W$6),"") ->  | Z45: =IF(Y45>0, Calc_Conversion(Z$6),"") ->  | AA45: 37 | AC45: =IF(AB45>0, Calc_Conversion(AC$6),"") ->  | AG45: =IF(AE45>0, Calc_Conversion_elandheat(AG$4, AG$6, AG$4, AG$6, AI$4, AG$4), "") ->  | AI45: =IF(AE45>0, Calc_Conversion_elandheat(AI$4, 1, AI$4, AG$6, AG$4, AI$4), "") ->  | AL45: =IF(A45<>"",#REF!,"") ->  | AN45: =IF(A45<>"", IF(G45="Gas", IF(H45="kg", ((#REF!*Denscalc(I45) +#REF!+#REF!*Denscalc(I45)+#REF!)-F45), ( (#REF!+#REF!/Denscalc(I45) +#REF!+#REF!/Denscalc(I45))-F45)), ( (#REF!* Denscalc(I45)+#REF!+AL45+#REF!*Denscalc(I45)+#REF!+#REF!)-F45) ), "") -> 
B46: 38 | L46: 38 | N46: =IF(AND(K$2>0,M46>0),Calc_Emissions(),"") ->  | Q46: =IF(P46>0, Calc_Conversion(Q$6),"") ->  | T46: =IF(S46>0, Calc_Conversion(T$6),"") ->  | U46: 38 | W46: =IF(V46>0, Calc_Conversion(W$6),"") ->  | Z46: =IF(Y46>0, Calc_Conversion(Z$6),"") ->  | AA46: 38 | AC46: =IF(AB46>0, Calc_Conversion(AC$6),"") ->  | AG46: =IF(AE46>0, Calc_Conversion_elandheat(AG$4, AG$6, AG$4, AG$6, AI$4, AG$4), "") ->  | AI46: =IF(AE46>0, Calc_Conversion_elandheat(AI$4, 1, AI$4, AG$6, AG$4, AI$4), "") ->  | AL46: =IF(A46<>"",#REF!,"") ->  | AN46: =IF(A46<>"", IF(G46="Gas", IF(H46="kg", ((#REF!*Denscalc(I46) +#REF!+#REF!*Denscalc(I46)+#REF!)-F46), ( (#REF!+#REF!/Denscalc(I46) +#REF!+#REF!/Denscalc(I46))-F46)), ( (#REF!* Denscalc(I46)+#REF!+AL46+#REF!*Denscalc(I46)+#REF!+#REF!)-F46) ), "") -> 
B47: 39 | L47: 39 | N47: =IF(AND(K$2>0,M47>0),Calc_Emissions(),"") ->  | Q47: =IF(P47>0, Calc_Conversion(Q$6),"") ->  | T47: =IF(S47>0, Calc_Conversion(T$6),"") ->  | U47: 39 | W47: =IF(V47>0, Calc_Conversion(W$6),"") ->  | Z47: =IF(Y47>0, Calc_Conversion(Z$6),"") ->  | AA47: 39 | AC47: =IF(AB47>0, Calc_Conversion(AC$6),"") ->  | AG47: =IF(AE47>0, Calc_Conversion_elandheat(AG$4, AG$6, AG$4, AG$6, AI$4, AG$4), "") ->  | AI47: =IF(AE47>0, Calc_Conversion_elandheat(AI$4, 1, AI$4, AG$6, AG$4, AI$4), "") ->  | AL47: =IF(A47<>"",#REF!,"") ->  | AN47: =IF(A47<>"", IF(G47="Gas", IF(H47="kg", ((#REF!*Denscalc(I47) +#REF!+#REF!*Denscalc(I47)+#REF!)-F47), ( (#REF!+#REF!/Denscalc(I47) +#REF!+#REF!/Denscalc(I47))-F47)), ( (#REF!* Denscalc(I47)+#REF!+AL47+#REF!*Denscalc(I47)+#REF!+#REF!)-F47) ), "") -> 
B48: 40 | L48: 40 | N48: =IF(AND(K$2>0,M48>0),Calc_Emissions(),"") ->  | Q48: =IF(P48>0, Calc_Conversion(Q$6),"") ->  | T48: =IF(S48>0, Calc_Conversion(T$6),"") ->  | U48: 40 | W48: =IF(V48>0, Calc_Conversion(W$6),"") ->  | Z48: =IF(Y48>0, Calc_Conversion(Z$6),"") ->  | AA48: 40 | AC48: =IF(AB48>0, Calc_Conversion(AC$6),"") ->  | AG48: =IF(AE48>0, Calc_Conversion_elandheat(AG$4, AG$6, AG$4, AG$6, AI$4, AG$4), "") ->  | AI48: =IF(AE48>0, Calc_Conversion_elandheat(AI$4, 1, AI$4, AG$6, AG$4, AI$4), "") ->  | AL48: =IF(A48<>"",#REF!,"") ->  | AN48: =IF(A48<>"", IF(G48="Gas", IF(H48="kg", ((#REF!*Denscalc(I48) +#REF!+#REF!*Denscalc(I48)+#REF!)-F48), ( (#REF!+#REF!/Denscalc(I48) +#REF!+#REF!/Denscalc(I48))-F48)), ( (#REF!* Denscalc(I48)+#REF!+AL48+#REF!*Denscalc(I48)+#REF!+#REF!)-F48) ), "") -> 
B49: 41 | L49: 41 | N49: =IF(AND(K$2>0,M49>0),Calc_Emissions(),"") ->  | Q49: =IF(P49>0, Calc_Conversion(Q$6),"") ->  | T49: =IF(S49>0, Calc_Conversion(T$6),"") ->  | U49: 41 | W49: =IF(V49>0, Calc_Conversion(W$6),"") ->  | Z49: =IF(Y49>0, Calc_Conversion(Z$6),"") ->  | AA49: 41 | AC49: =IF(AB49>0, Calc_Conversion(AC$6),"") ->  | AG49: =IF(AE49>0, Calc_Conversion_elandheat(AG$4, AG$6, AG$4, AG$6, AI$4, AG$4), "") ->  | AI49: =IF(AE49>0, Calc_Conversion_elandheat(AI$4, 1, AI$4, AG$6, AG$4, AI$4), "") ->  | AL49: =IF(A49<>"",#REF!,"") ->  | AN49: =IF(A49<>"", IF(G49="Gas", IF(H49="kg", ((#REF!*Denscalc(I49) +#REF!+#REF!*Denscalc(I49)+#REF!)-F49), ( (#REF!+#REF!/Denscalc(I49) +#REF!+#REF!/Denscalc(I49))-F49)), ( (#REF!* Denscalc(I49)+#REF!+AL49+#REF!*Denscalc(I49)+#REF!+#REF!)-F49) ), "") -> 
B50: 42 | L50: 42 | N50: =IF(AND(K$2>0,M50>0),Calc_Emissions(),"") ->  | Q50: =IF(P50>0, Calc_Conversion(Q$6),"") ->  | T50: =IF(S50>0, Calc_Conversion(T$6),"") ->  | U50: 42 | W50: =IF(V50>0, Calc_Conversion(W$6),"") ->  | Z50: =IF(Y50>0, Calc_Conversion(Z$6),"") ->  | AA50: 42 | AC50: =IF(AB50>0, Calc_Conversion(AC$6),"") ->  | AG50: =IF(AE50>0, Calc_Conversion_elandheat(AG$4, AG$6, AG$4, AG$6, AI$4, AG$4), "") ->  | AI50: =IF(AE50>0, Calc_Conversion_elandheat(AI$4, 1, AI$4, AG$6, AG$4, AI$4), "") ->  | AL50: =IF(A50<>"",#REF!,"") ->  | AN50: =IF(A50<>"", IF(G50="Gas", IF(H50="kg", ((#REF!*Denscalc(I50) +#REF!+#REF!*Denscalc(I50)+#REF!)-F50), ( (#REF!+#REF!/Denscalc(I50) +#REF!+#REF!/Denscalc(I50))-F50)), ( (#REF!* Denscalc(I50)+#REF!+AL50+#REF!*Denscalc(I50)+#REF!+#REF!)-F50) ), "") -> 
B51: 43 | L51: 43 | N51: =IF(AND(K$2>0,M51>0),Calc_Emissions(),"") ->  | Q51: =IF(P51>0, Calc_Conversion(Q$6),"") ->  | T51: =IF(S51>0, Calc_Conversion(T$6),"") ->  | U51: 43 | W51: =IF(V51>0, Calc_Conversion(W$6),"") ->  | Z51: =IF(Y51>0, Calc_Conversion(Z$6),"") ->  | AA51: 43 | AC51: =IF(AB51>0, Calc_Conversion(AC$6),"") ->  | AG51: =IF(AE51>0, Calc_Conversion_elandheat(AG$4, AG$6, AG$4, AG$6, AI$4, AG$4), "") ->  | AI51: =IF(AE51>0, Calc_Conversion_elandheat(AI$4, 1, AI$4, AG$6, AG$4, AI$4), "") ->  | AL51: =IF(A51<>"",#REF!,"") ->  | AN51: =IF(A51<>"", IF(G51="Gas", IF(H51="kg", ((#REF!*Denscalc(I51) +#REF!+#REF!*Denscalc(I51)+#REF!)-F51), ( (#REF!+#REF!/Denscalc(I51) +#REF!+#REF!/Denscalc(I51))-F51)), ( (#REF!* Denscalc(I51)+#REF!+AL51+#REF!*Denscalc(I51)+#REF!+#REF!)-F51) ), "") -> 
B52: 44 | L52: 44 | N52: =IF(AND(K$2>0,M52>0),Calc_Emissions(),"") ->  | Q52: =IF(P52>0, Calc_Conversion(Q$6),"") ->  | T52: =IF(S52>0, Calc_Conversion(T$6),"") ->  | U52: 44 | W52: =IF(V52>0, Calc_Conversion(W$6),"") ->  | Z52: =IF(Y52>0, Calc_Conversion(Z$6),"") ->  | AA52: 44 | AC52: =IF(AB52>0, Calc_Conversion(AC$6),"") ->  | AG52: =IF(AE52>0, Calc_Conversion_elandheat(AG$4, AG$6, AG$4, AG$6, AI$4, AG$4), "") ->  | AI52: =IF(AE52>0, Calc_Conversion_elandheat(AI$4, 1, AI$4, AG$6, AG$4, AI$4), "") ->  | AL52: =IF(A52<>"",#REF!,"") ->  | AN52: =IF(A52<>"", IF(G52="Gas", IF(H52="kg", ((#REF!*Denscalc(I52) +#REF!+#REF!*Denscalc(I52)+#REF!)-F52), ( (#REF!+#REF!/Denscalc(I52) +#REF!+#REF!/Denscalc(I52))-F52)), ( (#REF!* Denscalc(I52)+#REF!+AL52+#REF!*Denscalc(I52)+#REF!+#REF!)-F52) ), "") -> 
B53: 45 | L53: 45 | N53: =IF(AND(K$2>0,M53>0),Calc_Emissions(),"") ->  | Q53: =IF(P53>0, Calc_Conversion(Q$6),"") ->  | T53: =IF(S53>0, Calc_Conversion(T$6),"") ->  | U53: 45 | W53: =IF(V53>0, Calc_Conversion(W$6),"") ->  | Z53: =IF(Y53>0, Calc_Conversion(Z$6),"") ->  | AA53: 45 | AC53: =IF(AB53>0, Calc_Conversion(AC$6),"") ->  | AG53: =IF(AE53>0, Calc_Conversion_elandheat(AG$4, AG$6, AG$4, AG$6, AI$4, AG$4), "") ->  | AI53: =IF(AE53>0, Calc_Conversion_elandheat(AI$4, 1, AI$4, AG$6, AG$4, AI$4), "") ->  | AL53: =IF(A53<>"",#REF!,"") ->  | AN53: =IF(A53<>"", IF(G53="Gas", IF(H53="kg", ((#REF!*Denscalc(I53) +#REF!+#REF!*Denscalc(I53)+#REF!)-F53), ( (#REF!+#REF!/Denscalc(I53) +#REF!+#REF!/Denscalc(I53))-F53)), ( (#REF!* Denscalc(I53)+#REF!+AL53+#REF!*Denscalc(I53)+#REF!+#REF!)-F53) ), "") -> 
B54: 46 | L54: 46 | N54: =IF(AND(K$2>0,M54>0),Calc_Emissions(),"") ->  | Q54: =IF(P54>0, Calc_Conversion(Q$6),"") ->  | T54: =IF(S54>0, Calc_Conversion(T$6),"") ->  | U54: 46 | W54: =IF(V54>0, Calc_Conversion(W$6),"") ->  | Z54: =IF(Y54>0, Calc_Conversion(Z$6),"") ->  | AA54: 46 | AC54: =IF(AB54>0, Calc_Conversion(AC$6),"") ->  | AG54: =IF(AE54>0, Calc_Conversion_elandheat(AG$4, AG$6, AG$4, AG$6, AI$4, AG$4), "") ->  | AI54: =IF(AE54>0, Calc_Conversion_elandheat(AI$4, 1, AI$4, AG$6, AG$4, AI$4), "") ->  | AL54: =IF(A54<>"",#REF!,"") ->  | AN54: =IF(A54<>"", IF(G54="Gas", IF(H54="kg", ((#REF!*Denscalc(I54) +#REF!+#REF!*Denscalc(I54)+#REF!)-F54), ( (#REF!+#REF!/Denscalc(I54) +#REF!+#REF!/Denscalc(I54))-F54)), ( (#REF!* Denscalc(I54)+#REF!+AL54+#REF!*Denscalc(I54)+#REF!+#REF!)-F54) ), "") -> 
B55: 47 | L55: 47 | N55: =IF(AND(K$2>0,M55>0),Calc_Emissions(),"") ->  | Q55: =IF(P55>0, Calc_Conversion(Q$6),"") ->  | T55: =IF(S55>0, Calc_Conversion(T$6),"") ->  | U55: 47 | W55: =IF(V55>0, Calc_Conversion(W$6),"") ->  | Z55: =IF(Y55>0, Calc_Conversion(Z$6),"") ->  | AA55: 47 | AC55: =IF(AB55>0, Calc_Conversion(AC$6),"") ->  | AG55: =IF(AE55>0, Calc_Conversion_elandheat(AG$4, AG$6, AG$4, AG$6, AI$4, AG$4), "") ->  | AI55: =IF(AE55>0, Calc_Conversion_elandheat(AI$4, 1, AI$4, AG$6, AG$4, AI$4), "") ->  | AL55: =IF(A55<>"",#REF!,"") ->  | AN55: =IF(A55<>"", IF(G55="Gas", IF(H55="kg", ((#REF!*Denscalc(I55) +#REF!+#REF!*Denscalc(I55)+#REF!)-F55), ( (#REF!+#REF!/Denscalc(I55) +#REF!+#REF!/Denscalc(I55))-F55)), ( (#REF!* Denscalc(I55)+#REF!+AL55+#REF!*Denscalc(I55)+#REF!+#REF!)-F55) ), "") -> 
B56: 48 | L56: 48 | N56: =IF(AND(K$2>0,M56>0),Calc_Emissions(),"") ->  | Q56: =IF(P56>0, Calc_Conversion(Q$6),"") ->  | T56: =IF(S56>0, Calc_Conversion(T$6),"") ->  | U56: 48 | W56: =IF(V56>0, Calc_Conversion(W$6),"") ->  | Z56: =IF(Y56>0, Calc_Conversion(Z$6),"") ->  | AA56: 48 | AC56: =IF(AB56>0, Calc_Conversion(AC$6),"") ->  | AG56: =IF(AE56>0, Calc_Conversion_elandheat(AG$4, AG$6, AG$4, AG$6, AI$4, AG$4), "") ->  | AI56: =IF(AE56>0, Calc_Conversion_elandheat(AI$4, 1, AI$4, AG$6, AG$4, AI$4), "") ->  | AL56: =IF(A56<>"",#REF!,"") ->  | AN56: =IF(A56<>"", IF(G56="Gas", IF(H56="kg", ((#REF!*Denscalc(I56) +#REF!+#REF!*Denscalc(I56)+#REF!)-F56), ( (#REF!+#REF!/Denscalc(I56) +#REF!+#REF!/Denscalc(I56))-F56)), ( (#REF!* Denscalc(I56)+#REF!+AL56+#REF!*Denscalc(I56)+#REF!+#REF!)-F56) ), "") -> 
B57: 49 | L57: 49 | N57: =IF(AND(K$2>0,M57>0),Calc_Emissions(),"") ->  | Q57: =IF(P57>0, Calc_Conversion(Q$6),"") ->  | T57: =IF(S57>0, Calc_Conversion(T$6),"") ->  | U57: 49 | W57: =IF(V57>0, Calc_Conversion(W$6),"") ->  | Z57: =IF(Y57>0, Calc_Conversion(Z$6),"") ->  | AA57: 49 | AC57: =IF(AB57>0, Calc_Conversion(AC$6),"") ->  | AG57: =IF(AE57>0, Calc_Conversion_elandheat(AG$4, AG$6, AG$4, AG$6, AI$4, AG$4), "") ->  | AI57: =IF(AE57>0, Calc_Conversion_elandheat(AI$4, 1, AI$4, AG$6, AG$4, AI$4), "") ->  | AL57: =IF(A57<>"",#REF!,"") ->  | AN57: =IF(A57<>"", IF(G57="Gas", IF(H57="kg", ((#REF!*Denscalc(I57) +#REF!+#REF!*Denscalc(I57)+#REF!)-F57), ( (#REF!+#REF!/Denscalc(I57) +#REF!+#REF!/Denscalc(I57))-F57)), ( (#REF!* Denscalc(I57)+#REF!+AL57+#REF!*Denscalc(I57)+#REF!+#REF!)-F57) ), "") -> 
B58: 50 | L58: 50 | N58: =IF(AND(K$2>0,M58>0),Calc_Emissions(),"") ->  | Q58: =IF(P58>0, Calc_Conversion(Q$6),"") ->  | T58: =IF(S58>0, Calc_Conversion(T$6),"") ->  | U58: 50 | W58: =IF(V58>0, Calc_Conversion(W$6),"") ->  | Z58: =IF(Y58>0, Calc_Conversion(Z$6),"") ->  | AA58: 50 | AC58: =IF(AB58>0, Calc_Conversion(AC$6),"") ->  | AG58: =IF(AE58>0, Calc_Conversion_elandheat(AG$4, AG$6, AG$4, AG$6, AI$4, AG$4), "") ->  | AI58: =IF(AE58>0, Calc_Conversion_elandheat(AI$4, 1, AI$4, AG$6, AG$4, AI$4), "") ->  | AL58: =IF(A58<>"",#REF!,"") ->  | AN58: =IF(A58<>"", IF(G58="Gas", IF(H58="kg", ((#REF!*Denscalc(I58) +#REF!+#REF!*Denscalc(I58)+#REF!)-F58), ( (#REF!+#REF!/Denscalc(I58) +#REF!+#REF!/Denscalc(I58))-F58)), ( (#REF!* Denscalc(I58)+#REF!+AL58+#REF!*Denscalc(I58)+#REF!+#REF!)-F58) ), "") -> 
B59: 51 | L59: 51 | N59: =IF(AND(K$2>0,M59>0),Calc_Emissions(),"") ->  | Q59: =IF(P59>0, Calc_Conversion(Q$6),"") ->  | T59: =IF(S59>0, Calc_Conversion(T$6),"") ->  | U59: 51 | W59: =IF(V59>0, Calc_Conversion(W$6),"") ->  | Z59: =IF(Y59>0, Calc_Conversion(Z$6),"") ->  | AA59: 51 | AC59: =IF(AB59>0, Calc_Conversion(AC$6),"") ->  | AG59: =IF(AE59>0, Calc_Conversion_elandheat(AG$4, AG$6, AG$4, AG$6, AI$4, AG$4), "") ->  | AI59: =IF(AE59>0, Calc_Conversion_elandheat(AI$4, 1, AI$4, AG$6, AG$4, AI$4), "") ->  | AL59: =IF(A59<>"",#REF!,"") ->  | AN59: =IF(A59<>"", IF(G59="Gas", IF(H59="kg", ((#REF!*Denscalc(I59) +#REF!+#REF!*Denscalc(I59)+#REF!)-F59), ( (#REF!+#REF!/Denscalc(I59) +#REF!+#REF!/Denscalc(I59))-F59)), ( (#REF!* Denscalc(I59)+#REF!+AL59+#REF!*Denscalc(I59)+#REF!+#REF!)-F59) ), "") -> 
B60: 52 | L60: 52 | N60: =IF(AND(K$2>0,M60>0),Calc_Emissions(),"") ->  | Q60: =IF(P60>0, Calc_Conversion(Q$6),"") ->  | T60: =IF(S60>0, Calc_Conversion(T$6),"") ->  | U60: 52 | W60: =IF(V60>0, Calc_Conversion(W$6),"") ->  | Z60: =IF(Y60>0, Calc_Conversion(Z$6),"") ->  | AA60: 52 | AC60: =IF(AB60>0, Calc_Conversion(AC$6),"") ->  | AG60: =IF(AE60>0, Calc_Conversion_elandheat(AG$4, AG$6, AG$4, AG$6, AI$4, AG$4), "") ->  | AI60: =IF(AE60>0, Calc_Conversion_elandheat(AI$4, 1, AI$4, AG$6, AG$4, AI$4), "") ->  | AL60: =IF(A60<>"",#REF!,"") ->  | AN60: =IF(A60<>"", IF(G60="Gas", IF(H60="kg", ((#REF!*Denscalc(I60) +#REF!+#REF!*Denscalc(I60)+#REF!)-F60), ( (#REF!+#REF!/Denscalc(I60) +#REF!+#REF!/Denscalc(I60))-F60)), ( (#REF!* Denscalc(I60)+#REF!+AL60+#REF!*Denscalc(I60)+#REF!+#REF!)-F60) ), "") -> 
B61: 53 | L61: 53 | N61: =IF(AND(K$2>0,M61>0),Calc_Emissions(),"") ->  | Q61: =IF(P61>0, Calc_Conversion(Q$6),"") ->  | T61: =IF(S61>0, Calc_Conversion(T$6),"") ->  | U61: 53 | W61: =IF(V61>0, Calc_Conversion(W$6),"") ->  | Z61: =IF(Y61>0, Calc_Conversion(Z$6),"") ->  | AA61: 53 | AC61: =IF(AB61>0, Calc_Conversion(AC$6),"") ->  | AG61: =IF(AE61>0, Calc_Conversion_elandheat(AG$4, AG$6, AG$4, AG$6, AI$4, AG$4), "") ->  | AI61: =IF(AE61>0, Calc_Conversion_elandheat(AI$4, 1, AI$4, AG$6, AG$4, AI$4), "") ->  | AL61: =IF(A61<>"",#REF!,"") ->  | AN61: =IF(A61<>"", IF(G61="Gas", IF(H61="kg", ((#REF!*Denscalc(I61) +#REF!+#REF!*Denscalc(I61)+#REF!)-F61), ( (#REF!+#REF!/Denscalc(I61) +#REF!+#REF!/Denscalc(I61))-F61)), ( (#REF!* Denscalc(I61)+#REF!+AL61+#REF!*Denscalc(I61)+#REF!+#REF!)-F61) ), "") -> 
B62: 54 | L62: 54 | N62: =IF(AND(K$2>0,M62>0),Calc_Emissions(),"") ->  | Q62: =IF(P62>0, Calc_Conversion(Q$6),"") ->  | T62: =IF(S62>0, Calc_Conversion(T$6),"") ->  | U62: 54 | W62: =IF(V62>0, Calc_Conversion(W$6),"") ->  | Z62: =IF(Y62>0, Calc_Conversion(Z$6),"") ->  | AA62: 54 | AC62: =IF(AB62>0, Calc_Conversion(AC$6),"") ->  | AG62: =IF(AE62>0, Calc_Conversion_elandheat(AG$4, AG$6, AG$4, AG$6, AI$4, AG$4), "") ->  | AI62: =IF(AE62>0, Calc_Conversion_elandheat(AI$4, 1, AI$4, AG$6, AG$4, AI$4), "") ->  | AL62: =IF(A62<>"",#REF!,"") ->  | AN62: =IF(A62<>"", IF(G62="Gas", IF(H62="kg", ((#REF!*Denscalc(I62) +#REF!+#REF!*Denscalc(I62)+#REF!)-F62), ( (#REF!+#REF!/Denscalc(I62) +#REF!+#REF!/Denscalc(I62))-F62)), ( (#REF!* Denscalc(I62)+#REF!+AL62+#REF!*Denscalc(I62)+#REF!+#REF!)-F62) ), "") -> 
B63: 55 | L63: 55 | N63: =IF(AND(K$2>0,M63>0),Calc_Emissions(),"") ->  | Q63: =IF(P63>0, Calc_Conversion(Q$6),"") ->  | T63: =IF(S63>0, Calc_Conversion(T$6),"") ->  | U63: 55 | W63: =IF(V63>0, Calc_Conversion(W$6),"") ->  | Z63: =IF(Y63>0, Calc_Conversion(Z$6),"") ->  | AA63: 55 | AC63: =IF(AB63>0, Calc_Conversion(AC$6),"") ->  | AG63: =IF(AE63>0, Calc_Conversion_elandheat(AG$4, AG$6, AG$4, AG$6, AI$4, AG$4), "") ->  | AI63: =IF(AE63>0, Calc_Conversion_elandheat(AI$4, 1, AI$4, AG$6, AG$4, AI$4), "") ->  | AL63: =IF(A63<>"",#REF!,"") ->  | AN63: =IF(A63<>"", IF(G63="Gas", IF(H63="kg", ((#REF!*Denscalc(I63) +#REF!+#REF!*Denscalc(I63)+#REF!)-F63), ( (#REF!+#REF!/Denscalc(I63) +#REF!+#REF!/Denscalc(I63))-F63)), ( (#REF!* Denscalc(I63)+#REF!+AL63+#REF!*Denscalc(I63)+#REF!+#REF!)-F63) ), "") -> 
B64: 56 | L64: 56 | N64: =IF(AND(K$2>0,M64>0),Calc_Emissions(),"") ->  | Q64: =IF(P64>0, Calc_Conversion(Q$6),"") ->  | T64: =IF(S64>0, Calc_Conversion(T$6),"") ->  | U64: 56 | W64: =IF(V64>0, Calc_Conversion(W$6),"") ->  | Z64: =IF(Y64>0, Calc_Conversion(Z$6),"") ->  | AA64: 56 | AC64: =IF(AB64>0, Calc_Conversion(AC$6),"") ->  | AG64: =IF(AE64>0, Calc_Conversion_elandheat(AG$4, AG$6, AG$4, AG$6, AI$4, AG$4), "") ->  | AI64: =IF(AE64>0, Calc_Conversion_elandheat(AI$4, 1, AI$4, AG$6, AG$4, AI$4), "") ->  | AL64: =IF(A64<>"",#REF!,"") ->  | AN64: =IF(A64<>"", IF(G64="Gas", IF(H64="kg", ((#REF!*Denscalc(I64) +#REF!+#REF!*Denscalc(I64)+#REF!)-F64), ( (#REF!+#REF!/Denscalc(I64) +#REF!+#REF!/Denscalc(I64))-F64)), ( (#REF!* Denscalc(I64)+#REF!+AL64+#REF!*Denscalc(I64)+#REF!+#REF!)-F64) ), "") -> 
B65: 57 | L65: 57 | N65: =IF(AND(K$2>0,M65>0),Calc_Emissions(),"") ->  | Q65: =IF(P65>0, Calc_Conversion(Q$6),"") ->  | T65: =IF(S65>0, Calc_Conversion(T$6),"") ->  | U65: 57 | W65: =IF(V65>0, Calc_Conversion(W$6),"") ->  | Z65: =IF(Y65>0, Calc_Conversion(Z$6),"") ->  | AA65: 57 | AC65: =IF(AB65>0, Calc_Conversion(AC$6),"") ->  | AG65: =IF(AE65>0, Calc_Conversion_elandheat(AG$4, AG$6, AG$4, AG$6, AI$4, AG$4), "") ->  | AI65: =IF(AE65>0, Calc_Conversion_elandheat(AI$4, 1, AI$4, AG$6, AG$4, AI$4), "") ->  | AL65: =IF(A65<>"",#REF!,"") ->  | AN65: =IF(A65<>"", IF(G65="Gas", IF(H65="kg", ((#REF!*Denscalc(I65) +#REF!+#REF!*Denscalc(I65)+#REF!)-F65), ( (#REF!+#REF!/Denscalc(I65) +#REF!+#REF!/Denscalc(I65))-F65)), ( (#REF!* Denscalc(I65)+#REF!+AL65+#REF!*Denscalc(I65)+#REF!+#REF!)-F65) ), "") -> 
B66: 58 | L66: 58 | N66: =IF(AND(K$2>0,M66>0),Calc_Emissions(),"") ->  | Q66: =IF(P66>0, Calc_Conversion(Q$6),"") ->  | T66: =IF(S66>0, Calc_Conversion(T$6),"") ->  | U66: 58 | W66: =IF(V66>0, Calc_Conversion(W$6),"") ->  | Z66: =IF(Y66>0, Calc_Conversion(Z$6),"") ->  | AA66: 58 | AC66: =IF(AB66>0, Calc_Conversion(AC$6),"") ->  | AG66: =IF(AE66>0, Calc_Conversion_elandheat(AG$4, AG$6, AG$4, AG$6, AI$4, AG$4), "") ->  | AI66: =IF(AE66>0, Calc_Conversion_elandheat(AI$4, 1, AI$4, AG$6, AG$4, AI$4), "") ->  | AL66: =IF(A66<>"",#REF!,"") ->  | AN66: =IF(A66<>"", IF(G66="Gas", IF(H66="kg", ((#REF!*Denscalc(I66) +#REF!+#REF!*Denscalc(I66)+#REF!)-F66), ( (#REF!+#REF!/Denscalc(I66) +#REF!+#REF!/Denscalc(I66))-F66)), ( (#REF!* Denscalc(I66)+#REF!+AL66+#REF!*Denscalc(I66)+#REF!+#REF!)-F66) ), "") -> 
B67: 59 | L67: 59 | N67: =IF(AND(K$2>0,M67>0),Calc_Emissions(),"") ->  | Q67: =IF(P67>0, Calc_Conversion(Q$6),"") ->  | T67: =IF(S67>0, Calc_Conversion(T$6),"") ->  | U67: 59 | W67: =IF(V67>0, Calc_Conversion(W$6),"") ->  | Z67: =IF(Y67>0, Calc_Conversion(Z$6),"") ->  | AA67: 59 | AC67: =IF(AB67>0, Calc_Conversion(AC$6),"") ->  | AG67: =IF(AE67>0, Calc_Conversion_elandheat(AG$4, AG$6, AG$4, AG$6, AI$4, AG$4), "") ->  | AI67: =IF(AE67>0, Calc_Conversion_elandheat(AI$4, 1, AI$4, AG$6, AG$4, AI$4), "") ->  | AL67: =IF(A67<>"",#REF!,"") ->  | AN67: =IF(A67<>"", IF(G67="Gas", IF(H67="kg", ((#REF!*Denscalc(I67) +#REF!+#REF!*Denscalc(I67)+#REF!)-F67), ( (#REF!+#REF!/Denscalc(I67) +#REF!+#REF!/Denscalc(I67))-F67)), ( (#REF!* Denscalc(I67)+#REF!+AL67+#REF!*Denscalc(I67)+#REF!+#REF!)-F67) ), "") -> 
B68: 60 | L68: 60 | N68: =IF(AND(K$2>0,M68>0),Calc_Emissions(),"") ->  | Q68: =IF(P68>0, Calc_Conversion(Q$6),"") ->  | T68: =IF(S68>0, Calc_Conversion(T$6),"") ->  | U68: 60 | W68: =IF(V68>0, Calc_Conversion(W$6),"") ->  | Z68: =IF(Y68>0, Calc_Conversion(Z$6),"") ->  | AA68: 60 | AC68: =IF(AB68>0, Calc_Conversion(AC$6),"") ->  | AG68: =IF(AE68>0, Calc_Conversion_elandheat(AG$4, AG$6, AG$4, AG$6, AI$4, AG$4), "") ->  | AI68: =IF(AE68>0, Calc_Conversion_elandheat(AI$4, 1, AI$4, AG$6, AG$4, AI$4), "") ->  | AL68: =IF(A68<>"",#REF!,"") ->  | AN68: =IF(A68<>"", IF(G68="Gas", IF(H68="kg", ((#REF!*Denscalc(I68) +#REF!+#REF!*Denscalc(I68)+#REF!)-F68), ( (#REF!+#REF!/Denscalc(I68) +#REF!+#REF!/Denscalc(I68))-F68)), ( (#REF!* Denscalc(I68)+#REF!+AL68+#REF!*Denscalc(I68)+#REF!+#REF!)-F68) ), "") -> 
B69: 61 | L69: 61 | N69: =IF(AND(K$2>0,M69>0),Calc_Emissions(),"") ->  | Q69: =IF(P69>0, Calc_Conversion(Q$6),"") ->  | T69: =IF(S69>0, Calc_Conversion(T$6),"") ->  | U69: 61 | W69: =IF(V69>0, Calc_Conversion(W$6),"") ->  | Z69: =IF(Y69>0, Calc_Conversion(Z$6),"") ->  | AA69: 61 | AC69: =IF(AB69>0, Calc_Conversion(AC$6),"") ->  | AG69: =IF(AE69>0, Calc_Conversion_elandheat(AG$4, AG$6, AG$4, AG$6, AI$4, AG$4), "") ->  | AI69: =IF(AE69>0, Calc_Conversion_elandheat(AI$4, 1, AI$4, AG$6, AG$4, AI$4), "") ->  | AL69: =IF(A69<>"",#REF!,"") ->  | AN69: =IF(A69<>"", IF(G69="Gas", IF(H69="kg", ((#REF!*Denscalc(I69) +#REF!+#REF!*Denscalc(I69)+#REF!)-F69), ( (#REF!+#REF!/Denscalc(I69) +#REF!+#REF!/Denscalc(I69))-F69)), ( (#REF!* Denscalc(I69)+#REF!+AL69+#REF!*Denscalc(I69)+#REF!+#REF!)-F69) ), "") -> 
B70: 62 | L70: 62 | N70: =IF(AND(K$2>0,M70>0),Calc_Emissions(),"") ->  | Q70: =IF(P70>0, Calc_Conversion(Q$6),"") ->  | T70: =IF(S70>0, Calc_Conversion(T$6),"") ->  | U70: 62 | W70: =IF(V70>0, Calc_Conversion(W$6),"") ->  | Z70: =IF(Y70>0, Calc_Conversion(Z$6),"") ->  | AA70: 62 | AC70: =IF(AB70>0, Calc_Conversion(AC$6),"") ->  | AG70: =IF(AE70>0, Calc_Conversion_elandheat(AG$4, AG$6, AG$4, AG$6, AI$4, AG$4), "") ->  | AI70: =IF(AE70>0, Calc_Conversion_elandheat(AI$4, 1, AI$4, AG$6, AG$4, AI$4), "") ->  | AL70: =IF(A70<>"",#REF!,"") ->  | AN70: =IF(A70<>"", IF(G70="Gas", IF(H70="kg", ((#REF!*Denscalc(I70) +#REF!+#REF!*Denscalc(I70)+#REF!)-F70), ( (#REF!+#REF!/Denscalc(I70) +#REF!+#REF!/Denscalc(I70))-F70)), ( (#REF!* Denscalc(I70)+#REF!+AL70+#REF!*Denscalc(I70)+#REF!+#REF!)-F70) ), "") -> 
B71: 63 | L71: 63 | N71: =IF(AND(K$2>0,M71>0),Calc_Emissions(),"") ->  | Q71: =IF(P71>0, Calc_Conversion(Q$6),"") ->  | T71: =IF(S71>0, Calc_Conversion(T$6),"") ->  | U71: 63 | W71: =IF(V71>0, Calc_Conversion(W$6),"") ->  | Z71: =IF(Y71>0, Calc_Conversion(Z$6),"") ->  | AA71: 63 | AC71: =IF(AB71>0, Calc_Conversion(AC$6),"") ->  | AG71: =IF(AE71>0, Calc_Conversion_elandheat(AG$4, AG$6, AG$4, AG$6, AI$4, AG$4), "") ->  | AI71: =IF(AE71>0, Calc_Conversion_elandheat(AI$4, 1, AI$4, AG$6, AG$4, AI$4), "") ->  | AL71: =IF(A71<>"",#REF!,"") ->  | AN71: =IF(A71<>"", IF(G71="Gas", IF(H71="kg", ((#REF!*Denscalc(I71) +#REF!+#REF!*Denscalc(I71)+#REF!)-F71), ( (#REF!+#REF!/Denscalc(I71) +#REF!+#REF!/Denscalc(I71))-F71)), ( (#REF!* Denscalc(I71)+#REF!+AL71+#REF!*Denscalc(I71)+#REF!+#REF!)-F71) ), "") -> 
B72: 64 | L72: 64 | N72: =IF(AND(K$2>0,M72>0),Calc_Emissions(),"") ->  | Q72: =IF(P72>0, Calc_Conversion(Q$6),"") ->  | T72: =IF(S72>0, Calc_Conversion(T$6),"") ->  | U72: 64 | W72: =IF(V72>0, Calc_Conversion(W$6),"") ->  | Z72: =IF(Y72>0, Calc_Conversion(Z$6),"") ->  | AA72: 64 | AC72: =IF(AB72>0, Calc_Conversion(AC$6),"") ->  | AG72: =IF(AE72>0, Calc_Conversion_elandheat(AG$4, AG$6, AG$4, AG$6, AI$4, AG$4), "") ->  | AI72: =IF(AE72>0, Calc_Conversion_elandheat(AI$4, 1, AI$4, AG$6, AG$4, AI$4), "") ->  | AL72: =IF(A72<>"",#REF!,"") ->  | AN72: =IF(A72<>"", IF(G72="Gas", IF(H72="kg", ((#REF!*Denscalc(I72) +#REF!+#REF!*Denscalc(I72)+#REF!)-F72), ( (#REF!+#REF!/Denscalc(I72) +#REF!+#REF!/Denscalc(I72))-F72)), ( (#REF!* Denscalc(I72)+#REF!+AL72+#REF!*Denscalc(I72)+#REF!+#REF!)-F72) ), "") -> 
B73: 65 | L73: 65 | N73: =IF(AND(K$2>0,M73>0),Calc_Emissions(),"") ->  | Q73: =IF(P73>0, Calc_Conversion(Q$6),"") ->  | T73: =IF(S73>0, Calc_Conversion(T$6),"") ->  | U73: 65 | W73: =IF(V73>0, Calc_Conversion(W$6),"") ->  | Z73: =IF(Y73>0, Calc_Conversion(Z$6),"") ->  | AA73: 65 | AC73: =IF(AB73>0, Calc_Conversion(AC$6),"") ->  | AG73: =IF(AE73>0, Calc_Conversion_elandheat(AG$4, AG$6, AG$4, AG$6, AI$4, AG$4), "") ->  | AI73: =IF(AE73>0, Calc_Conversion_elandheat(AI$4, 1, AI$4, AG$6, AG$4, AI$4), "") ->  | AL73: =IF(A73<>"",#REF!,"") ->  | AN73: =IF(A73<>"", IF(G73="Gas", IF(H73="kg", ((#REF!*Denscalc(I73) +#REF!+#REF!*Denscalc(I73)+#REF!)-F73), ( (#REF!+#REF!/Denscalc(I73) +#REF!+#REF!/Denscalc(I73))-F73)), ( (#REF!* Denscalc(I73)+#REF!+AL73+#REF!*Denscalc(I73)+#REF!+#REF!)-F73) ), "") -> 
B74: 66 | L74: 66 | N74: =IF(AND(K$2>0,M74>0),Calc_Emissions(),"") ->  | Q74: =IF(P74>0, Calc_Conversion(Q$6),"") ->  | T74: =IF(S74>0, Calc_Conversion(T$6),"") ->  | U74: 66 | W74: =IF(V74>0, Calc_Conversion(W$6),"") ->  | Z74: =IF(Y74>0, Calc_Conversion(Z$6),"") ->  | AA74: 66 | AC74: =IF(AB74>0, Calc_Conversion(AC$6),"") ->  | AG74: =IF(AE74>0, Calc_Conversion_elandheat(AG$4, AG$6, AG$4, AG$6, AI$4, AG$4), "") ->  | AI74: =IF(AE74>0, Calc_Conversion_elandheat(AI$4, 1, AI$4, AG$6, AG$4, AI$4), "") ->  | AK74: =IF(A74<>"", (P74+S74+V74+Y74+AB74+AE74)-F74, "") ->  | AL74: =IF(A74<>"",#REF!,"") ->  | AN74: =IF(A74<>"", IF(G74="Gas", IF(H74="kg", ((#REF!*Denscalc(I74) +#REF!+#REF!*Denscalc(I74)+#REF!)-F74), ( (#REF!+#REF!/Denscalc(I74) +#REF!+#REF!/Denscalc(I74))-F74)), ( (#REF!* Denscalc(I74)+#REF!+AL74+#REF!*Denscalc(I74)+#REF!+#REF!)-F74) ), "") -> 
B75: 67 | L75: 67 | N75: =IF(AND(K$2>0,M75>0),Calc_Emissions(),"") ->  | Q75: =IF(P75>0, Calc_Conversion(Q$6),"") ->  | T75: =IF(S75>0, Calc_Conversion(T$6),"") ->  | U75: 67 | W75: =IF(V75>0, Calc_Conversion(W$6),"") ->  | Z75: =IF(Y75>0, Calc_Conversion(Z$6),"") ->  | AA75: 67 | AC75: =IF(AB75>0, Calc_Conversion(AC$6),"") ->  | AF75: =IF(AND($A75<>"",AE75>0), AE75/($AG$3+$AI$3)*$AG$3, "") ->  | AG75: =IF(AE75>0, Calc_Conversion_elandheat(AG$4, AG$6, AG$4, AG$6, AI$4, AG$4), "") ->  | AH75: =IF(AND($A75<>"",AE75>0), AE75/($AG$3+$AI$3)*$AI$3, "") ->  | AI75: =IF(AE75>0, Calc_Conversion_elandheat(AI$4, 1, AI$4, AG$6, AG$4, AI$4), "") ->  | AL75: =IF(A75<>"",#REF!,"") ->  | AN75: =IF(A75<>"", IF(G75="Gas", IF(H75="kg", ((#REF!*Denscalc(I75) +#REF!+#REF!*Denscalc(I75)+#REF!)-F75), ( (#REF!+#REF!/Denscalc(I75) +#REF!+#REF!/Denscalc(I75))-F75)), ( (#REF!* Denscalc(I75)+#REF!+AL75+#REF!*Denscalc(I75)+#REF!+#REF!)-F75) ), "") -> 
B76: 68 | L76: 68 | N76: =IF(AND(K$2>0,M76>0),Calc_Emissions(),"") ->  | Q76: =IF(P76>0, Calc_Conversion(Q$6),"") ->  | T76: =IF(S76>0, Calc_Conversion(T$6),"") ->  | U76: 68 | W76: =IF(V76>0, Calc_Conversion(W$6),"") ->  | Z76: =IF(Y76>0, Calc_Conversion(Z$6),"") ->  | AA76: 68 | AC76: =IF(AB76>0, Calc_Conversion(AC$6),"") ->  | AG76: =IF(AE76>0, Calc_Conversion_elandheat(AG$4, AG$6, AG$4, AG$6, AI$4, AG$4), "") ->  | AI76: =IF(AE76>0, Calc_Conversion_elandheat(AI$4, 1, AI$4, AG$6, AG$4, AI$4), "") ->  | AL76: =IF(A76<>"",#REF!,"") ->  | AN76: =IF(A76<>"", IF(G76="Gas", IF(H76="kg", ((#REF!*Denscalc(I76) +#REF!+#REF!*Denscalc(I76)+#REF!)-F76), ( (#REF!+#REF!/Denscalc(I76) +#REF!+#REF!/Denscalc(I76))-F76)), ( (#REF!* Denscalc(I76)+#REF!+AL76+#REF!*Denscalc(I76)+#REF!+#REF!)-F76) ), "") -> 
B77: 69 | L77: 69 | N77: =IF(AND(K$2>0,M77>0),Calc_Emissions(),"") ->  | Q77: =IF(P77>0, Calc_Conversion(Q$6),"") ->  | T77: =IF(S77>0, Calc_Conversion(T$6),"") ->  | U77: 69 | W77: =IF(V77>0, Calc_Conversion(W$6),"") ->  | Z77: =IF(Y77>0, Calc_Conversion(Z$6),"") ->  | AA77: 69 | AC77: =IF(AB77>0, Calc_Conversion(AC$6),"") ->  | AG77: =IF(AE77>0, Calc_Conversion_elandheat(AG$4, AG$6, AG$4, AG$6, AI$4, AG$4), "") ->  | AI77: =IF(AE77>0, Calc_Conversion_elandheat(AI$4, 1, AI$4, AG$6, AG$4, AI$4), "") ->  | AL77: =IF(A77<>"",#REF!,"") ->  | AN77: =IF(A77<>"", IF(G77="Gas", IF(H77="kg", ((#REF!*Denscalc(I77) +#REF!+#REF!*Denscalc(I77)+#REF!)-F77), ( (#REF!+#REF!/Denscalc(I77) +#REF!+#REF!/Denscalc(I77))-F77)), ( (#REF!* Denscalc(I77)+#REF!+AL77+#REF!*Denscalc(I77)+#REF!+#REF!)-F77) ), "") -> 
B78: 70 | L78: 70 | N78: =IF(AND(K$2>0,M78>0),Calc_Emissions(),"") ->  | Q78: =IF(P78>0, Calc_Conversion(Q$6),"") ->  | T78: =IF(S78>0, Calc_Conversion(T$6),"") ->  | U78: 70 | W78: =IF(V78>0, Calc_Conversion(W$6),"") ->  | Z78: =IF(Y78>0, Calc_Conversion(Z$6),"") ->  | AA78: 70 | AC78: =IF(AB78>0, Calc_Conversion(AC$6),"") ->  | AG78: =IF(AE78>0, Calc_Conversion_elandheat(AG$4, AG$6, AG$4, AG$6, AI$4, AG$4), "") ->  | AI78: =IF(AE78>0, Calc_Conversion_elandheat(AI$4, 1, AI$4, AG$6, AG$4, AI$4), "") ->  | AL78: =IF(A78<>"",#REF!,"") ->  | AN78: =IF(A78<>"", IF(G78="Gas", IF(H78="kg", ((#REF!*Denscalc(I78) +#REF!+#REF!*Denscalc(I78)+#REF!)-F78), ( (#REF!+#REF!/Denscalc(I78) +#REF!+#REF!/Denscalc(I78))-F78)), ( (#REF!* Denscalc(I78)+#REF!+AL78+#REF!*Denscalc(I78)+#REF!+#REF!)-F78) ), "") -> 
B79: 71 | L79: 71 | N79: =IF(AND(K$2>0,M79>0),Calc_Emissions(),"") ->  | Q79: =IF(P79>0, Calc_Conversion(Q$6),"") ->  | T79: =IF(S79>0, Calc_Conversion(T$6),"") ->  | U79: 71 | W79: =IF(V79>0, Calc_Conversion(W$6),"") ->  | Z79: =IF(Y79>0, Calc_Conversion(Z$6),"") ->  | AA79: 71 | AC79: =IF(AB79>0, Calc_Conversion(AC$6),"") ->  | AG79: =IF(AE79>0, Calc_Conversion_elandheat(AG$4, AG$6, AG$4, AG$6, AI$4, AG$4), "") ->  | AI79: =IF(AE79>0, Calc_Conversion_elandheat(AI$4, 1, AI$4, AG$6, AG$4, AI$4), "") ->  | AL79: =IF(A79<>"",#REF!,"") ->  | AN79: =IF(A79<>"", IF(G79="Gas", IF(H79="kg", ((#REF!*Denscalc(I79) +#REF!+#REF!*Denscalc(I79)+#REF!)-F79), ( (#REF!+#REF!/Denscalc(I79) +#REF!+#REF!/Denscalc(I79))-F79)), ( (#REF!* Denscalc(I79)+#REF!+AL79+#REF!*Denscalc(I79)+#REF!+#REF!)-F79) ), "") -> 
B80: 72 | L80: 72 | N80: =IF(AND(K$2>0,M80>0),Calc_Emissions(),"") ->  | Q80: =IF(P80>0, Calc_Conversion(Q$6),"") ->  | T80: =IF(S80>0, Calc_Conversion(T$6),"") ->  | U80: 72 | W80: =IF(V80>0, Calc_Conversion(W$6),"") ->  | Z80: =IF(Y80>0, Calc_Conversion(Z$6),"") ->  | AA80: 72 | AC80: =IF(AB80>0, Calc_Conversion(AC$6),"") ->  | AG80: =IF(AE80>0, Calc_Conversion_elandheat(AG$4, AG$6, AG$4, AG$6, AI$4, AG$4), "") ->  | AI80: =IF(AE80>0, Calc_Conversion_elandheat(AI$4, 1, AI$4, AG$6, AG$4, AI$4), "") ->  | AL80: =IF(A80<>"",#REF!,"") ->  | AN80: =IF(A80<>"", IF(G80="Gas", IF(H80="kg", ((#REF!*Denscalc(I80) +#REF!+#REF!*Denscalc(I80)+#REF!)-F80), ( (#REF!+#REF!/Denscalc(I80) +#REF!+#REF!/Denscalc(I80))-F80)), ( (#REF!* Denscalc(I80)+#REF!+AL80+#REF!*Denscalc(I80)+#REF!+#REF!)-F80) ), "") -> 
B81: 73 | L81: 73 | N81: =IF(AND(K$2>0,M81>0),Calc_Emissions(),"") ->  | Q81: =IF(P81>0, Calc_Conversion(Q$6),"") ->  | T81: =IF(S81>0, Calc_Conversion(T$6),"") ->  | U81: 73 | W81: =IF(V81>0, Calc_Conversion(W$6),"") ->  | Z81: =IF(Y81>0, Calc_Conversion(Z$6),"") ->  | AA81: 73 | AC81: =IF(AB81>0, Calc_Conversion(AC$6),"") ->  | AG81: =IF(AE81>0, Calc_Conversion_elandheat(AG$4, AG$6, AG$4, AG$6, AI$4, AG$4), "") ->  | AI81: =IF(AE81>0, Calc_Conversion_elandheat(AI$4, 1, AI$4, AG$6, AG$4, AI$4), "") ->  | AL81: =IF(A81<>"",#REF!,"") ->  | AN81: =IF(A81<>"", IF(G81="Gas", IF(H81="kg", ((#REF!*Denscalc(I81) +#REF!+#REF!*Denscalc(I81)+#REF!)-F81), ( (#REF!+#REF!/Denscalc(I81) +#REF!+#REF!/Denscalc(I81))-F81)), ( (#REF!* Denscalc(I81)+#REF!+AL81+#REF!*Denscalc(I81)+#REF!+#REF!)-F81) ), "") -> 
B82: 74 | L82: 74 | N82: =IF(AND(K$2>0,M82>0),Calc_Emissions(),"") ->  | Q82: =IF(P82>0, Calc_Conversion(Q$6),"") ->  | T82: =IF(S82>0, Calc_Conversion(T$6),"") ->  | U82: 74 | W82: =IF(V82>0, Calc_Conversion(W$6),"") ->  | Z82: =IF(Y82>0, Calc_Conversion(Z$6),"") ->  | AA82: 74 | AC82: =IF(AB82>0, Calc_Conversion(AC$6),"") ->  | AG82: =IF(AE82>0, Calc_Conversion_elandheat(AG$4, AG$6, AG$4, AG$6, AI$4, AG$4), "") ->  | AI82: =IF(AE82>0, Calc_Conversion_elandheat(AI$4, 1, AI$4, AG$6, AG$4, AI$4), "") ->  | AL82: =IF(A82<>"",#REF!,"") ->  | AN82: =IF(A82<>"", IF(G82="Gas", IF(H82="kg", ((#REF!*Denscalc(I82) +#REF!+#REF!*Denscalc(I82)+#REF!)-F82), ( (#REF!+#REF!/Denscalc(I82) +#REF!+#REF!/Denscalc(I82))-F82)), ( (#REF!* Denscalc(I82)+#REF!+AL82+#REF!*Denscalc(I82)+#REF!+#REF!)-F82) ), "") -> 
B83: 75 | L83: 75 | N83: =IF(AND(K$2>0,M83>0),Calc_Emissions(),"") ->  | Q83: =IF(P83>0, Calc_Conversion(Q$6),"") ->  | T83: =IF(S83>0, Calc_Conversion(T$6),"") ->  | U83: 75 | W83: =IF(V83>0, Calc_Conversion(W$6),"") ->  | Z83: =IF(Y83>0, Calc_Conversion(Z$6),"") ->  | AA83: 75 | AC83: =IF(AB83>0, Calc_Conversion(AC$6),"") ->  | AG83: =IF(AE83>0, Calc_Conversion_elandheat(AG$4, AG$6, AG$4, AG$6, AI$4, AG$4), "") ->  | AI83: =IF(AE83>0, Calc_Conversion_elandheat(AI$4, 1, AI$4, AG$6, AG$4, AI$4), "") ->  | AL83: =IF(A83<>"",#REF!,"") ->  | AN83: =IF(A83<>"", IF(G83="Gas", IF(H83="kg", ((#REF!*Denscalc(I83) +#REF!+#REF!*Denscalc(I83)+#REF!)-F83), ( (#REF!+#REF!/Denscalc(I83) +#REF!+#REF!/Denscalc(I83))-F83)), ( (#REF!* Denscalc(I83)+#REF!+AL83+#REF!*Denscalc(I83)+#REF!+#REF!)-F83) ), "") -> 
B84: 76 | L84: 76 | N84: =IF(AND(K$2>0,M84>0),Calc_Emissions(),"") ->  | Q84: =IF(P84>0, Calc_Conversion(Q$6),"") ->  | T84: =IF(S84>0, Calc_Conversion(T$6),"") ->  | U84: 76 | W84: =IF(V84>0, Calc_Conversion(W$6),"") ->  | Z84: =IF(Y84>0, Calc_Conversion(Z$6),"") ->  | AA84: 76 | AC84: =IF(AB84>0, Calc_Conversion(AC$6),"") ->  | AG84: =IF(AE84>0, Calc_Conversion_elandheat(AG$4, AG$6, AG$4, AG$6, AI$4, AG$4), "") ->  | AI84: =IF(AE84>0, Calc_Conversion_elandheat(AI$4, 1, AI$4, AG$6, AG$4, AI$4), "") ->  | AL84: =IF(A84<>"",#REF!,"") ->  | AN84: =IF(A84<>"", IF(G84="Gas", IF(H84="kg", ((#REF!*Denscalc(I84) +#REF!+#REF!*Denscalc(I84)+#REF!)-F84), ( (#REF!+#REF!/Denscalc(I84) +#REF!+#REF!/Denscalc(I84))-F84)), ( (#REF!* Denscalc(I84)+#REF!+AL84+#REF!*Denscalc(I84)+#REF!+#REF!)-F84) ), "") -> 
B85: 77 | L85: 77 | N85: =IF(AND(K$2>0,M85>0),Calc_Emissions(),"") ->  | Q85: =IF(P85>0, Calc_Conversion(Q$6),"") ->  | T85: =IF(S85>0, Calc_Conversion(T$6),"") ->  | U85: 77 | W85: =IF(V85>0, Calc_Conversion(W$6),"") ->  | Z85: =IF(Y85>0, Calc_Conversion(Z$6),"") ->  | AA85: 77 | AC85: =IF(AB85>0, Calc_Conversion(AC$6),"") ->  | AG85: =IF(AE85>0, Calc_Conversion_elandheat(AG$4, AG$6, AG$4, AG$6, AI$4, AG$4), "") ->  | AI85: =IF(AE85>0, Calc_Conversion_elandheat(AI$4, 1, AI$4, AG$6, AG$4, AI$4), "") ->  | AL85: =IF(A85<>"",#REF!,"") ->  | AN85: =IF(A85<>"", IF(G85="Gas", IF(H85="kg", ((#REF!*Denscalc(I85) +#REF!+#REF!*Denscalc(I85)+#REF!)-F85), ( (#REF!+#REF!/Denscalc(I85) +#REF!+#REF!/Denscalc(I85))-F85)), ( (#REF!* Denscalc(I85)+#REF!+AL85+#REF!*Denscalc(I85)+#REF!+#REF!)-F85) ), "") -> 
B86: 78 | L86: 78 | N86: =IF(AND(K$2>0,M86>0),Calc_Emissions(),"") ->  | Q86: =IF(P86>0, Calc_Conversion(Q$6),"") ->  | T86: =IF(S86>0, Calc_Conversion(T$6),"") ->  | U86: 78 | W86: =IF(V86>0, Calc_Conversion(W$6),"") ->  | Z86: =IF(Y86>0, Calc_Conversion(Z$6),"") ->  | AA86: 78 | AC86: =IF(AB86>0, Calc_Conversion(AC$6),"") ->  | AG86: =IF(AE86>0, Calc_Conversion_elandheat(AG$4, AG$6, AG$4, AG$6, AI$4, AG$4), "") ->  | AI86: =IF(AE86>0, Calc_Conversion_elandheat(AI$4, 1, AI$4, AG$6, AG$4, AI$4), "") ->  | AL86: =IF(A86<>"",#REF!,"") ->  | AN86: =IF(A86<>"", IF(G86="Gas", IF(H86="kg", ((#REF!*Denscalc(I86) +#REF!+#REF!*Denscalc(I86)+#REF!)-F86), ( (#REF!+#REF!/Denscalc(I86) +#REF!+#REF!/Denscalc(I86))-F86)), ( (#REF!* Denscalc(I86)+#REF!+AL86+#REF!*Denscalc(I86)+#REF!+#REF!)-F86) ), "") -> 
B87: 79 | L87: 79 | N87: =IF(AND(K$2>0,M87>0),Calc_Emissions(),"") ->  | Q87: =IF(P87>0, Calc_Conversion(Q$6),"") ->  | T87: =IF(S87>0, Calc_Conversion(T$6),"") ->  | U87: 79 | W87: =IF(V87>0, Calc_Conversion(W$6),"") ->  | Z87: =IF(Y87>0, Calc_Conversion(Z$6),"") ->  | AA87: 79 | AC87: =IF(AB87>0, Calc_Conversion(AC$6),"") ->  | AG87: =IF(AE87>0, Calc_Conversion_elandheat(AG$4, AG$6, AG$4, AG$6, AI$4, AG$4), "") ->  | AI87: =IF(AE87>0, Calc_Conversion_elandheat(AI$4, 1, AI$4, AG$6, AG$4, AI$4), "") ->  | AL87: =IF(A87<>"",#REF!,"") ->  | AN87: =IF(A87<>"", IF(G87="Gas", IF(H87="kg", ((#REF!*Denscalc(I87) +#REF!+#REF!*Denscalc(I87)+#REF!)-F87), ( (#REF!+#REF!/Denscalc(I87) +#REF!+#REF!/Denscalc(I87))-F87)), ( (#REF!* Denscalc(I87)+#REF!+AL87+#REF!*Denscalc(I87)+#REF!+#REF!)-F87) ), "") -> 
B88: 80 | L88: 80 | N88: =IF(AND(K$2>0,M88>0),Calc_Emissions(),"") ->  | Q88: =IF(P88>0, Calc_Conversion(Q$6),"") ->  | T88: =IF(S88>0, Calc_Conversion(T$6),"") ->  | U88: 80 | W88: =IF(V88>0, Calc_Conversion(W$6),"") ->  | Z88: =IF(Y88>0, Calc_Conversion(Z$6),"") ->  | AA88: 80 | AC88: =IF(AB88>0, Calc_Conversion(AC$6),"") ->  | AG88: =IF(AE88>0, Calc_Conversion_elandheat(AG$4, AG$6, AG$4, AG$6, AI$4, AG$4), "") ->  | AI88: =IF(AE88>0, Calc_Conversion_elandheat(AI$4, 1, AI$4, AG$6, AG$4, AI$4), "") ->  | AL88: =IF(A88<>"",#REF!,"") ->  | AN88: =IF(A88<>"", IF(G88="Gas", IF(H88="kg", ((#REF!*Denscalc(I88) +#REF!+#REF!*Denscalc(I88)+#REF!)-F88), ( (#REF!+#REF!/Denscalc(I88) +#REF!+#REF!/Denscalc(I88))-F88)), ( (#REF!* Denscalc(I88)+#REF!+AL88+#REF!*Denscalc(I88)+#REF!+#REF!)-F88) ), "") -> 
B89: 81 | L89: 81 | N89: =IF(AND(K$2>0,M89>0),Calc_Emissions(),"") ->  | Q89: =IF(P89>0, Calc_Conversion(Q$6),"") ->  | T89: =IF(S89>0, Calc_Conversion(T$6),"") ->  | U89: 81 | W89: =IF(V89>0, Calc_Conversion(W$6),"") ->  | Z89: =IF(Y89>0, Calc_Conversion(Z$6),"") ->  | AA89: 81 | AC89: =IF(AB89>0, Calc_Conversion(AC$6),"") ->  | AG89: =IF(AE89>0, Calc_Conversion_elandheat(AG$4, AG$6, AG$4, AG$6, AI$4, AG$4), "") ->  | AI89: =IF(AE89>0, Calc_Conversion_elandheat(AI$4, 1, AI$4, AG$6, AG$4, AI$4), "") ->  | AL89: =IF(A89<>"",#REF!,"") ->  | AN89: =IF(A89<>"", IF(G89="Gas", IF(H89="kg", ((#REF!*Denscalc(I89) +#REF!+#REF!*Denscalc(I89)+#REF!)-F89), ( (#REF!+#REF!/Denscalc(I89) +#REF!+#REF!/Denscalc(I89))-F89)), ( (#REF!* Denscalc(I89)+#REF!+AL89+#REF!*Denscalc(I89)+#REF!+#REF!)-F89) ), "") -> 
B90: 82 | L90: 82 | N90: =IF(AND(K$2>0,M90>0),Calc_Emissions(),"") ->  | Q90: =IF(P90>0, Calc_Conversion(Q$6),"") ->  | T90: =IF(S90>0, Calc_Conversion(T$6),"") ->  | U90: 82 | W90: =IF(V90>0, Calc_Conversion(W$6),"") ->  | Z90: =IF(Y90>0, Calc_Conversion(Z$6),"") ->  | AA90: 82 | AC90: =IF(AB90>0, Calc_Conversion(AC$6),"") ->  | AG90: =IF(AE90>0, Calc_Conversion_elandheat(AG$4, AG$6, AG$4, AG$6, AI$4, AG$4), "") ->  | AI90: =IF(AE90>0, Calc_Conversion_elandheat(AI$4, 1, AI$4, AG$6, AG$4, AI$4), "") ->  | AL90: =IF(A90<>"",#REF!,"") ->  | AN90: =IF(A90<>"", IF(G90="Gas", IF(H90="kg", ((#REF!*Denscalc(I90) +#REF!+#REF!*Denscalc(I90)+#REF!)-F90), ( (#REF!+#REF!/Denscalc(I90) +#REF!+#REF!/Denscalc(I90))-F90)), ( (#REF!* Denscalc(I90)+#REF!+AL90+#REF!*Denscalc(I90)+#REF!+#REF!)-F90) ), "") -> 
B91: 83 | L91: 83 | N91: =IF(AND(K$2>0,M91>0),Calc_Emissions(),"") ->  | Q91: =IF(P91>0, Calc_Conversion(Q$6),"") ->  | T91: =IF(S91>0, Calc_Conversion(T$6),"") ->  | U91: 83 | W91: =IF(V91>0, Calc_Conversion(W$6),"") ->  | Z91: =IF(Y91>0, Calc_Conversion(Z$6),"") ->  | AA91: 83 | AC91: =IF(AB91>0, Calc_Conversion(AC$6),"") ->  | AG91: =IF(AE91>0, Calc_Conversion_elandheat(AG$4, AG$6, AG$4, AG$6, AI$4, AG$4), "") ->  | AI91: =IF(AE91>0, Calc_Conversion_elandheat(AI$4, 1, AI$4, AG$6, AG$4, AI$4), "") ->  | AL91: =IF(A91<>"",#REF!,"") ->  | AN91: =IF(A91<>"", IF(G91="Gas", IF(H91="kg", ((#REF!*Denscalc(I91) +#REF!+#REF!*Denscalc(I91)+#REF!)-F91), ( (#REF!+#REF!/Denscalc(I91) +#REF!+#REF!/Denscalc(I91))-F91)), ( (#REF!* Denscalc(I91)+#REF!+AL91+#REF!*Denscalc(I91)+#REF!+#REF!)-F91) ), "") -> 
B92: 84 | L92: 84 | N92: =IF(AND(K$2>0,M92>0),Calc_Emissions(),"") ->  | Q92: =IF(P92>0, Calc_Conversion(Q$6),"") ->  | T92: =IF(S92>0, Calc_Conversion(T$6),"") ->  | U92: 84 | W92: =IF(V92>0, Calc_Conversion(W$6),"") ->  | Z92: =IF(Y92>0, Calc_Conversion(Z$6),"") ->  | AA92: 84 | AC92: =IF(AB92>0, Calc_Conversion(AC$6),"") ->  | AG92: =IF(AE92>0, Calc_Conversion_elandheat(AG$4, AG$6, AG$4, AG$6, AI$4, AG$4), "") ->  | AI92: =IF(AE92>0, Calc_Conversion_elandheat(AI$4, 1, AI$4, AG$6, AG$4, AI$4), "") ->  | AL92: =IF(A92<>"",#REF!,"") ->  | AN92: =IF(A92<>"", IF(G92="Gas", IF(H92="kg", ((#REF!*Denscalc(I92) +#REF!+#REF!*Denscalc(I92)+#REF!)-F92), ( (#REF!+#REF!/Denscalc(I92) +#REF!+#REF!/Denscalc(I92))-F92)), ( (#REF!* Denscalc(I92)+#REF!+AL92+#REF!*Denscalc(I92)+#REF!+#REF!)-F92) ), "") -> 
B93: 85 | L93: 85 | N93: =IF(AND(K$2>0,M93>0),Calc_Emissions(),"") ->  | Q93: =IF(P93>0, Calc_Conversion(Q$6),"") ->  | T93: =IF(S93>0, Calc_Conversion(T$6),"") ->  | U93: 85 | W93: =IF(V93>0, Calc_Conversion(W$6),"") ->  | Z93: =IF(Y93>0, Calc_Conversion(Z$6),"") ->  | AA93: 85 | AC93: =IF(AB93>0, Calc_Conversion(AC$6),"") ->  | AG93: =IF(AE93>0, Calc_Conversion_elandheat(AG$4, AG$6, AG$4, AG$6, AI$4, AG$4), "") ->  | AI93: =IF(AE93>0, Calc_Conversion_elandheat(AI$4, 1, AI$4, AG$6, AG$4, AI$4), "") ->  | AL93: =IF(A93<>"",#REF!,"") ->  | AN93: =IF(A93<>"", IF(G93="Gas", IF(H93="kg", ((#REF!*Denscalc(I93) +#REF!+#REF!*Denscalc(I93)+#REF!)-F93), ( (#REF!+#REF!/Denscalc(I93) +#REF!+#REF!/Denscalc(I93))-F93)), ( (#REF!* Denscalc(I93)+#REF!+AL93+#REF!*Denscalc(I93)+#REF!+#REF!)-F93) ), "") -> 
B94: 86 | L94: 86 | N94: =IF(AND(K$2>0,M94>0),Calc_Emissions(),"") ->  | Q94: =IF(P94>0, Calc_Conversion(Q$6),"") ->  | T94: =IF(S94>0, Calc_Conversion(T$6),"") ->  | U94: 86 | W94: =IF(V94>0, Calc_Conversion(W$6),"") ->  | Z94: =IF(Y94>0, Calc_Conversion(Z$6),"") ->  | AA94: 86 | AC94: =IF(AB94>0, Calc_Conversion(AC$6),"") ->  | AG94: =IF(AE94>0, Calc_Conversion_elandheat(AG$4, AG$6, AG$4, AG$6, AI$4, AG$4), "") ->  | AI94: =IF(AE94>0, Calc_Conversion_elandheat(AI$4, 1, AI$4, AG$6, AG$4, AI$4), "") ->  | AL94: =IF(A94<>"",#REF!,"") ->  | AN94: =IF(A94<>"", IF(G94="Gas", IF(H94="kg", ((#REF!*Denscalc(I94) +#REF!+#REF!*Denscalc(I94)+#REF!)-F94), ( (#REF!+#REF!/Denscalc(I94) +#REF!+#REF!/Denscalc(I94))-F94)), ( (#REF!* Denscalc(I94)+#REF!+AL94+#REF!*Denscalc(I94)+#REF!+#REF!)-F94) ), "") -> 
B95: 87 | L95: 87 | N95: =IF(AND(K$2>0,M95>0),Calc_Emissions(),"") ->  | Q95: =IF(P95>0, Calc_Conversion(Q$6),"") ->  | T95: =IF(S95>0, Calc_Conversion(T$6),"") ->  | U95: 87 | W95: =IF(V95>0, Calc_Conversion(W$6),"") ->  | Z95: =IF(Y95>0, Calc_Conversion(Z$6),"") ->  | AA95: 87 | AC95: =IF(AB95>0, Calc_Conversion(AC$6),"") ->  | AG95: =IF(AE95>0, Calc_Conversion_elandheat(AG$4, AG$6, AG$4, AG$6, AI$4, AG$4), "") ->  | AI95: =IF(AE95>0, Calc_Conversion_elandheat(AI$4, 1, AI$4, AG$6, AG$4, AI$4), "") ->  | AL95: =IF(A95<>"",#REF!,"") ->  | AN95: =IF(A95<>"", IF(G95="Gas", IF(H95="kg", ((#REF!*Denscalc(I95) +#REF!+#REF!*Denscalc(I95)+#REF!)-F95), ( (#REF!+#REF!/Denscalc(I95) +#REF!+#REF!/Denscalc(I95))-F95)), ( (#REF!* Denscalc(I95)+#REF!+AL95+#REF!*Denscalc(I95)+#REF!+#REF!)-F95) ), "") -> 
B96: 88 | L96: 88 | N96: =IF(AND(K$2>0,M96>0),Calc_Emissions(),"") ->  | Q96: =IF(P96>0, Calc_Conversion(Q$6),"") ->  | T96: =IF(S96>0, Calc_Conversion(T$6),"") ->  | U96: 88 | W96: =IF(V96>0, Calc_Conversion(W$6),"") ->  | Z96: =IF(Y96>0, Calc_Conversion(Z$6),"") ->  | AA96: 88 | AC96: =IF(AB96>0, Calc_Conversion(AC$6),"") ->  | AG96: =IF(AE96>0, Calc_Conversion_elandheat(AG$4, AG$6, AG$4, AG$6, AI$4, AG$4), "") ->  | AI96: =IF(AE96>0, Calc_Conversion_elandheat(AI$4, 1, AI$4, AG$6, AG$4, AI$4), "") ->  | AL96: =IF(A96<>"",#REF!,"") ->  | AN96: =IF(A96<>"", IF(G96="Gas", IF(H96="kg", ((#REF!*Denscalc(I96) +#REF!+#REF!*Denscalc(I96)+#REF!)-F96), ( (#REF!+#REF!/Denscalc(I96) +#REF!+#REF!/Denscalc(I96))-F96)), ( (#REF!* Denscalc(I96)+#REF!+AL96+#REF!*Denscalc(I96)+#REF!+#REF!)-F96) ), "") -> 
B97: 89 | L97: 89 | N97: =IF(AND(K$2>0,M97>0),Calc_Emissions(),"") ->  | Q97: =IF(P97>0, Calc_Conversion(Q$6),"") ->  | T97: =IF(S97>0, Calc_Conversion(T$6),"") ->  | U97: 89 | W97: =IF(V97>0, Calc_Conversion(W$6),"") ->  | Z97: =IF(Y97>0, Calc_Conversion(Z$6),"") ->  | AA97: 89 | AC97: =IF(AB97>0, Calc_Conversion(AC$6),"") ->  | AG97: =IF(AE97>0, Calc_Conversion_elandheat(AG$4, AG$6, AG$4, AG$6, AI$4, AG$4), "") ->  | AI97: =IF(AE97>0, Calc_Conversion_elandheat(AI$4, 1, AI$4, AG$6, AG$4, AI$4), "") ->  | AL97: =IF(A97<>"",#REF!,"") ->  | AN97: =IF(A97<>"", IF(G97="Gas", IF(H97="kg", ((#REF!*Denscalc(I97) +#REF!+#REF!*Denscalc(I97)+#REF!)-F97), ( (#REF!+#REF!/Denscalc(I97) +#REF!+#REF!/Denscalc(I97))-F97)), ( (#REF!* Denscalc(I97)+#REF!+AL97+#REF!*Denscalc(I97)+#REF!+#REF!)-F97) ), "") -> 
B98: 90 | L98: 90 | N98: =IF(AND(K$2>0,M98>0),Calc_Emissions(),"") ->  | Q98: =IF(P98>0, Calc_Conversion(Q$6),"") ->  | T98: =IF(S98>0, Calc_Conversion(T$6),"") ->  | U98: 90 | W98: =IF(V98>0, Calc_Conversion(W$6),"") ->  | Z98: =IF(Y98>0, Calc_Conversion(Z$6),"") ->  | AA98: 90 | AC98: =IF(AB98>0, Calc_Conversion(AC$6),"") ->  | AG98: =IF(AE98>0, Calc_Conversion_elandheat(AG$4, AG$6, AG$4, AG$6, AI$4, AG$4), "") ->  | AI98: =IF(AE98>0, Calc_Conversion_elandheat(AI$4, 1, AI$4, AG$6, AG$4, AI$4), "") ->  | AL98: =IF(A98<>"",#REF!,"") ->  | AN98: =IF(A98<>"", IF(G98="Gas", IF(H98="kg", ((#REF!*Denscalc(I98) +#REF!+#REF!*Denscalc(I98)+#REF!)-F98), ( (#REF!+#REF!/Denscalc(I98) +#REF!+#REF!/Denscalc(I98))-F98)), ( (#REF!* Denscalc(I98)+#REF!+AL98+#REF!*Denscalc(I98)+#REF!+#REF!)-F98) ), "") -> 
B99: 91 | L99: 91 | N99: =IF(AND(K$2>0,M99>0),Calc_Emissions(),"") ->  | Q99: =IF(P99>0, Calc_Conversion(Q$6),"") ->  | T99: =IF(S99>0, Calc_Conversion(T$6),"") ->  | U99: 91 | W99: =IF(V99>0, Calc_Conversion(W$6),"") ->  | Z99: =IF(Y99>0, Calc_Conversion(Z$6),"") ->  | AA99: 91 | AC99: =IF(AB99>0, Calc_Conversion(AC$6),"") ->  | AG99: =IF(AE99>0, Calc_Conversion_elandheat(AG$4, AG$6, AG$4, AG$6, AI$4, AG$4), "") ->  | AI99: =IF(AE99>0, Calc_Conversion_elandheat(AI$4, 1, AI$4, AG$6, AG$4, AI$4), "") ->  | AL99: =IF(A99<>"",#REF!,"") ->  | AN99: =IF(A99<>"", IF(G99="Gas", IF(H99="kg", ((#REF!*Denscalc(I99) +#REF!+#REF!*Denscalc(I99)+#REF!)-F99), ( (#REF!+#REF!/Denscalc(I99) +#REF!+#REF!/Denscalc(I99))-F99)), ( (#REF!* Denscalc(I99)+#REF!+AL99+#REF!*Denscalc(I99)+#REF!+#REF!)-F99) ), "") -> 
B100: 92 | L100: 92 | N100: =IF(AND(K$2>0,M100>0),Calc_Emissions(),"") ->  | Q100: =IF(P100>0, Calc_Conversion(Q$6),"") ->  | T100: =IF(S100>0, Calc_Conversion(T$6),"") ->  | U100: 92 | W100: =IF(V100>0, Calc_Conversion(W$6),"") ->  | Z100: =IF(Y100>0, Calc_Conversion(Z$6),"") ->  | AA100: 92 | AC100: =IF(AB100>0, Calc_Conversion(AC$6),"") ->  | AG100: =IF(AE100>0, Calc_Conversion_elandheat(AG$4, AG$6, AG$4, AG$6, AI$4, AG$4), "") ->  | AI100: =IF(AE100>0, Calc_Conversion_elandheat(AI$4, 1, AI$4, AG$6, AG$4, AI$4), "") ->  | AL100: =IF(A100<>"",#REF!,"") ->  | AN100: =IF(A100<>"", IF(G100="Gas", IF(H100="kg", ((#REF!*Denscalc(I100) +#REF!+#REF!*Denscalc(I100)+#REF!)-F100), ( (#REF!+#REF!/Denscalc(I100) +#REF!+#REF!/Denscalc(I100))-F100)), ( (#REF!* Denscalc(I100)+#REF!+AL100+#REF!*Denscalc(I100)+#REF!+#REF!)-F100) ), "") -> 
B101: 93 | L101: 93 | N101: =IF(AND(K$2>0,M101>0),Calc_Emissions(),"") ->  | Q101: =IF(P101>0, Calc_Conversion(Q$6),"") ->  | T101: =IF(S101>0, Calc_Conversion(T$6),"") ->  | U101: 93 | W101: =IF(V101>0, Calc_Conversion(W$6),"") ->  | Z101: =IF(Y101>0, Calc_Conversion(Z$6),"") ->  | AA101: 93 | AC101: =IF(AB101>0, Calc_Conversion(AC$6),"") ->  | AG101: =IF(AE101>0, Calc_Conversion_elandheat(AG$4, AG$6, AG$4, AG$6, AI$4, AG$4), "") ->  | AI101: =IF(AE101>0, Calc_Conversion_elandheat(AI$4, 1, AI$4, AG$6, AG$4, AI$4), "") ->  | AL101: =IF(A101<>"",#REF!,"") ->  | AN101: =IF(A101<>"", IF(G101="Gas", IF(H101="kg", ((#REF!*Denscalc(I101) +#REF!+#REF!*Denscalc(I101)+#REF!)-F101), ( (#REF!+#REF!/Denscalc(I101) +#REF!+#REF!/Denscalc(I101))-F101)), ( (#REF!* Denscalc(I101)+#REF!+AL101+#REF!*Denscalc(I101)+#REF!+#REF!)-F101) ), "") -> 
B102: 94 | L102: 94 | N102: =IF(AND(K$2>0,M102>0),Calc_Emissions(),"") ->  | Q102: =IF(P102>0, Calc_Conversion(Q$6),"") ->  | T102: =IF(S102>0, Calc_Conversion(T$6),"") ->  | U102: 94 | W102: =IF(V102>0, Calc_Conversion(W$6),"") ->  | Z102: =IF(Y102>0, Calc_Conversion(Z$6),"") ->  | AA102: 94 | AC102: =IF(AB102>0, Calc_Conversion(AC$6),"") ->  | AG102: =IF(AE102>0, Calc_Conversion_elandheat(AG$4, AG$6, AG$4, AG$6, AI$4, AG$4), "") ->  | AI102: =IF(AE102>0, Calc_Conversion_elandheat(AI$4, 1, AI$4, AG$6, AG$4, AI$4), "") ->  | AL102: =IF(A102<>"",#REF!,"") ->  | AN102: =IF(A102<>"", IF(G102="Gas", IF(H102="kg", ((#REF!*Denscalc(I102) +#REF!+#REF!*Denscalc(I102)+#REF!)-F102), ( (#REF!+#REF!/Denscalc(I102) +#REF!+#REF!/Denscalc(I102))-F102)), ( (#REF!* Denscalc(I102)+#REF!+AL102+#REF!*Denscalc(I102)+#REF!+#REF!)-F102) ), "") -> 
B103: 95 | L103: 95 | N103: =IF(AND(K$2>0,M103>0),Calc_Emissions(),"") ->  | Q103: =IF(P103>0, Calc_Conversion(Q$6),"") ->  | T103: =IF(S103>0, Calc_Conversion(T$6),"") ->  | U103: 95 | W103: =IF(V103>0, Calc_Conversion(W$6),"") ->  | Z103: =IF(Y103>0, Calc_Conversion(Z$6),"") ->  | AA103: 95 | AC103: =IF(AB103>0, Calc_Conversion(AC$6),"") ->  | AG103: =IF(AE103>0, Calc_Conversion_elandheat(AG$4, AG$6, AG$4, AG$6, AI$4, AG$4), "") ->  | AI103: =IF(AE103>0, Calc_Conversion_elandheat(AI$4, 1, AI$4, AG$6, AG$4, AI$4), "") ->  | AL103: =IF(A103<>"",#REF!,"") ->  | AN103: =IF(A103<>"", IF(G103="Gas", IF(H103="kg", ((#REF!*Denscalc(I103) +#REF!+#REF!*Denscalc(I103)+#REF!)-F103), ( (#REF!+#REF!/Denscalc(I103) +#REF!+#REF!/Denscalc(I103))-F103)), ( (#REF!* Denscalc(I103)+#REF!+AL103+#REF!*Denscalc(I103)+#REF!+#REF!)-F103) ), "") -> 
B104: 96 | L104: 96 | N104: =IF(AND(K$2>0,M104>0),Calc_Emissions(),"") ->  | Q104: =IF(P104>0, Calc_Conversion(Q$6),"") ->  | T104: =IF(S104>0, Calc_Conversion(T$6),"") ->  | U104: 96 | W104: =IF(V104>0, Calc_Conversion(W$6),"") ->  | Z104: =IF(Y104>0, Calc_Conversion(Z$6),"") ->  | AA104: 96 | AC104: =IF(AB104>0, Calc_Conversion(AC$6),"") ->  | AG104: =IF(AE104>0, Calc_Conversion_elandheat(AG$4, AG$6, AG$4, AG$6, AI$4, AG$4), "") ->  | AI104: =IF(AE104>0, Calc_Conversion_elandheat(AI$4, 1, AI$4, AG$6, AG$4, AI$4), "") ->  | AL104: =IF(A104<>"",#REF!,"") ->  | AN104: =IF(A104<>"", IF(G104="Gas", IF(H104="kg", ((#REF!*Denscalc(I104) +#REF!+#REF!*Denscalc(I104)+#REF!)-F104), ( (#REF!+#REF!/Denscalc(I104) +#REF!+#REF!/Denscalc(I104))-F104)), ( (#REF!* Denscalc(I104)+#REF!+AL104+#REF!*Denscalc(I104)+#REF!+#REF!)-F104) ), "") -> 
B105: 97 | L105: 97 | N105: =IF(AND(K$2>0,M105>0),Calc_Emissions(),"") ->  | Q105: =IF(P105>0, Calc_Conversion(Q$6),"") ->  | T105: =IF(S105>0, Calc_Conversion(T$6),"") ->  | U105: 97 | W105: =IF(V105>0, Calc_Conversion(W$6),"") ->  | Z105: =IF(Y105>0, Calc_Conversion(Z$6),"") ->  | AA105: 97 | AC105: =IF(AB105>0, Calc_Conversion(AC$6),"") ->  | AG105: =IF(AE105>0, Calc_Conversion_elandheat(AG$4, AG$6, AG$4, AG$6, AI$4, AG$4), "") ->  | AI105: =IF(AE105>0, Calc_Conversion_elandheat(AI$4, 1, AI$4, AG$6, AG$4, AI$4), "") ->  | AL105: =IF(A105<>"",#REF!,"") ->  | AN105: =IF(A105<>"", IF(G105="Gas", IF(H105="kg", ((#REF!*Denscalc(I105) +#REF!+#REF!*Denscalc(I105)+#REF!)-F105), ( (#REF!+#REF!/Denscalc(I105) +#REF!+#REF!/Denscalc(I105))-F105)), ( (#REF!* Denscalc(I105)+#REF!+AL105+#REF!*Denscalc(I105)+#REF!+#REF!)-F105) ), "") -> 
B106: 98 | L106: 98 | N106: =IF(AND(K$2>0,M106>0),Calc_Emissions(),"") ->  | Q106: =IF(P106>0, Calc_Conversion(Q$6),"") ->  | T106: =IF(S106>0, Calc_Conversion(T$6),"") ->  | U106: 98 | W106: =IF(V106>0, Calc_Conversion(W$6),"") ->  | Z106: =IF(Y106>0, Calc_Conversion(Z$6),"") ->  | AA106: 98 | AC106: =IF(AB106>0, Calc_Conversion(AC$6),"") ->  | AG106: =IF(AE106>0, Calc_Conversion_elandheat(AG$4, AG$6, AG$4, AG$6, AI$4, AG$4), "") ->  | AI106: =IF(AE106>0, Calc_Conversion_elandheat(AI$4, 1, AI$4, AG$6, AG$4, AI$4), "") ->  | AL106: =IF(A106<>"",#REF!,"") ->  | AN106: =IF(A106<>"", IF(G106="Gas", IF(H106="kg", ((#REF!*Denscalc(I106) +#REF!+#REF!*Denscalc(I106)+#REF!)-F106), ( (#REF!+#REF!/Denscalc(I106) +#REF!+#REF!/Denscalc(I106))-F106)), ( (#REF!* Denscalc(I106)+#REF!+AL106+#REF!*Denscalc(I106)+#REF!+#REF!)-F106) ), "") -> 
B107: 99 | L107: 99 | N107: =IF(AND(K$2>0,M107>0),Calc_Emissions(),"") ->  | Q107: =IF(P107>0, Calc_Conversion(Q$6),"") ->  | T107: =IF(S107>0, Calc_Conversion(T$6),"") ->  | U107: 99 | W107: =IF(V107>0, Calc_Conversion(W$6),"") ->  | Z107: =IF(Y107>0, Calc_Conversion(Z$6),"") ->  | AA107: 99 | AC107: =IF(AB107>0, Calc_Conversion(AC$6),"") ->  | AG107: =IF(AE107>0, Calc_Conversion_elandheat(AG$4, AG$6, AG$4, AG$6, AI$4, AG$4), "") ->  | AI107: =IF(AE107>0, Calc_Conversion_elandheat(AI$4, 1, AI$4, AG$6, AG$4, AI$4), "") ->  | AL107: =IF(A107<>"",#REF!,"") ->  | AN107: =IF(A107<>"", IF(G107="Gas", IF(H107="kg", ((#REF!*Denscalc(I107) +#REF!+#REF!*Denscalc(I107)+#REF!)-F107), ( (#REF!+#REF!/Denscalc(I107) +#REF!+#REF!/Denscalc(I107))-F107)), ( (#REF!* Denscalc(I107)+#REF!+AL107+#REF!*Denscalc(I107)+#REF!+#REF!)-F107) ), "") -> 
B108: 100 | L108: 100 | N108: =IF(AND(K$2>0,M108>0),Calc_Emissions(),"") ->  | Q108: =IF(P108>0, Calc_Conversion(Q$6),"") ->  | T108: =IF(S108>0, Calc_Conversion(T$6),"") ->  | U108: 100 | W108: =IF(V108>0, Calc_Conversion(W$6),"") ->  | Z108: =IF(Y108>0, Calc_Conversion(Z$6),"") ->  | AA108: 100 | AC108: =IF(AB108>0, Calc_Conversion(AC$6),"") ->  | AG108: =IF(AE108>0, Calc_Conversion_elandheat(AG$4, AG$6, AG$4, AG$6, AI$4, AG$4), "") ->  | AI108: =IF(AE108>0, Calc_Conversion_elandheat(AI$4, 1, AI$4, AG$6, AG$4, AI$4), "") ->  | AL108: =IF(A108<>"",#REF!,"") ->  | AN108: =IF(A108<>"", IF(G108="Gas", IF(H108="kg", ((#REF!*Denscalc(I108) +#REF!+#REF!*Denscalc(I108)+#REF!)-F108), ( (#REF!+#REF!/Denscalc(I108) +#REF!+#REF!/Denscalc(I108))-F108)), ( (#REF!* Denscalc(I108)+#REF!+AL108+#REF!*Denscalc(I108)+#REF!+#REF!)-F108) ), "") -> 
B109: 101 | L109: 101 | N109: =IF(AND(K$2>0,M109>0),Calc_Emissions(),"") ->  | Q109: =IF(P109>0, Calc_Conversion(Q$6),"") ->  | T109: =IF(S109>0, Calc_Conversion(T$6),"") ->  | U109: 101 | W109: =IF(V109>0, Calc_Conversion(W$6),"") ->  | Z109: =IF(Y109>0, Calc_Conversion(Z$6),"") ->  | AA109: 101 | AC109: =IF(AB109>0, Calc_Conversion(AC$6),"") ->  | AG109: =IF(AE109>0, Calc_Conversion_elandheat(AG$4, AG$6, AG$4, AG$6, AI$4, AG$4), "") ->  | AI109: =IF(AE109>0, Calc_Conversion_elandheat(AI$4, 1, AI$4, AG$6, AG$4, AI$4), "") ->  | AL109: =IF(A109<>"",#REF!,"") ->  | AN109: =IF(A109<>"", IF(G109="Gas", IF(H109="kg", ((#REF!*Denscalc(I109) +#REF!+#REF!*Denscalc(I109)+#REF!)-F109), ( (#REF!+#REF!/Denscalc(I109) +#REF!+#REF!/Denscalc(I109))-F109)), ( (#REF!* Denscalc(I109)+#REF!+AL109+#REF!*Denscalc(I109)+#REF!+#REF!)-F109) ), "") -> 
B110: 102 | L110: 102 | N110: =IF(AND(K$2>0,M110>0),Calc_Emissions(),"") ->  | Q110: =IF(P110>0, Calc_Conversion(Q$6),"") ->  | T110: =IF(S110>0, Calc_Conversion(T$6),"") ->  | U110: 102 | W110: =IF(V110>0, Calc_Conversion(W$6),"") ->  | Z110: =IF(Y110>0, Calc_Conversion(Z$6),"") ->  | AA110: 102 | AC110: =IF(AB110>0, Calc_Conversion(AC$6),"") ->  | AG110: =IF(AE110>0, Calc_Conversion_elandheat(AG$4, AG$6, AG$4, AG$6, AI$4, AG$4), "") ->  | AI110: =IF(AE110>0, Calc_Conversion_elandheat(AI$4, 1, AI$4, AG$6, AG$4, AI$4), "") ->  | AL110: =IF(A110<>"",#REF!,"") ->  | AN110: =IF(A110<>"", IF(G110="Gas", IF(H110="kg", ((#REF!*Denscalc(I110) +#REF!+#REF!*Denscalc(I110)+#REF!)-F110), ( (#REF!+#REF!/Denscalc(I110) +#REF!+#REF!/Denscalc(I110))-F110)), ( (#REF!* Denscalc(I110)+#REF!+AL110+#REF!*Denscalc(I110)+#REF!+#REF!)-F110) ), "") -> 
B111: 103 | L111: 103 | N111: =IF(AND(K$2>0,M111>0),Calc_Emissions(),"") ->  | Q111: =IF(P111>0, Calc_Conversion(Q$6),"") ->  | T111: =IF(S111>0, Calc_Conversion(T$6),"") ->  | U111: 103 | W111: =IF(V111>0, Calc_Conversion(W$6),"") ->  | Z111: =IF(Y111>0, Calc_Conversion(Z$6),"") ->  | AA111: 103 | AC111: =IF(AB111>0, Calc_Conversion(AC$6),"") ->  | AG111: =IF(AE111>0, Calc_Conversion_elandheat(AG$4, AG$6, AG$4, AG$6, AI$4, AG$4), "") ->  | AI111: =IF(AE111>0, Calc_Conversion_elandheat(AI$4, 1, AI$4, AG$6, AG$4, AI$4), "") ->  | AL111: =IF(A111<>"",#REF!,"") ->  | AN111: =IF(A111<>"", IF(G111="Gas", IF(H111="kg", ((#REF!*Denscalc(I111) +#REF!+#REF!*Denscalc(I111)+#REF!)-F111), ( (#REF!+#REF!/Denscalc(I111) +#REF!+#REF!/Denscalc(I111))-F111)), ( (#REF!* Denscalc(I111)+#REF!+AL111+#REF!*Denscalc(I111)+#REF!+#REF!)-F111) ), "") -> 
B112: 104 | L112: 104 | N112: =IF(AND(K$2>0,M112>0),Calc_Emissions(),"") ->  | Q112: =IF(P112>0, Calc_Conversion(Q$6),"") ->  | T112: =IF(S112>0, Calc_Conversion(T$6),"") ->  | U112: 104 | W112: =IF(V112>0, Calc_Conversion(W$6),"") ->  | Z112: =IF(Y112>0, Calc_Conversion(Z$6),"") ->  | AA112: 104 | AC112: =IF(AB112>0, Calc_Conversion(AC$6),"") ->  | AG112: =IF(AE112>0, Calc_Conversion_elandheat(AG$4, AG$6, AG$4, AG$6, AI$4, AG$4), "") ->  | AI112: =IF(AE112>0, Calc_Conversion_elandheat(AI$4, 1, AI$4, AG$6, AG$4, AI$4), "") ->  | AL112: =IF(A112<>"",#REF!,"") ->  | AN112: =IF(A112<>"", IF(G112="Gas", IF(H112="kg", ((#REF!*Denscalc(I112) +#REF!+#REF!*Denscalc(I112)+#REF!)-F112), ( (#REF!+#REF!/Denscalc(I112) +#REF!+#REF!/Denscalc(I112))-F112)), ( (#REF!* Denscalc(I112)+#REF!+AL112+#REF!*Denscalc(I112)+#REF!+#REF!)-F112) ), "") -> 
B113: 105 | L113: 105 | N113: =IF(AND(K$2>0,M113>0),Calc_Emissions(),"") ->  | Q113: =IF(P113>0, Calc_Conversion(Q$6),"") ->  | T113: =IF(S113>0, Calc_Conversion(T$6),"") ->  | U113: 105 | W113: =IF(V113>0, Calc_Conversion(W$6),"") ->  | Z113: =IF(Y113>0, Calc_Conversion(Z$6),"") ->  | AA113: 105 | AC113: =IF(AB113>0, Calc_Conversion(AC$6),"") ->  | AG113: =IF(AE113>0, Calc_Conversion_elandheat(AG$4, AG$6, AG$4, AG$6, AI$4, AG$4), "") ->  | AI113: =IF(AE113>0, Calc_Conversion_elandheat(AI$4, 1, AI$4, AG$6, AG$4, AI$4), "") ->  | AL113: =IF(A113<>"",#REF!,"") ->  | AN113: =IF(A113<>"", IF(G113="Gas", IF(H113="kg", ((#REF!*Denscalc(I113) +#REF!+#REF!*Denscalc(I113)+#REF!)-F113), ( (#REF!+#REF!/Denscalc(I113) +#REF!+#REF!/Denscalc(I113))-F113)), ( (#REF!* Denscalc(I113)+#REF!+AL113+#REF!*Denscalc(I113)+#REF!+#REF!)-F113) ), "") -> 
B114: 106 | L114: 106 | N114: =IF(AND(K$2>0,M114>0),Calc_Emissions(),"") ->  | Q114: =IF(P114>0, Calc_Conversion(Q$6),"") ->  | T114: =IF(S114>0, Calc_Conversion(T$6),"") ->  | U114: 106 | W114: =IF(V114>0, Calc_Conversion(W$6),"") ->  | Z114: =IF(Y114>0, Calc_Conversion(Z$6),"") ->  | AA114: 106 | AC114: =IF(AB114>0, Calc_Conversion(AC$6),"") ->  | AG114: =IF(AE114>0, Calc_Conversion_elandheat(AG$4, AG$6, AG$4, AG$6, AI$4, AG$4), "") ->  | AI114: =IF(AE114>0, Calc_Conversion_elandheat(AI$4, 1, AI$4, AG$6, AG$4, AI$4), "") ->  | AL114: =IF(A114<>"",#REF!,"") ->  | AN114: =IF(A114<>"", IF(G114="Gas", IF(H114="kg", ((#REF!*Denscalc(I114) +#REF!+#REF!*Denscalc(I114)+#REF!)-F114), ( (#REF!+#REF!/Denscalc(I114) +#REF!+#REF!/Denscalc(I114))-F114)), ( (#REF!* Denscalc(I114)+#REF!+AL114+#REF!*Denscalc(I114)+#REF!+#REF!)-F114) ), "") -> 
B115: 107 | L115: 107 | N115: =IF(AND(K$2>0,M115>0),Calc_Emissions(),"") ->  | Q115: =IF(P115>0, Calc_Conversion(Q$6),"") ->  | T115: =IF(S115>0, Calc_Conversion(T$6),"") ->  | U115: 107 | W115: =IF(V115>0, Calc_Conversion(W$6),"") ->  | Z115: =IF(Y115>0, Calc_Conversion(Z$6),"") ->  | AA115: 107 | AC115: =IF(AB115>0, Calc_Conversion(AC$6),"") ->  | AG115: =IF(AE115>0, Calc_Conversion_elandheat(AG$4, AG$6, AG$4, AG$6, AI$4, AG$4), "") ->  | AI115: =IF(AE115>0, Calc_Conversion_elandheat(AI$4, 1, AI$4, AG$6, AG$4, AI$4), "") ->  | AL115: =IF(A115<>"",#REF!,"") ->  | AN115: =IF(A115<>"", IF(G115="Gas", IF(H115="kg", ((#REF!*Denscalc(I115) +#REF!+#REF!*Denscalc(I115)+#REF!)-F115), ( (#REF!+#REF!/Denscalc(I115) +#REF!+#REF!/Denscalc(I115))-F115)), ( (#REF!* Denscalc(I115)+#REF!+AL115+#REF!*Denscalc(I115)+#REF!+#REF!)-F115) ), "") -> 
B116: 108 | L116: 108 | N116: =IF(AND(K$2>0,M116>0),Calc_Emissions(),"") ->  | Q116: =IF(P116>0, Calc_Conversion(Q$6),"") ->  | T116: =IF(S116>0, Calc_Conversion(T$6),"") ->  | U116: 108 | W116: =IF(V116>0, Calc_Conversion(W$6),"") ->  | Z116: =IF(Y116>0, Calc_Conversion(Z$6),"") ->  | AA116: 108 | AC116: =IF(AB116>0, Calc_Conversion(AC$6),"") ->  | AG116: =IF(AE116>0, Calc_Conversion_elandheat(AG$4, AG$6, AG$4, AG$6, AI$4, AG$4), "") ->  | AI116: =IF(AE116>0, Calc_Conversion_elandheat(AI$4, 1, AI$4, AG$6, AG$4, AI$4), "") ->  | AL116: =IF(A116<>"",#REF!,"") ->  | AN116: =IF(A116<>"", IF(G116="Gas", IF(H116="kg", ((#REF!*Denscalc(I116) +#REF!+#REF!*Denscalc(I116)+#REF!)-F116), ( (#REF!+#REF!/Denscalc(I116) +#REF!+#REF!/Denscalc(I116))-F116)), ( (#REF!* Denscalc(I116)+#REF!+AL116+#REF!*Denscalc(I116)+#REF!+#REF!)-F116) ), "") -> 
B117: 109 | L117: 109 | N117: =IF(AND(K$2>0,M117>0),Calc_Emissions(),"") ->  | Q117: =IF(P117>0, Calc_Conversion(Q$6),"") ->  | T117: =IF(S117>0, Calc_Conversion(T$6),"") ->  | U117: 109 | W117: =IF(V117>0, Calc_Conversion(W$6),"") ->  | Z117: =IF(Y117>0, Calc_Conversion(Z$6),"") ->  | AA117: 109 | AC117: =IF(AB117>0, Calc_Conversion(AC$6),"") ->  | AG117: =IF(AE117>0, Calc_Conversion_elandheat(AG$4, AG$6, AG$4, AG$6, AI$4, AG$4), "") ->  | AI117: =IF(AE117>0, Calc_Conversion_elandheat(AI$4, 1, AI$4, AG$6, AG$4, AI$4), "") ->  | AL117: =IF(A117<>"",#REF!,"") ->  | AN117: =IF(A117<>"", IF(G117="Gas", IF(H117="kg", ((#REF!*Denscalc(I117) +#REF!+#REF!*Denscalc(I117)+#REF!)-F117), ( (#REF!+#REF!/Denscalc(I117) +#REF!+#REF!/Denscalc(I117))-F117)), ( (#REF!* Denscalc(I117)+#REF!+AL117+#REF!*Denscalc(I117)+#REF!+#REF!)-F117) ), "") -> 
B118: 110 | L118: 110 | N118: =IF(AND(K$2>0,M118>0),Calc_Emissions(),"") ->  | Q118: =IF(P118>0, Calc_Conversion(Q$6),"") ->  | T118: =IF(S118>0, Calc_Conversion(T$6),"") ->  | U118: 110 | W118: =IF(V118>0, Calc_Conversion(W$6),"") ->  | Z118: =IF(Y118>0, Calc_Conversion(Z$6),"") ->  | AA118: 110 | AC118: =IF(AB118>0, Calc_Conversion(AC$6),"") ->  | AG118: =IF(AE118>0, Calc_Conversion_elandheat(AG$4, AG$6, AG$4, AG$6, AI$4, AG$4), "") ->  | AI118: =IF(AE118>0, Calc_Conversion_elandheat(AI$4, 1, AI$4, AG$6, AG$4, AI$4), "") ->  | AL118: =IF(A118<>"",#REF!,"") ->  | AN118: =IF(A118<>"", IF(G118="Gas", IF(H118="kg", ((#REF!*Denscalc(I118) +#REF!+#REF!*Denscalc(I118)+#REF!)-F118), ( (#REF!+#REF!/Denscalc(I118) +#REF!+#REF!/Denscalc(I118))-F118)), ( (#REF!* Denscalc(I118)+#REF!+AL118+#REF!*Denscalc(I118)+#REF!+#REF!)-F118) ), "") -> 
B119: 111 | L119: 111 | N119: =IF(AND(K$2>0,M119>0),Calc_Emissions(),"") ->  | Q119: =IF(P119>0, Calc_Conversion(Q$6),"") ->  | T119: =IF(S119>0, Calc_Conversion(T$6),"") ->  | U119: 111 | W119: =IF(V119>0, Calc_Conversion(W$6),"") ->  | Z119: =IF(Y119>0, Calc_Conversion(Z$6),"") ->  | AA119: 111 | AC119: =IF(AB119>0, Calc_Conversion(AC$6),"") ->  | AG119: =IF(AE119>0, Calc_Conversion_elandheat(AG$4, AG$6, AG$4, AG$6, AI$4, AG$4), "") ->  | AI119: =IF(AE119>0, Calc_Conversion_elandheat(AI$4, 1, AI$4, AG$6, AG$4, AI$4), "") ->  | AL119: =IF(A119<>"",#REF!,"") ->  | AN119: =IF(A119<>"", IF(G119="Gas", IF(H119="kg", ((#REF!*Denscalc(I119) +#REF!+#REF!*Denscalc(I119)+#REF!)-F119), ( (#REF!+#REF!/Denscalc(I119) +#REF!+#REF!/Denscalc(I119))-F119)), ( (#REF!* Denscalc(I119)+#REF!+AL119+#REF!*Denscalc(I119)+#REF!+#REF!)-F119) ), "") -> 
B120: 112 | L120: 112 | N120: =IF(AND(K$2>0,M120>0),Calc_Emissions(),"") ->  | Q120: =IF(P120>0, Calc_Conversion(Q$6),"") ->  | T120: =IF(S120>0, Calc_Conversion(T$6),"") ->  | U120: 112 | W120: =IF(V120>0, Calc_Conversion(W$6),"") ->  | Z120: =IF(Y120>0, Calc_Conversion(Z$6),"") ->  | AA120: 112 | AC120: =IF(AB120>0, Calc_Conversion(AC$6),"") ->  | AG120: =IF(AE120>0, Calc_Conversion_elandheat(AG$4, AG$6, AG$4, AG$6, AI$4, AG$4), "") ->  | AI120: =IF(AE120>0, Calc_Conversion_elandheat(AI$4, 1, AI$4, AG$6, AG$4, AI$4), "") ->  | AL120: =IF(A120<>"",#REF!,"") ->  | AN120: =IF(A120<>"", IF(G120="Gas", IF(H120="kg", ((#REF!*Denscalc(I120) +#REF!+#REF!*Denscalc(I120)+#REF!)-F120), ( (#REF!+#REF!/Denscalc(I120) +#REF!+#REF!/Denscalc(I120))-F120)), ( (#REF!* Denscalc(I120)+#REF!+AL120+#REF!*Denscalc(I120)+#REF!+#REF!)-F120) ), "") -> 
B121: 113 | L121: 113 | N121: =IF(AND(K$2>0,M121>0),Calc_Emissions(),"") ->  | Q121: =IF(P121>0, Calc_Conversion(Q$6),"") ->  | T121: =IF(S121>0, Calc_Conversion(T$6),"") ->  | U121: 113 | W121: =IF(V121>0, Calc_Conversion(W$6),"") ->  | Z121: =IF(Y121>0, Calc_Conversion(Z$6),"") ->  | AA121: 113 | AC121: =IF(AB121>0, Calc_Conversion(AC$6),"") ->  | AG121: =IF(AE121>0, Calc_Conversion_elandheat(AG$4, AG$6, AG$4, AG$6, AI$4, AG$4), "") ->  | AI121: =IF(AE121>0, Calc_Conversion_elandheat(AI$4, 1, AI$4, AG$6, AG$4, AI$4), "") ->  | AL121: =IF(A121<>"",#REF!,"") ->  | AN121: =IF(A121<>"", IF(G121="Gas", IF(H121="kg", ((#REF!*Denscalc(I121) +#REF!+#REF!*Denscalc(I121)+#REF!)-F121), ( (#REF!+#REF!/Denscalc(I121) +#REF!+#REF!/Denscalc(I121))-F121)), ( (#REF!* Denscalc(I121)+#REF!+AL121+#REF!*Denscalc(I121)+#REF!+#REF!)-F121) ), "") -> 
B122: 114 | L122: 114 | N122: =IF(AND(K$2>0,M122>0),Calc_Emissions(),"") ->  | Q122: =IF(P122>0, Calc_Conversion(Q$6),"") ->  | T122: =IF(S122>0, Calc_Conversion(T$6),"") ->  | U122: 114 | W122: =IF(V122>0, Calc_Conversion(W$6),"") ->  | Z122: =IF(Y122>0, Calc_Conversion(Z$6),"") ->  | AA122: 114 | AC122: =IF(AB122>0, Calc_Conversion(AC$6),"") ->  | AG122: =IF(AE122>0, Calc_Conversion_elandheat(AG$4, AG$6, AG$4, AG$6, AI$4, AG$4), "") ->  | AI122: =IF(AE122>0, Calc_Conversion_elandheat(AI$4, 1, AI$4, AG$6, AG$4, AI$4), "") ->  | AL122: =IF(A122<>"",#REF!,"") ->  | AN122: =IF(A122<>"", IF(G122="Gas", IF(H122="kg", ((#REF!*Denscalc(I122) +#REF!+#REF!*Denscalc(I122)+#REF!)-F122), ( (#REF!+#REF!/Denscalc(I122) +#REF!+#REF!/Denscalc(I122))-F122)), ( (#REF!* Denscalc(I122)+#REF!+AL122+#REF!*Denscalc(I122)+#REF!+#REF!)-F122) ), "") -> 
B123: 115 | L123: 115 | N123: =IF(AND(K$2>0,M123>0),Calc_Emissions(),"") ->  | Q123: =IF(P123>0, Calc_Conversion(Q$6),"") ->  | T123: =IF(S123>0, Calc_Conversion(T$6),"") ->  | U123: 115 | W123: =IF(V123>0, Calc_Conversion(W$6),"") ->  | Z123: =IF(Y123>0, Calc_Conversion(Z$6),"") ->  | AA123: 115 | AC123: =IF(AB123>0, Calc_Conversion(AC$6),"") ->  | AG123: =IF(AE123>0, Calc_Conversion_elandheat(AG$4, AG$6, AG$4, AG$6, AI$4, AG$4), "") ->  | AI123: =IF(AE123>0, Calc_Conversion_elandheat(AI$4, 1, AI$4, AG$6, AG$4, AI$4), "") ->  | AL123: =IF(A123<>"",#REF!,"") ->  | AN123: =IF(A123<>"", IF(G123="Gas", IF(H123="kg", ((#REF!*Denscalc(I123) +#REF!+#REF!*Denscalc(I123)+#REF!)-F123), ( (#REF!+#REF!/Denscalc(I123) +#REF!+#REF!/Denscalc(I123))-F123)), ( (#REF!* Denscalc(I123)+#REF!+AL123+#REF!*Denscalc(I123)+#REF!+#REF!)-F123) ), "") -> 
B124: 116 | L124: 116 | N124: =IF(AND(K$2>0,M124>0),Calc_Emissions(),"") ->  | Q124: =IF(P124>0, Calc_Conversion(Q$6),"") ->  | T124: =IF(S124>0, Calc_Conversion(T$6),"") ->  | U124: 116 | W124: =IF(V124>0, Calc_Conversion(W$6),"") ->  | Z124: =IF(Y124>0, Calc_Conversion(Z$6),"") ->  | AA124: 116 | AC124: =IF(AB124>0, Calc_Conversion(AC$6),"") ->  | AG124: =IF(AE124>0, Calc_Conversion_elandheat(AG$4, AG$6, AG$4, AG$6, AI$4, AG$4), "") ->  | AI124: =IF(AE124>0, Calc_Conversion_elandheat(AI$4, 1, AI$4, AG$6, AG$4, AI$4), "") ->  | AL124: =IF(A124<>"",#REF!,"") ->  | AN124: =IF(A124<>"", IF(G124="Gas", IF(H124="kg", ((#REF!*Denscalc(I124) +#REF!+#REF!*Denscalc(I124)+#REF!)-F124), ( (#REF!+#REF!/Denscalc(I124) +#REF!+#REF!/Denscalc(I124))-F124)), ( (#REF!* Denscalc(I124)+#REF!+AL124+#REF!*Denscalc(I124)+#REF!+#REF!)-F124) ), "") -> 
B125: 117 | L125: 117 | N125: =IF(AND(K$2>0,M125>0),Calc_Emissions(),"") ->  | Q125: =IF(P125>0, Calc_Conversion(Q$6),"") ->  | T125: =IF(S125>0, Calc_Conversion(T$6),"") ->  | U125: 117 | W125: =IF(V125>0, Calc_Conversion(W$6),"") ->  | Z125: =IF(Y125>0, Calc_Conversion(Z$6),"") ->  | AA125: 117 | AC125: =IF(AB125>0, Calc_Conversion(AC$6),"") ->  | AG125: =IF(AE125>0, Calc_Conversion_elandheat(AG$4, AG$6, AG$4, AG$6, AI$4, AG$4), "") ->  | AI125: =IF(AE125>0, Calc_Conversion_elandheat(AI$4, 1, AI$4, AG$6, AG$4, AI$4), "") ->  | AL125: =IF(A125<>"",#REF!,"") ->  | AN125: =IF(A125<>"", IF(G125="Gas", IF(H125="kg", ((#REF!*Denscalc(I125) +#REF!+#REF!*Denscalc(I125)+#REF!)-F125), ( (#REF!+#REF!/Denscalc(I125) +#REF!+#REF!/Denscalc(I125))-F125)), ( (#REF!* Denscalc(I125)+#REF!+AL125+#REF!*Denscalc(I125)+#REF!+#REF!)-F125) ), "") -> 
B126: 118 | L126: 118 | N126: =IF(AND(K$2>0,M126>0),Calc_Emissions(),"") ->  | Q126: =IF(P126>0, Calc_Conversion(Q$6),"") ->  | T126: =IF(S126>0, Calc_Conversion(T$6),"") ->  | U126: 118 | W126: =IF(V126>0, Calc_Conversion(W$6),"") ->  | Z126: =IF(Y126>0, Calc_Conversion(Z$6),"") ->  | AA126: 118 | AC126: =IF(AB126>0, Calc_Conversion(AC$6),"") ->  | AG126: =IF(AE126>0, Calc_Conversion_elandheat(AG$4, AG$6, AG$4, AG$6, AI$4, AG$4), "") ->  | AI126: =IF(AE126>0, Calc_Conversion_elandheat(AI$4, 1, AI$4, AG$6, AG$4, AI$4), "") ->  | AL126: =IF(A126<>"",#REF!,"") ->  | AN126: =IF(A126<>"", IF(G126="Gas", IF(H126="kg", ((#REF!*Denscalc(I126) +#REF!+#REF!*Denscalc(I126)+#REF!)-F126), ( (#REF!+#REF!/Denscalc(I126) +#REF!+#REF!/Denscalc(I126))-F126)), ( (#REF!* Denscalc(I126)+#REF!+AL126+#REF!*Denscalc(I126)+#REF!+#REF!)-F126) ), "") -> 
B127: 119 | L127: 119 | N127: =IF(AND(K$2>0,M127>0),Calc_Emissions(),"") ->  | Q127: =IF(P127>0, Calc_Conversion(Q$6),"") ->  | T127: =IF(S127>0, Calc_Conversion(T$6),"") ->  | U127: 119 | W127: =IF(V127>0, Calc_Conversion(W$6),"") ->  | Z127: =IF(Y127>0, Calc_Conversion(Z$6),"") ->  | AA127: 119 | AC127: =IF(AB127>0, Calc_Conversion(AC$6),"") ->  | AG127: =IF(AE127>0, Calc_Conversion_elandheat(AG$4, AG$6, AG$4, AG$6, AI$4, AG$4), "") ->  | AI127: =IF(AE127>0, Calc_Conversion_elandheat(AI$4, 1, AI$4, AG$6, AG$4, AI$4), "") ->  | AL127: =IF(A127<>"",#REF!,"") ->  | AN127: =IF(A127<>"", IF(G127="Gas", IF(H127="kg", ((#REF!*Denscalc(I127) +#REF!+#REF!*Denscalc(I127)+#REF!)-F127), ( (#REF!+#REF!/Denscalc(I127) +#REF!+#REF!/Denscalc(I127))-F127)), ( (#REF!* Denscalc(I127)+#REF!+AL127+#REF!*Denscalc(I127)+#REF!+#REF!)-F127) ), "") -> 
B128: 120 | L128: 120 | N128: =IF(AND(K$2>0,M128>0),Calc_Emissions(),"") ->  | Q128: =IF(P128>0, Calc_Conversion(Q$6),"") ->  | T128: =IF(S128>0, Calc_Conversion(T$6),"") ->  | U128: 120 | W128: =IF(V128>0, Calc_Conversion(W$6),"") ->  | Z128: =IF(Y128>0, Calc_Conversion(Z$6),"") ->  | AA128: 120 | AC128: =IF(AB128>0, Calc_Conversion(AC$6),"") ->  | AG128: =IF(AE128>0, Calc_Conversion_elandheat(AG$4, AG$6, AG$4, AG$6, AI$4, AG$4), "") ->  | AI128: =IF(AE128>0, Calc_Conversion_elandheat(AI$4, 1, AI$4, AG$6, AG$4, AI$4), "") ->  | AL128: =IF(A128<>"",#REF!,"") ->  | AN128: =IF(A128<>"", IF(G128="Gas", IF(H128="kg", ((#REF!*Denscalc(I128) +#REF!+#REF!*Denscalc(I128)+#REF!)-F128), ( (#REF!+#REF!/Denscalc(I128) +#REF!+#REF!/Denscalc(I128))-F128)), ( (#REF!* Denscalc(I128)+#REF!+AL128+#REF!*Denscalc(I128)+#REF!+#REF!)-F128) ), "") -> 
B129: 121 | L129: 121 | N129: =IF(AND(K$2>0,M129>0),Calc_Emissions(),"") ->  | Q129: =IF(P129>0, Calc_Conversion(Q$6),"") ->  | T129: =IF(S129>0, Calc_Conversion(T$6),"") ->  | U129: 121 | W129: =IF(V129>0, Calc_Conversion(W$6),"") ->  | Z129: =IF(Y129>0, Calc_Conversion(Z$6),"") ->  | AA129: 121 | AC129: =IF(AB129>0, Calc_Conversion(AC$6),"") ->  | AG129: =IF(AE129>0, Calc_Conversion_elandheat(AG$4, AG$6, AG$4, AG$6, AI$4, AG$4), "") ->  | AI129: =IF(AE129>0, Calc_Conversion_elandheat(AI$4, 1, AI$4, AG$6, AG$4, AI$4), "") ->  | AL129: =IF(A129<>"",#REF!,"") ->  | AN129: =IF(A129<>"", IF(G129="Gas", IF(H129="kg", ((#REF!*Denscalc(I129) +#REF!+#REF!*Denscalc(I129)+#REF!)-F129), ( (#REF!+#REF!/Denscalc(I129) +#REF!+#REF!/Denscalc(I129))-F129)), ( (#REF!* Denscalc(I129)+#REF!+AL129+#REF!*Denscalc(I129)+#REF!+#REF!)-F129) ), "") -> 
B130: 122 | L130: 122 | N130: =IF(AND(K$2>0,M130>0),Calc_Emissions(),"") ->  | Q130: =IF(P130>0, Calc_Conversion(Q$6),"") ->  | T130: =IF(S130>0, Calc_Conversion(T$6),"") ->  | U130: 122 | W130: =IF(V130>0, Calc_Conversion(W$6),"") ->  | Z130: =IF(Y130>0, Calc_Conversion(Z$6),"") ->  | AA130: 122 | AC130: =IF(AB130>0, Calc_Conversion(AC$6),"") ->  | AG130: =IF(AE130>0, Calc_Conversion_elandheat(AG$4, AG$6, AG$4, AG$6, AI$4, AG$4), "") ->  | AI130: =IF(AE130>0, Calc_Conversion_elandheat(AI$4, 1, AI$4, AG$6, AG$4, AI$4), "") ->  | AL130: =IF(A130<>"",#REF!,"") ->  | AN130: =IF(A130<>"", IF(G130="Gas", IF(H130="kg", ((#REF!*Denscalc(I130) +#REF!+#REF!*Denscalc(I130)+#REF!)-F130), ( (#REF!+#REF!/Denscalc(I130) +#REF!+#REF!/Denscalc(I130))-F130)), ( (#REF!* Denscalc(I130)+#REF!+AL130+#REF!*Denscalc(I130)+#REF!+#REF!)-F130) ), "") -> 
B131: 123 | L131: 123 | N131: =IF(AND(K$2>0,M131>0),Calc_Emissions(),"") ->  | Q131: =IF(P131>0, Calc_Conversion(Q$6),"") ->  | T131: =IF(S131>0, Calc_Conversion(T$6),"") ->  | U131: 123 | W131: =IF(V131>0, Calc_Conversion(W$6),"") ->  | Z131: =IF(Y131>0, Calc_Conversion(Z$6),"") ->  | AA131: 123 | AC131: =IF(AB131>0, Calc_Conversion(AC$6),"") ->  | AG131: =IF(AE131>0, Calc_Conversion_elandheat(AG$4, AG$6, AG$4, AG$6, AI$4, AG$4), "") ->  | AI131: =IF(AE131>0, Calc_Conversion_elandheat(AI$4, 1, AI$4, AG$6, AG$4, AI$4), "") -> 
B132: 124 | L132: 124 | N132: =IF(AND(K$2>0,M132>0),Calc_Emissions(),"") ->  | Q132: =IF(P132>0, Calc_Conversion(Q$6),"") ->  | T132: =IF(S132>0, Calc_Conversion(T$6),"") ->  | U132: 124 | W132: =IF(V132>0, Calc_Conversion(W$6),"") ->  | Z132: =IF(Y132>0, Calc_Conversion(Z$6),"") ->  | AA132: 124 | AC132: =IF(AB132>0, Calc_Conversion(AC$6),"") ->  | AG132: =IF(AE132>0, Calc_Conversion_elandheat(AG$4, AG$6, AG$4, AG$6, AI$4, AG$4), "") ->  | AI132: =IF(AE132>0, Calc_Conversion_elandheat(AI$4, 1, AI$4, AG$6, AG$4, AI$4), "") -> 
B133: 125 | L133: 125 | N133: =IF(AND(K$2>0,M133>0),Calc_Emissions(),"") ->  | Q133: =IF(P133>0, Calc_Conversion(Q$6),"") ->  | T133: =IF(S133>0, Calc_Conversion(T$6),"") ->  | U133: 125 | W133: =IF(V133>0, Calc_Conversion(W$6),"") ->  | Z133: =IF(Y133>0, Calc_Conversion(Z$6),"") ->  | AA133: 125 | AC133: =IF(AB133>0, Calc_Conversion(AC$6),"") ->  | AG133: =IF(AE133>0, Calc_Conversion_elandheat(AG$4, AG$6, AG$4, AG$6, AI$4, AG$4), "") ->  | AI133: =IF(AE133>0, Calc_Conversion_elandheat(AI$4, 1, AI$4, AG$6, AG$4, AI$4), "") -> 
B134: 126 | L134: 126 | N134: =IF(AND(K$2>0,M134>0),Calc_Emissions(),"") ->  | Q134: =IF(P134>0, Calc_Conversion(Q$6),"") ->  | T134: =IF(S134>0, Calc_Conversion(T$6),"") ->  | U134: 126 | W134: =IF(V134>0, Calc_Conversion(W$6),"") ->  | Z134: =IF(Y134>0, Calc_Conversion(Z$6),"") ->  | AA134: 126 | AC134: =IF(AB134>0, Calc_Conversion(AC$6),"") ->  | AG134: =IF(AE134>0, Calc_Conversion_elandheat(AG$4, AG$6, AG$4, AG$6, AI$4, AG$4), "") ->  | AI134: =IF(AE134>0, Calc_Conversion_elandheat(AI$4, 1, AI$4, AG$6, AG$4, AI$4), "") -> 
B135: 127 | L135: 127 | N135: =IF(AND(K$2>0,M135>0),Calc_Emissions(),"") ->  | Q135: =IF(P135>0, Calc_Conversion(Q$6),"") ->  | T135: =IF(S135>0, Calc_Conversion(T$6),"") ->  | U135: 127 | W135: =IF(V135>0, Calc_Conversion(W$6),"") ->  | Z135: =IF(Y135>0, Calc_Conversion(Z$6),"") ->  | AA135: 127 | AC135: =IF(AB135>0, Calc_Conversion(AC$6),"") ->  | AG135: =IF(AE135>0, Calc_Conversion_elandheat(AG$4, AG$6, AG$4, AG$6, AI$4, AG$4), "") ->  | AI135: =IF(AE135>0, Calc_Conversion_elandheat(AI$4, 1, AI$4, AG$6, AG$4, AI$4), "") -> 
B136: 128 | L136: 128 | N136: =IF(AND(K$2>0,M136>0),Calc_Emissions(),"") ->  | Q136: =IF(P136>0, Calc_Conversion(Q$6),"") ->  | T136: =IF(S136>0, Calc_Conversion(T$6),"") ->  | U136: 128 | W136: =IF(V136>0, Calc_Conversion(W$6),"") ->  | Z136: =IF(Y136>0, Calc_Conversion(Z$6),"") ->  | AA136: 128 | AC136: =IF(AB136>0, Calc_Conversion(AC$6),"") ->  | AG136: =IF(AE136>0, Calc_Conversion_elandheat(AG$4, AG$6, AG$4, AG$6, AI$4, AG$4), "") ->  | AI136: =IF(AE136>0, Calc_Conversion_elandheat(AI$4, 1, AI$4, AG$6, AG$4, AI$4), "") -> 
B137: 129 | L137: 129 | N137: =IF(AND(K$2>0,M137>0),Calc_Emissions(),"") ->  | Q137: =IF(P137>0, Calc_Conversion(Q$6),"") ->  | T137: =IF(S137>0, Calc_Conversion(T$6),"") ->  | U137: 129 | W137: =IF(V137>0, Calc_Conversion(W$6),"") ->  | Z137: =IF(Y137>0, Calc_Conversion(Z$6),"") ->  | AA137: 129 | AC137: =IF(AB137>0, Calc_Conversion(AC$6),"") ->  | AG137: =IF(AE137>0, Calc_Conversion_elandheat(AG$4, AG$6, AG$4, AG$6, AI$4, AG$4), "") ->  | AI137: =IF(AE137>0, Calc_Conversion_elandheat(AI$4, 1, AI$4, AG$6, AG$4, AI$4), "") -> 
B138: 130 | L138: 130 | N138: =IF(AND(K$2>0,M138>0),Calc_Emissions(),"") ->  | Q138: =IF(P138>0, Calc_Conversion(Q$6),"") ->  | T138: =IF(S138>0, Calc_Conversion(T$6),"") ->  | U138: 130 | W138: =IF(V138>0, Calc_Conversion(W$6),"") ->  | Z138: =IF(Y138>0, Calc_Conversion(Z$6),"") ->  | AA138: 130 | AC138: =IF(AB138>0, Calc_Conversion(AC$6),"") ->  | AG138: =IF(AE138>0, Calc_Conversion_elandheat(AG$4, AG$6, AG$4, AG$6, AI$4, AG$4), "") ->  | AI138: =IF(AE138>0, Calc_Conversion_elandheat(AI$4, 1, AI$4, AG$6, AG$4, AI$4), "") ->  | AK138: =IF(A138<>"", (P138+S138+V138+Y138+AB138+AE138)-F138, "") -> 
B139: 131 | L139: 131 | N139: =IF(AND(K$2>0,M139>0),Calc_Emissions(),"") ->  | Q139: =IF(P139>0, Calc_Conversion(Q$6),"") ->  | T139: =IF(S139>0, Calc_Conversion(T$6),"") ->  | U139: 131 | W139: =IF(V139>0, Calc_Conversion(W$6),"") ->  | Z139: =IF(Y139>0, Calc_Conversion(Z$6),"") ->  | AA139: 131 | AC139: =IF(AB139>0, Calc_Conversion(AC$6),"") ->  | AF139: =IF(AND($A139<>"",AE139>0), AE139/($AG$3+$AI$3)*$AG$3, "") ->  | AG139: =IF(AE139>0, Calc_Conversion_elandheat(AG$4, AG$6, AG$4, AG$6, AI$4, AG$4), "") ->  | AH139: =IF(AND($A139<>"",AE139>0), AE139/($AG$3+$AI$3)*$AI$3, "") ->  | AI139: =IF(AE139>0, Calc_Conversion_elandheat(AI$4, 1, AI$4, AG$6, AG$4, AI$4), "") -> 
B140: 132 | L140: 132 | N140: =IF(AND(K$2>0,M140>0),Calc_Emissions(),"") ->  | Q140: =IF(P140>0, Calc_Conversion(Q$6),"") ->  | T140: =IF(S140>0, Calc_Conversion(T$6),"") ->  | U140: 132 | W140: =IF(V140>0, Calc_Conversion(W$6),"") ->  | Z140: =IF(Y140>0, Calc_Conversion(Z$6),"") ->  | AA140: 132 | AC140: =IF(AB140>0, Calc_Conversion(AC$6),"") ->  | AG140: =IF(AE140>0, Calc_Conversion_elandheat(AG$4, AG$6, AG$4, AG$6, AI$4, AG$4), "") ->  | AI140: =IF(AE140>0, Calc_Conversion_elandheat(AI$4, 1, AI$4, AG$6, AG$4, AI$4), "") -> 
B141: 133 | L141: 133 | N141: =IF(AND(K$2>0,M141>0),Calc_Emissions(),"") ->  | Q141: =IF(P141>0, Calc_Conversion(Q$6),"") ->  | T141: =IF(S141>0, Calc_Conversion(T$6),"") ->  | U141: 133 | W141: =IF(V141>0, Calc_Conversion(W$6),"") ->  | Z141: =IF(Y141>0, Calc_Conversion(Z$6),"") ->  | AA141: 133 | AC141: =IF(AB141>0, Calc_Conversion(AC$6),"") ->  | AG141: =IF(AE141>0, Calc_Conversion_elandheat(AG$4, AG$6, AG$4, AG$6, AI$4, AG$4), "") ->  | AI141: =IF(AE141>0, Calc_Conversion_elandheat(AI$4, 1, AI$4, AG$6, AG$4, AI$4), "") -> 
B142: 134 | L142: 134 | N142: =IF(AND(K$2>0,M142>0),Calc_Emissions(),"") ->  | Q142: =IF(P142>0, Calc_Conversion(Q$6),"") ->  | T142: =IF(S142>0, Calc_Conversion(T$6),"") ->  | U142: 134 | W142: =IF(V142>0, Calc_Conversion(W$6),"") ->  | Z142: =IF(Y142>0, Calc_Conversion(Z$6),"") ->  | AA142: 134 | AC142: =IF(AB142>0, Calc_Conversion(AC$6),"") ->  | AG142: =IF(AE142>0, Calc_Conversion_elandheat(AG$4, AG$6, AG$4, AG$6, AI$4, AG$4), "") ->  | AI142: =IF(AE142>0, Calc_Conversion_elandheat(AI$4, 1, AI$4, AG$6, AG$4, AI$4), "") -> 
B143: 135 | L143: 135 | N143: =IF(AND(K$2>0,M143>0),Calc_Emissions(),"") ->  | Q143: =IF(P143>0, Calc_Conversion(Q$6),"") ->  | T143: =IF(S143>0, Calc_Conversion(T$6),"") ->  | U143: 135 | W143: =IF(V143>0, Calc_Conversion(W$6),"") ->  | Z143: =IF(Y143>0, Calc_Conversion(Z$6),"") ->  | AA143: 135 | AC143: =IF(AB143>0, Calc_Conversion(AC$6),"") ->  | AG143: =IF(AE143>0, Calc_Conversion_elandheat(AG$4, AG$6, AG$4, AG$6, AI$4, AG$4), "") ->  | AI143: =IF(AE143>0, Calc_Conversion_elandheat(AI$4, 1, AI$4, AG$6, AG$4, AI$4), "") ->  | AL143: =IF(A143<>"",#REF!,"") ->  | AN143: =IF(A143<>"", IF(G143="Gas", IF(H143="kg", ((#REF!*Denscalc(I143) +#REF!+#REF!*Denscalc(I143)+#REF!)-F143), ( (#REF!+#REF!/Denscalc(I143) +#REF!+#REF!/Denscalc(I143))-F143)), ( (#REF!* Denscalc(I143)+#REF!+AL143+#REF!*Denscalc(I143)+#REF!+#REF!)-F143) ), "") -> 
B144: 136 | L144: 136 | N144: =IF(AND(K$2>0,M144>0),Calc_Emissions(),"") ->  | Q144: =IF(P144>0, Calc_Conversion(Q$6),"") ->  | T144: =IF(S144>0, Calc_Conversion(T$6),"") ->  | U144: 136 | W144: =IF(V144>0, Calc_Conversion(W$6),"") ->  | Z144: =IF(Y144>0, Calc_Conversion(Z$6),"") ->  | AA144: 136 | AC144: =IF(AB144>0, Calc_Conversion(AC$6),"") ->  | AG144: =IF(AE144>0, Calc_Conversion_elandheat(AG$4, AG$6, AG$4, AG$6, AI$4, AG$4), "") ->  | AI144: =IF(AE144>0, Calc_Conversion_elandheat(AI$4, 1, AI$4, AG$6, AG$4, AI$4), "") ->  | AL144: =IF(A144<>"",#REF!,"") ->  | AN144: =IF(A144<>"", IF(G144="Gas", IF(H144="kg", ((#REF!*Denscalc(I144) +#REF!+#REF!*Denscalc(I144)+#REF!)-F144), ( (#REF!+#REF!/Denscalc(I144) +#REF!+#REF!/Denscalc(I144))-F144)), ( (#REF!* Denscalc(I144)+#REF!+AL144+#REF!*Denscalc(I144)+#REF!+#REF!)-F144) ), "") -> 
B145: 137 | L145: 137 | N145: =IF(AND(K$2>0,M145>0),Calc_Emissions(),"") ->  | Q145: =IF(P145>0, Calc_Conversion(Q$6),"") ->  | T145: =IF(S145>0, Calc_Conversion(T$6),"") ->  | U145: 137 | W145: =IF(V145>0, Calc_Conversion(W$6),"") ->  | Z145: =IF(Y145>0, Calc_Conversion(Z$6),"") ->  | AA145: 137 | AC145: =IF(AB145>0, Calc_Conversion(AC$6),"") ->  | AG145: =IF(AE145>0, Calc_Conversion_elandheat(AG$4, AG$6, AG$4, AG$6, AI$4, AG$4), "") ->  | AI145: =IF(AE145>0, Calc_Conversion_elandheat(AI$4, 1, AI$4, AG$6, AG$4, AI$4), "") ->  | AL145: =IF(A145<>"",#REF!,"") ->  | AN145: =IF(A145<>"", IF(G145="Gas", IF(H145="kg", ((#REF!*Denscalc(I145) +#REF!+#REF!*Denscalc(I145)+#REF!)-F145), ( (#REF!+#REF!/Denscalc(I145) +#REF!+#REF!/Denscalc(I145))-F145)), ( (#REF!* Denscalc(I145)+#REF!+AL145+#REF!*Denscalc(I145)+#REF!+#REF!)-F145) ), "") -> 
B146: 138 | L146: 138 | N146: =IF(AND(K$2>0,M146>0),Calc_Emissions(),"") ->  | Q146: =IF(P146>0, Calc_Conversion(Q$6),"") ->  | T146: =IF(S146>0, Calc_Conversion(T$6),"") ->  | U146: 138 | W146: =IF(V146>0, Calc_Conversion(W$6),"") ->  | Z146: =IF(Y146>0, Calc_Conversion(Z$6),"") ->  | AA146: 138 | AC146: =IF(AB146>0, Calc_Conversion(AC$6),"") ->  | AG146: =IF(AE146>0, Calc_Conversion_elandheat(AG$4, AG$6, AG$4, AG$6, AI$4, AG$4), "") ->  | AI146: =IF(AE146>0, Calc_Conversion_elandheat(AI$4, 1, AI$4, AG$6, AG$4, AI$4), "") ->  | AL146: =IF(A146<>"",#REF!,"") ->  | AN146: =IF(A146<>"", IF(G146="Gas", IF(H146="kg", ((#REF!*Denscalc(I146) +#REF!+#REF!*Denscalc(I146)+#REF!)-F146), ( (#REF!+#REF!/Denscalc(I146) +#REF!+#REF!/Denscalc(I146))-F146)), ( (#REF!* Denscalc(I146)+#REF!+AL146+#REF!*Denscalc(I146)+#REF!+#REF!)-F146) ), "") -> 
B147: 139 | L147: 139 | N147: =IF(AND(K$2>0,M147>0),Calc_Emissions(),"") ->  | Q147: =IF(P147>0, Calc_Conversion(Q$6),"") ->  | T147: =IF(S147>0, Calc_Conversion(T$6),"") ->  | U147: 139 | W147: =IF(V147>0, Calc_Conversion(W$6),"") ->  | Z147: =IF(Y147>0, Calc_Conversion(Z$6),"") ->  | AA147: 139 | AC147: =IF(AB147>0, Calc_Conversion(AC$6),"") ->  | AG147: =IF(AE147>0, Calc_Conversion_elandheat(AG$4, AG$6, AG$4, AG$6, AI$4, AG$4), "") ->  | AI147: =IF(AE147>0, Calc_Conversion_elandheat(AI$4, 1, AI$4, AG$6, AG$4, AI$4), "") ->  | AL147: =IF(A147<>"",#REF!,"") ->  | AN147: =IF(A147<>"", IF(G147="Gas", IF(H147="kg", ((#REF!*Denscalc(I147) +#REF!+#REF!*Denscalc(I147)+#REF!)-F147), ( (#REF!+#REF!/Denscalc(I147) +#REF!+#REF!/Denscalc(I147))-F147)), ( (#REF!* Denscalc(I147)+#REF!+AL147+#REF!*Denscalc(I147)+#REF!+#REF!)-F147) ), "") -> 
B148: 140 | L148: 140 | N148: =IF(AND(K$2>0,M148>0),Calc_Emissions(),"") ->  | Q148: =IF(P148>0, Calc_Conversion(Q$6),"") ->  | T148: =IF(S148>0, Calc_Conversion(T$6),"") ->  | U148: 140 | W148: =IF(V148>0, Calc_Conversion(W$6),"") ->  | Z148: =IF(Y148>0, Calc_Conversion(Z$6),"") ->  | AA148: 140 | AC148: =IF(AB148>0, Calc_Conversion(AC$6),"") ->  | AG148: =IF(AE148>0, Calc_Conversion_elandheat(AG$4, AG$6, AG$4, AG$6, AI$4, AG$4), "") ->  | AI148: =IF(AE148>0, Calc_Conversion_elandheat(AI$4, 1, AI$4, AG$6, AG$4, AI$4), "") ->  | AL148: =IF(A148<>"",#REF!,"") -> 
B149: 141 | L149: 141 | N149: =IF(AND(K$2>0,M149>0),Calc_Emissions(),"") ->  | Q149: =IF(P149>0, Calc_Conversion(Q$6),"") ->  | T149: =IF(S149>0, Calc_Conversion(T$6),"") ->  | U149: 141 | W149: =IF(V149>0, Calc_Conversion(W$6),"") ->  | Z149: =IF(Y149>0, Calc_Conversion(Z$6),"") ->  | AA149: 141 | AC149: =IF(AB149>0, Calc_Conversion(AC$6),"") ->  | AG149: =IF(AE149>0, Calc_Conversion_elandheat(AG$4, AG$6, AG$4, AG$6, AI$4, AG$4), "") ->  | AI149: =IF(AE149>0, Calc_Conversion_elandheat(AI$4, 1, AI$4, AG$6, AG$4, AI$4), "") ->  | AL149: =IF(A149<>"",#REF!,"") -> 
B150: 142 | L150: 142 | N150: =IF(AND(K$2>0,M150>0),Calc_Emissions(),"") ->  | Q150: =IF(P150>0, Calc_Conversion(Q$6),"") ->  | T150: =IF(S150>0, Calc_Conversion(T$6),"") ->  | U150: 142 | W150: =IF(V150>0, Calc_Conversion(W$6),"") ->  | Z150: =IF(Y150>0, Calc_Conversion(Z$6),"") ->  | AA150: 142 | AC150: =IF(AB150>0, Calc_Conversion(AC$6),"") ->  | AG150: =IF(AE150>0, Calc_Conversion_elandheat(AG$4, AG$6, AG$4, AG$6, AI$4, AG$4), "") ->  | AI150: =IF(AE150>0, Calc_Conversion_elandheat(AI$4, 1, AI$4, AG$6, AG$4, AI$4), "") ->  | AL150: =IF(A150<>"",#REF!,"") -> 
B151: 143 | L151: 143 | N151: =IF(AND(K$2>0,M151>0),Calc_Emissions(),"") ->  | Q151: =IF(P151>0, Calc_Conversion(Q$6),"") ->  | T151: =IF(S151>0, Calc_Conversion(T$6),"") ->  | U151: 143 | W151: =IF(V151>0, Calc_Conversion(W$6),"") ->  | Z151: =IF(Y151>0, Calc_Conversion(Z$6),"") ->  | AA151: 143 | AC151: =IF(AB151>0, Calc_Conversion(AC$6),"") ->  | AG151: =IF(AE151>0, Calc_Conversion_elandheat(AG$4, AG$6, AG$4, AG$6, AI$4, AG$4), "") ->  | AI151: =IF(AE151>0, Calc_Conversion_elandheat(AI$4, 1, AI$4, AG$6, AG$4, AI$4), "") -> 
B152: 144 | L152: 144 | N152: =IF(AND(K$2>0,M152>0),Calc_Emissions(),"") ->  | Q152: =IF(P152>0, Calc_Conversion(Q$6),"") ->  | T152: =IF(S152>0, Calc_Conversion(T$6),"") ->  | U152: 144 | W152: =IF(V152>0, Calc_Conversion(W$6),"") ->  | Z152: =IF(Y152>0, Calc_Conversion(Z$6),"") ->  | AA152: 144 | AC152: =IF(AB152>0, Calc_Conversion(AC$6),"") ->  | AG152: =IF(AE152>0, Calc_Conversion_elandheat(AG$4, AG$6, AG$4, AG$6, AI$4, AG$4), "") ->  | AI152: =IF(AE152>0, Calc_Conversion_elandheat(AI$4, 1, AI$4, AG$6, AG$4, AI$4), "") ->  | AL152: =IF(A152<>"",#REF!,"") ->  | AN152: =IF(A152<>"", IF(G152="Gas", IF(H152="kg", ((#REF!*Denscalc(I152) +#REF!+#REF!*Denscalc(I152)+#REF!)-F152), ( (#REF!+#REF!/Denscalc(I152) +#REF!+#REF!/Denscalc(I152))-F152)), ( (#REF!* Denscalc(I152)+#REF!+AL152+#REF!*Denscalc(I152)+#REF!+#REF!)-F152) ), "") -> 
B153: 145 | L153: 145 | N153: =IF(AND(K$2>0,M153>0),Calc_Emissions(),"") ->  | Q153: =IF(P153>0, Calc_Conversion(Q$6),"") ->  | T153: =IF(S153>0, Calc_Conversion(T$6),"") ->  | U153: 145 | W153: =IF(V153>0, Calc_Conversion(W$6),"") ->  | Z153: =IF(Y153>0, Calc_Conversion(Z$6),"") ->  | AA153: 145 | AC153: =IF(AB153>0, Calc_Conversion(AC$6),"") ->  | AG153: =IF(AE153>0, Calc_Conversion_elandheat(AG$4, AG$6, AG$4, AG$6, AI$4, AG$4), "") ->  | AI153: =IF(AE153>0, Calc_Conversion_elandheat(AI$4, 1, AI$4, AG$6, AG$4, AI$4), "") ->  | AL153: =IF(A153<>"",#REF!,"") ->  | AN153: =IF(A153<>"", IF(G153="Gas", IF(H153="kg", ((#REF!*Denscalc(I153) +#REF!+#REF!*Denscalc(I153)+#REF!)-F153), ( (#REF!+#REF!/Denscalc(I153) +#REF!+#REF!/Denscalc(I153))-F153)), ( (#REF!* Denscalc(I153)+#REF!+AL153+#REF!*Denscalc(I153)+#REF!+#REF!)-F153) ), "") -> 
B154: 146 | L154: 146 | N154: =IF(AND(K$2>0,M154>0),Calc_Emissions(),"") ->  | Q154: =IF(P154>0, Calc_Conversion(Q$6),"") ->  | T154: =IF(S154>0, Calc_Conversion(T$6),"") ->  | U154: 146 | W154: =IF(V154>0, Calc_Conversion(W$6),"") ->  | Z154: =IF(Y154>0, Calc_Conversion(Z$6),"") ->  | AA154: 146 | AC154: =IF(AB154>0, Calc_Conversion(AC$6),"") ->  | AG154: =IF(AE154>0, Calc_Conversion_elandheat(AG$4, AG$6, AG$4, AG$6, AI$4, AG$4), "") ->  | AI154: =IF(AE154>0, Calc_Conversion_elandheat(AI$4, 1, AI$4, AG$6, AG$4, AI$4), "") ->  | AL154: =IF(A154<>"",#REF!,"") ->  | AN154: =IF(A154<>"", IF(G154="Gas", IF(H154="kg", ((#REF!*Denscalc(I154) +#REF!+#REF!*Denscalc(I154)+#REF!)-F154), ( (#REF!+#REF!/Denscalc(I154) +#REF!+#REF!/Denscalc(I154))-F154)), ( (#REF!* Denscalc(I154)+#REF!+AL154+#REF!*Denscalc(I154)+#REF!+#REF!)-F154) ), "") -> 
B155: 147 | L155: 147 | N155: =IF(AND(K$2>0,M155>0),Calc_Emissions(),"") ->  | Q155: =IF(P155>0, Calc_Conversion(Q$6),"") ->  | T155: =IF(S155>0, Calc_Conversion(T$6),"") ->  | U155: 147 | W155: =IF(V155>0, Calc_Conversion(W$6),"") ->  | Z155: =IF(Y155>0, Calc_Conversion(Z$6),"") ->  | AA155: 147 | AC155: =IF(AB155>0, Calc_Conversion(AC$6),"") ->  | AG155: =IF(AE155>0, Calc_Conversion_elandheat(AG$4, AG$6, AG$4, AG$6, AI$4, AG$4), "") ->  | AI155: =IF(AE155>0, Calc_Conversion_elandheat(AI$4, 1, AI$4, AG$6, AG$4, AI$4), "") ->  | AL155: =IF(A155<>"",#REF!,"") ->  | AN155: =IF(A155<>"", IF(G155="Gas", IF(H155="kg", ((#REF!*Denscalc(I155) +#REF!+#REF!*Denscalc(I155)+#REF!)-F155), ( (#REF!+#REF!/Denscalc(I155) +#REF!+#REF!/Denscalc(I155))-F155)), ( (#REF!* Denscalc(I155)+#REF!+AL155+#REF!*Denscalc(I155)+#REF!+#REF!)-F155) ), "") -> 
B156: 148 | L156: 148 | N156: =IF(AND(K$2>0,M156>0),Calc_Emissions(),"") ->  | Q156: =IF(P156>0, Calc_Conversion(Q$6),"") ->  | T156: =IF(S156>0, Calc_Conversion(T$6),"") ->  | U156: 148 | W156: =IF(V156>0, Calc_Conversion(W$6),"") ->  | Z156: =IF(Y156>0, Calc_Conversion(Z$6),"") ->  | AA156: 148 | AC156: =IF(AB156>0, Calc_Conversion(AC$6),"") ->  | AG156: =IF(AE156>0, Calc_Conversion_elandheat(AG$4, AG$6, AG$4, AG$6, AI$4, AG$4), "") ->  | AI156: =IF(AE156>0, Calc_Conversion_elandheat(AI$4, 1, AI$4, AG$6, AG$4, AI$4), "") ->  | AL156: =IF(A156<>"",#REF!,"") ->  | AN156: =IF(A156<>"", IF(G156="Gas", IF(H156="kg", ((#REF!*Denscalc(I156) +#REF!+#REF!*Denscalc(I156)+#REF!)-F156), ( (#REF!+#REF!/Denscalc(I156) +#REF!+#REF!/Denscalc(I156))-F156)), ( (#REF!* Denscalc(I156)+#REF!+AL156+#REF!*Denscalc(I156)+#REF!+#REF!)-F156) ), "") -> 
B157: 149 | L157: 149 | N157: =IF(AND(K$2>0,M157>0),Calc_Emissions(),"") ->  | Q157: =IF(P157>0, Calc_Conversion(Q$6),"") ->  | T157: =IF(S157>0, Calc_Conversion(T$6),"") ->  | U157: 149 | W157: =IF(V157>0, Calc_Conversion(W$6),"") ->  | Z157: =IF(Y157>0, Calc_Conversion(Z$6),"") ->  | AA157: 149 | AC157: =IF(AB157>0, Calc_Conversion(AC$6),"") ->  | AG157: =IF(AE157>0, Calc_Conversion_elandheat(AG$4, AG$6, AG$4, AG$6, AI$4, AG$4), "") ->  | AI157: =IF(AE157>0, Calc_Conversion_elandheat(AI$4, 1, AI$4, AG$6, AG$4, AI$4), "") ->  | AL157: =IF(A157<>"",#REF!,"") ->  | AN157: =IF(A157<>"", IF(G157="Gas", IF(H157="kg", ((#REF!*Denscalc(I157) +#REF!+#REF!*Denscalc(I157)+#REF!)-F157), ( (#REF!+#REF!/Denscalc(I157) +#REF!+#REF!/Denscalc(I157))-F157)), ( (#REF!* Denscalc(I157)+#REF!+AL157+#REF!*Denscalc(I157)+#REF!+#REF!)-F157) ), "") -> 
B158: 150 | L158: 150 | N158: =IF(AND(K$2>0,M158>0),Calc_Emissions(),"") ->  | Q158: =IF(P158>0, Calc_Conversion(Q$6),"") ->  | T158: =IF(S158>0, Calc_Conversion(T$6),"") ->  | U158: 150 | W158: =IF(V158>0, Calc_Conversion(W$6),"") ->  | Z158: =IF(Y158>0, Calc_Conversion(Z$6),"") ->  | AA158: 150 | AC158: =IF(AB158>0, Calc_Conversion(AC$6),"") ->  | AG158: =IF(AE158>0, Calc_Conversion_elandheat(AG$4, AG$6, AG$4, AG$6, AI$4, AG$4), "") ->  | AI158: =IF(AE158>0, Calc_Conversion_elandheat(AI$4, 1, AI$4, AG$6, AG$4, AI$4), "") ->  | AL158: =IF(A158<>"",#REF!,"") ->  | AN158: =IF(A158<>"", IF(G158="Gas", IF(H158="kg", ((#REF!*Denscalc(I158) +#REF!+#REF!*Denscalc(I158)+#REF!)-F158), ( (#REF!+#REF!/Denscalc(I158) +#REF!+#REF!/Denscalc(I158))-F158)), ( (#REF!* Denscalc(I158)+#REF!+AL158+#REF!*Denscalc(I158)+#REF!+#REF!)-F158) ), "") -> 
A159: Summa inköpt biogas i enheten, Nm3 | F159: =SUMIF($G9:$G158,"=Nm3",F9:F158) -> 0 | G159: Nm3 | M159: =SUMIF($G9:$G158,"=Nm3",M9:M158) -> 0 | N159: Nm3 | P159: =SUMIF($G9:$G158,"=Nm3",P9:P158) -> 0 | Q159: Nm3 | S159: =SUMIF($G9:$G158,"=Nm3",S9:S158) -> 0 | T159: Nm3 | V159: =SUMIF($G9:$G158,"=Nm3",V9:V158) -> 0 | W159: Nm3 | Y159: =SUMIF($G9:$G158,"=Nm3",Y9:Y158) -> 0 | Z159: Nm3 | AB159: =SUMIF($G9:$G158,"=Nm3",AB9:AB158) -> 0 | AC159: Nm3 | AE159: =SUMIF($G9:$G158,"=Nm3",AE9:AE158) -> 0 | AF159: =SUMIF($G9:$G158,"=Nm3",AF9:AF158) -> 0 | AH159: =SUMIF($G9:$G158,"=Nm3",AH9:AH158) -> 0 | AK159: =IF(A159<>"", (P159+S159+V159+Y159+AB159+AE159)-F159, "") -> 0
A160: Summa inköpt biogas i enheten, kg | F160: =SUMIF($G9:$G158,"=kg",F9:F158) -> 0 | G160: kg | H160: Summa använd biogas i enheten kg | M160: =SUMIF($G9:$G158,"=kg",M9:M158) -> 0 | N160: kg | P160: =SUMIF($G9:$G158,"=kg",P9:P158) -> 0 | Q160: kg | S160: =SUMIF($G9:$G158,"=kg",S9:S158) -> 0 | T160: kg | V160: =SUMIF($G9:$G158,"=kg",V9:V158) -> 0 | W160: kg | Y160: =SUMIF($G9:$G158,"=kg",Y9:Y158) -> 0 | Z160: kg | AB160: =SUMIF($G9:$G158,"=kg",AB9:AB158) -> 0 | AC160: kg | AE160: =SUMIF($G9:$G158,"=kg",AE9:AE158) -> 0 | AF160: =SUMIF($G9:$G158,"=kg",AF9:AF158) -> 0 | AG160: =IF(AND($A160<>"",AE160>0,$K$2>0), $I160/AG$4 * ($AG$4*$AG$6/(1*$AI$4+$AG$6*$AG$4)), "") ->  | AH160: =SUMIF($G9:$G158,"=kg",AH9:AH158) -> 0 | AI160: =IF(AND($A160<>"",AE160>0,$K$2>0), $I160/AI$4 * (1*$AI$4/(1*$AI$4+$AG$6*$AG$4)), "") ->  | AK160: 0
AL161: =#REF!+#REF!+#REF! -> 
F192: =SUMIF(#REF!,"Nm3",#REF!) -> 
G194: =IFERROR(FIND("N",J9,1),"X") -> X

Sheet Rapport HBL
A1: HBK-El & Värme, ver 1.1 - Underlag för rapportering enligt Hållbarhetslagen
A2: Företag: | C2: =Gasanvändning!D1 -> företagsnamn
A3: Rapportering för år: | C3: =Gasanvändning!K1 -> 2023
A4: Bränsletyp | B4: Bränslekategori | C4: Anläggningens driftsättningsdatum | D4: Användningsområde | E4: Hållbar mängd | F4: Enhet mängd | G4: Effektivt värmevärde | H4: Enhet värmevärde | I4: Ange råvara, för mängder som ej har krav på minskade växthusgasutsläpp | J4: Råvara vid krav på minskade växthusgasutsläpp | K4: Råvarans ursprungsland | L4: Restprodukt eller avfall | M4: Livsmedel/fodergröda | N4: Högrisk ILUC | O4: Metod för bestämmande av växthusgasutsläpp | P4: Produktionskedja | Q4: Växthusgasutsläpp g CO2e/MJ | R4: VHG-bonus eb | S4: VHG-bonus esca | T4: Certifiering

Sheet Substrat
A1: HBK-El & Värme, ver 1.1 - Substratlista
A2: Substrat / Råvara ( Samma som kategori) | B2: Typ | C2: Råvara vid ej krav på växthusgasminskning | D2: Not
A3: Avfall från djurfodertillverkning | B3: Avfall | C3: Annan restprodukt eller avfall | D3: Rester från tillverkning av foder till husdjur som nötkreatur, svin, fjäderfä, hund- och katt (hanteras i fast form)
A4: Avfall från livsmedelsindustri | B4: Avfall | C4: Annan restprodukt eller avfall | D4: T ex skal från grönsaker, fiskrens, mejeriprodukter, läskedrycksrester, bröd, deg, grönsaker, rester från charkuteri och styckning samt färdig mat. Hanteras antingen i flytande form med tankbil eller i fast form med t ex med container
A5: Avloppsslam | B5: Avfall | C5: Annan restprodukt eller avfall | D5: Inklusive slam från externa reningsverk utan rötkammare.
A6: Deponigas | B6: Avfall | C6: Annan restprodukt eller avfall | D6: Metangas som utvinns från deponier
A7: Drank | B7: Avfall | C7: Annan restprodukt eller avfall | D7: Från tillverkning av sprit för human konsumtion eller för användning som motorbränsle.
A8: Grödrester | B8: Avfall | C8: Övrig agrobiomassa | D8: Exempelvis halm (torkad och balad), blast från potatis eller sockerbetor
A9: Gödsel | B9: Restp | C9: Restprodukt från jordbruk | D9: Fast eller flytande gödsel från nötkreatur, svin, fjäderfä och andra husdjur
A10: Industrislam | B10: Avfall | C10: Annan restprodukt eller avfall | D10: Slam från rening av industriellt avloppsvatten/avloppsslam och verksamhetsslam, t.ex. fiberslam.
A11: Matavfall | B11: Avfall | C11: Annan restprodukt eller avfall | D11: Källsorterat matavfall från hushåll, matavfall från restauranger och storkök samt matavfall från butiker
A12: Rester från spannmålshantering | B12: Restp | C12: Restprodukt från jordbruk | D12: T ex sekunda spannmål och avrens etc
A13: Rester från biodieselproduktion | B13: Restp | C13: Annan restprodukt eller avfall
A14: Råglycerin | B14: Restp | C14: Annan restprodukt eller avfall | D14: T ex från biodieseltillverkning
A15: Råtallolja | B15: Restp | C15: Annan restprodukt eller avfall | D15: Råtallolja framställd från råtallsåpa, som utvinnes ur sulfatmassaindustrins restavlutar (svartlut) från kokprocesserna.
A16: Slaktavfall | B16: Avfall | C16: Annan restprodukt eller avfall | D16: T ex mag- och tarminnehåll, blod, fett och slam från reningsverk vid slakteri
A17: Avfall från naturvård | B17: Avfall | C17: Övrig agrobiomassa | D17: Avser gräs och andra växter som skördats i samband med naturvårdsåtgärder, som till exempel från vägkanter grönområden etc. Lagrat som rundbalsensilage. Tillagd 2023-03-21
A18: Havre | B18: Livsmedel/fodergröda | C18: Övrig agrobiomassa
A19: Helsäd-Vete | B19: Livsmedel/fodergröda | C19: Övrig agrobiomassa | D19: Kärna & halm, lagrat som ensilage
A20: Korn | B20: Livsmedel/fodergröda | C20: Övrig agrobiomassa | D20: Torkad kärna
A21: Majs | B21: Livsmedel/fodergröda | C21: Övrig agrobiomassa | D21: Avser hela plantan, lagrad som ensilage
A22: Mellangröda | B22: Gröda | C22: Övrig agrobiomassa | D22: Är gröda som odlas mellan huvudgrödor på åkermark
A23: Råg | B23: Livsmedel/fodergröda | C23: Övrig agrobiomassa | D23: Torkad kärna
A24: Rågvete | B24: Livsmedel/fodergröda | C24: Övrig agrobiomassa | D24: Torkad kärna
A25: Sockerbetor | B25: Livsmedel/fodergröda | C25: Övrig agrobiomassa | D25: Avser beta utan blast
A26: Vallgröda | B26: Gröda | C26: Övrig agrobiomassa | D26: Klövergräsblandning, lagrat som ensilage
A27: Vete | B27: Livsmedel/fodergröda | C27: Övrig agrobiomassa | D27: Torkad kärna
A28: Ej definierad | B28: Ej def | C28: Ej angivet
A29: Substrat typer | C29: Enl Energimyndighetens rapporteringsmall
A30: Avfall | C30: Annan restprodukt eller avfall
A31: Restp | C31: Avfall från jordbruk
A32: Sampr | C32: Fast kommunalt avfall
A33: Gröda | C33: Restprodukt från jordbruk
A34: Livsmedel/fodergröda | C34: Restprodukt från vattenbruk eller fiske
A35: Bränslekategorier | C35: Skogsbiomassa, inklusive restprodukt från skogsbruk
A36: Biogas (flytande) | C36: Övrig agrobiomassa
A37: Biogas (gasformig)
A38: Biogasol
A39: Enhet
A40: Nm3
A41: kg
A42: Beräkning
A43: F | B43: F = Faktisk beräkning
A44: F, Esca | B44: Esca anges om gödselbonus har tillämpats vid beräkning av växthusgasutsläpp | D44: I filen ska ett av alternativen F eller N anges, kompletterat med Esca för partier där gödselbonus ingår i växthusgasutsläppsvärdet. Exempel F, Esca.
A45: D | B45: D = Delnormalvärde
A46: D, Esca | B46: D = Delnormalvärde
A47: N | B47: N = Normalvärde
A48: N, Esca
A49: Certifieringssystem
A50: 2BSvs
A51: Austrian agricultural certification scheme
A52: Better Biomass
A53: Bonsucro EU
A54: ISCC EU
A55: KZR INIG System
A56: Red Cert
A57: RED Tractor
A58: RSB EU RED
A59: RTRS EU RED
A60: SBP
A61: SQC
A62: SURE
A63: Trade Assurance Combinable Crops
A64: Universal Feed Assurance Scheme
A74: Ursprungsland för substrat (för val vid inmatning av substrat)
A75: Sverige
A76: Danmark
A77: Estland
A78: Finland
A79: Frankrike
A80: Lettland
A81: Litauen
A82: Nederländerna
A83: Norge
A84: Polen
A85: Portugal
A86: Storbritannien
A87: Tyskland
A88: USA
A89: Afghanistan
A90: Albanien
A91: Algeriet
A92: Amerikanska Jungfruöarna
A93: Amerikanska Samoa
A94: Andorra
A95: Angola
A96: Anguilla
A97: Antarktis
A98: Antigua och Barbuda
A99: Argentina
A100: Armenien
A101: Aruba
A102: Australien
A103: Azerbajdzjan
A104: Bahamas
A105: Bahrain
A106: Bangladesh
A107: Barbados
A108: Belarus
A109: Belgien
A110: Belize
A111: Benin
A112: Bermuda
A113: Bhutan
A114: Bolivia
A115: Bosnien och Hercegovina
A116: Botswana
A117: Bouvetön
A118: Brasilien
A119: Brittiska Jungfruöarna
A120: Brittiska territoriet i Indiska oceanen
A121: Brunei
A122: Bulgarien
A123: BurkinaFaso
A124: Burundi
A125: Caymanöarna
A126: Centralafrikanska republiken
A127: Ceuta
A128: Chile
A129: Colombia
A130: Cooköarna
A131: CostaRica
A132: Cypern
A133: De franska territorierna i södra Indiska oceanen (Terres australes françaises)
A134: Demokratiska republiken Kongo
A135: Det ockuperade palestinska territoriet
A136: Djibouti
A137: Dominica
A138: Dominikanska republiken
A139: Ecuador
A140: Egypten
A141: Ekvatorialguinea
A142: Elfenbenskusten
A143: ElSalvador
A144: Eritrea
A145: Etiopien
A146: Falklandsöarna (Islas Malvinas)
A147: Fiji
A148: Filippinerna
A149: Franska Polynesien
A150: Färöarna
A151: Förenade Arabemiraten
A152: Gabon
A153: Gambia
A154: Georgien
A155: Ghana
A156: Gibraltar
A157: Grekland
A158: Grenada
A159: Grönland
A160: Guam
A161: Guatemala
A162: Guinea
A163: Guinea-Bissau
A164: Guyana
A165: Haiti
A166: Heard- och McDonaldöarna
A167: Heliga stolen (Vatikanstaten)
A168: Honduras
A169: Hongkong
A170: Indien
A171: Indonesien
A172: Irak
A173: Iran
A174: Irland
A175: Island
A176: Israel
A177: Italien
A178: Jamaica
A179: Japan
A180: Jemen
A181: Jordanien
A182: Julön
A183: Kambodja
A184: Kamerun
A185: Kanada
A186: KapVerde
A187: Kazakstan
A188: Kenya
A189: Kina
A190: Kirgizistan
A191: Kiribati
A192: Kokosöarna (eller Keelingöarna)
A193: Komorerna
A194: Kongo
A195: Kosovov
A196: Kroatien
A197: Kuba
A198: Kuwait
A199: Laos
A200: Lesotho
A201: Libanon
A202: Liberia
A203: Libyen
A204: Liechtenstein
A205: Litauen
A206: Luxemburg
A207: Macao
A208: Madagaskar
A209: Makedonien (F.d. jugoslaviska republiken)
... 103 more rows

Sheet Data
A1: HBK-El & Värme, ver 1.1 - Underlagsdata
A2: Allmänna data | E2: Kommentar
A3: Omräkningsfaktorer till CO2 eq CH4 (gram/gram) | B3: 25 | E3: Energimyndighetens föreskrifter STEM2021:7
A4: Omräkningsfaktorer till CO2 eq N2O (gram/gram) | B4: 298 | E4: Energimyndighetens föreskrifter STEM2021:7
A5: Densitet metan, kg/Nm3 | B5: 0.7175 | E5: Svenskt Gastekniskt Center (www.sgc.se)
A6: Energiinnehåll metan, MJ/Nm3 | B6: =50*B5 -> 35.875 | E6: Biograce: 50,0 MJ/kg
A7: Energiinnehåll metan, MJ/kg | B7: 50 | E7: Biograce: 50,0 MJ/kg
A8: Ef; Fossila motsvarigheten vid produktion av värme, gCO2eq/MJ | B8: 80 | E8: Energimyndighetens föreskrifter STEM2021:7
A9: Ef; Fossila motsvarigheten vid produktion av el, gCO2eq/MJ | B9: 183 | E9: Energimyndighetens föreskrifter STEM2021:7
A10: Krav på växthusgasminskning mellan 2021-01-01 och 2025-12-31 | B10: 0.7
A11: Krav på växthusgasminskning mellan 2021-01-01 och 2025-12-31 | B11: 0.8
A12: Ja | E12: För val av Ja / Nej - alternativ
A13: Nej | E13: För val av Ja / Nej - alternativ
A14: Nm3 | E14: För val av kg/Nm3 - alternativ
A15: kg | E15: För val av kg/Nm3 - alternativ
A16: Datum 1 för krav på växthusgasminskning | B16: 2020-12-31 | E16: Före detta datum inget krav. Mellan datum 1 och 2, 70% minskning
A17: Datum 2 för krav på växthusgasminskning | B17: 2025-12-31 | E17: Efter detta datum krav på 80% minskning
A18: Gränsvärde för varning för avvikelse i massbalans | B18: 0.05 | E18: Detta värde används vid kontroll av massbalans i distributionsbladet. Vid större avvikelse rödmarkeras avvikelsen för partiet
A19: Visa välkomstsida | B19: Ja
A20: Elektricitet | B20: gCO2eq/MWh | C20: gCO2eq/MJ | E20: Kommentar
A21: El | B21: 26000 | C21: =B21/1000/3.6 -> 7.222222222 | E21: Källa: Energimyndigheten, uppdatarad 2022-01-27
A22: Bränsle till fordon (maskiner) och transporter | B22: gCO2eq/liter (kg) | C22: gCO2eq/MJ | D22: MJ/liter (kg) | E22: Kommentar
A23: Diesel MK1, liter | B23: =C23*D23 -> 2354.51 | C23: 66.7 | D23: 35.3 | E23: Källa: Energimyndighetens webbsida Växthusgasutsläpp, uppdatarad 2024-01-02
A24: Eco Par A | B24: 3289.8441 | C24: 94.3 | D24: 34.887 | E24: Källa: Well-to-tank appendix 2 - version 4A, summary of energy and GHG balance of individual pathways, well-to-wheels analysis of future automotive fuels and powertrains in the european context. http://iet.jrc.ec.europa.eu/about-jec
A25: Eco Par Bio | B25: 349.987968 | C25: 10.224 | D25: 34.232 | E25: Källa: Eco Par AB, 2019-01-24
A26: Preem Evolution Diesel | B26: 2298 | C26: =B26/D26 -> 66.08195543 | D26: 34.775 | E26: Källa: Preem 2024-01-16
A27: ACP Diesel 50 | B27: 1820 | C27: =B27/D27 -> 52.63157895 | D27: 34.58 | E27: Källa: Preem 2024-01-16
A28: Diesel med RME | B28: 3188 | C28: =B28/D28 -> 90.72540482 | D28: 35.139 | E28: Källa: Preem 2024-01-16
A29: FAME100, liter | B29: 1098.9 | C29: 33.3 | D29: 33 | E29: Källa: Energimyndighetens webbsida Växthusgasutsläpp, uppdaterad 2024-01-02
A30: HVO100, liter | B30: 357 | C30: 10.5 | D30: 34 | E30: Källa: Energimyndighetens webbsida Växthusgasutsläpp, uppdatarad 2024-01-02
A31: Biogas-100, kg | B31: 0 | C31: 0 | D31: 48.8 | E31: Källa: Energimyndighetens webbsida Växthusgasutsläpp, uppdatarad 2024-01-15
A32: Biogas-50, kg | B32: 1626.8175 | C32: =(C31*0.5)+(C33*0.5) -> 34.65 | D32: =(D31*0.5)+(D33*0.5) -> 46.95 | E32: Källa: Energimyndighetens webbsida Växthusgasutsläpp, uppdatarad 2024-01-15
A33: Naturgas, kg | B33: 3125.43 | C33: 69.3 | D33: 45.1 | E33: Rådets direktiv (EU) 2015/652 av den 20 april 2015 om fastställande av beräkningsmetoder och rapporteringskrav i enlighet med Europaparlamentets och rådets direktiv 98/70/EG om kvaliteten på bensin och dieselbränslen
A34: LBG-100, kg | B34: 245 | C34: 4.9 | D34: 50 | E34: För användning i Otto-motor. Baserat på METHANE AS VEHICLE FUEL – A WELL-TO-WHEEL ANALYSIS (METDRIV) (Börjesson et al., 2016) antas samma som för komprimerad biogas.
A35: LBG-50, kg | B35: 1985 | C35: =(C34*0.5)+(C36*0.5) -> 39.7 | D35: =(D34*0.5)+(D36*0.5) -> 50 | E35: För användning i Otto-motor. 50 % LBG och 50 % LNG
A36: LNG, kg | B36: 3725 | C36: 74.5 | D36: 50 | E36: Rådets direktiv (EU) 2015/652 av den 20 april 2015 om fastställande av beräkningsmetoder och rapporteringskrav i enlighet med Europaparlamentets och rådets direktiv 98/70/EG om kvaliteten på bensin och dieselbränslen
A37: LBG+10% diesel, kg+liter | C37: =(0.9*C34)+(0.1*C23) -> 11.08 | E37: För användning i dual-fuel motorer. Utsläpp från en mix bestående av 90 % biogas/naturgas och 10 % diesel. Energiinnehåll anges inte pga blandning mellan diesel och gas.
A38: LBG 50+10% diesel, kg+liter | C38: =(0.9*C35)+(0.1*C23) -> 42.4 | E38: För användning i dual-fuel motorer. Utsläpp från en mix bestående av 90 % biogas/naturgas och 10 % diesel. Energiinnehåll anges inte pga blandning mellan diesel och gas.
A39: LNG+10% diesel, liter+kg | C39: =(0.9*C36)+(0.1*C23) -> 73.72 | E39: För användning i dual-fuel motorer. Utsläpp från en mix bestående av 90 % biogas/naturgas och 10 % diesel. Energiinnehåll anges inte pga blandning mellan diesel och gas.
A40: Etanol E85, liter | B40: =C40*D40 -> 1133.73 | C40: 45.9 | D40: 24.7 | E40: Källa: Energimyndighetens webbsida Växthusgasutsläpp, uppdatarad 2022-10-31
A41: Eget värde 1 | B41: 999999 | C41: 999999 | D41: 999999 | E41: Eget värde som ska kunna verifieras
A42: Eget värde 2 | B42: 999999 | C42: 999999 | D42: 999999 | E42: Eget värde som ska kunna verifieras
A43: Eget värde 3 | B43: 999999 | C43: 999999 | D43: 999999 | E43: Eget värde som ska kunna verifieras
A44: Eget värde 4 | B44: 999999 | C44: 999999 | D44: 999999 | E44: Eget värde som ska kunna verifieras
A45: Transport av gas till anläggning | B45: Bränsleförbruk-ning, MJ/km | E45: Kommentar
A46: Lastbil, 1 cont, flytande bränsle | B46: =((0.251+0.495)/2)*D23 -> 13.1669 | E46: NTM Fordonskategori 9. City trailer. 33 ton lastkapacitet. Landsväg. Genomsnittligförbrukning för hela transporten då tom återtransport inkluderas. Förbrukning vid 100% lastgrad dit + Förbrukning vid 0 % lastgrad tillbaka.
A47: Lastbil, m släp, flytande bränsle | B47: =((0.608+0.334)/2)*D23 -> 16.6263 | E47: Baserat på 58 tons total lastvikt ( Benjaminsson & Nilsson 2009). NTM Fordonskategori 10. . 40 ton lastkapacitet. Landsväg. Genomsnittligförbrukning för hela transporten då tom återtransport inkluderas. Förbrukning vid 100% lastgrad dit + Förbrukning vid 0 % lastgrad tillbaka.
A48: Tankbil LBG, flytande bränsle | B48: =((0.268+0.528)/2)*D23 -> 14.0494 | E48: NTM Fordonskategori 9. 33 ton lastkapacitet. Landsväg. Genomsnittlig förbrukning för hela transporten då tom återtransport inkluderas. Förbrukning vid 100% lastgrad dit + Förbrukning vid 0 % lastgrad tillbaka.
A49: Tankbil Gasol, flytande bränsle | B49: =((0.268+0.528)/2)*D23 -> 14.0494 | E49: NTM Fordonskategori 9. 33 ton lastkapacitet. Landsväg. Genomsnittlig förbrukning för hela transporten då tom återtransport inkluderas. Förbrukning vid 100% lastgrad dit + Förbrukning vid 0 % lastgrad tillbaka.
A50: Lastbil, 1 cont, gas | B50: =((0.251+0.495)/2)*D31*1.18 -> 21.478832 | E50: NTM Fordonskategori 9. City trailer. 33 ton lastkapacitet. Landsväg. Genomsnittligförbrukning för hela transporten då tom återtransport inkluderas. Förbrukning vid 100% lastgrad dit + Förbrukning vid 0 % lastgrad tillbaka. Energiförbrukning antas öka med 18 % pga gas baserat på MetDriv (Börjesson et al. 2017).
A51: Lastbil, m släp, gas | B51: =((0.608+0.334)/2)*D31*1.18 -> 27.122064 | E51: Baserat på 58 tons total lastvikt ( Benjaminsson & Nilsson 2009). NTM Fordonskategori 10. . 40 ton lastkapacitet. Landsväg. Genomsnittligförbrukning för hela transporten då tom återtransport inkluderas. Förbrukning vid 100% lastgrad dit + Förbrukning vid 0 % lastgrad tillbaka. Energiförbrukning antas öka med 18 % pga gas baserat på MetDriv (Börjesson et al. 2017).
A52: Tankbil LBG, gas | B52: =((0.268+0.528)/2)*D31*1.18 -> 22.918432 | E52: NTM Fordonskategori 9. 33 ton lastkapacitet. Landsväg. Genomsnittlig förbrukning för hela transporten då tom återtransport inkluderas. Förbrukning vid 100% lastgrad dit + Förbrukning vid 0 % lastgrad tillbaka. Energiförbrukning antas öka med 18 % pga gas baserat på MetDriv (Börjesson et al. 2017).
A53: Lastbil, 1 cont, dual-fuel | B53: =B46 -> 13.1669 | E53: NTM Fordonskategori 9. City trailer. 33 ton lastkapacitet. Landsväg. Genomsnittligförbrukning för hela transporten då tom återtransport inkluderas. Förbrukning vid 100% lastgrad dit + Förbrukning vid 0 % lastgrad tillbaka.
A54: Lastbil, m släp, dual-fuel | B54: =B47 -> 16.6263 | E54: Baserat på 58 tons total lastvikt ( Benjaminsson & Nilsson 2009). NTM Fordonskategori 10. . 40 ton lastkapacitet. Landsväg. Genomsnittligförbrukning för hela transporten då tom återtransport inkluderas. Förbrukning vid 100% lastgrad dit + Förbrukning vid 0 % lastgrad tillbaka.
A55: Tankbil LBG, dual-fuel | B55: =B49 -> 14.0494 | E55: NTM Fordonskategori 9. 33 ton lastkapacitet. Landsväg. Genomsnittlig förbrukning för hela transporten då tom återtransport inkluderas. Förbrukning vid 100% lastgrad dit + Förbrukning vid 0 % lastgrad tillbaka.
A56: Eget värde 1 | B56: 99 | E56: Eget värde som ska kunna verifieras
A57: Eget värde 2 | B57: 99 | E57: Eget värde som ska kunna verifieras
A58: Eget värde 3 | B58: 99 | E58: Eget värde som ska kunna verifieras
A59: Eget värde 4 | B59: 99 | E59: Eget värde som ska kunna verifieras
A60: Eget värde 5 | B60: 99 | E60: Eget värde som ska kunna verifieras

Sheet Egna Data
A1: HBK-El & Värme, ver 1.1 - Egna data, blad 1
